Transaction Number,Service Area Categorisation,Service Division Categorisation,Responsible Unit,Unit Code,Expenses Type,Expenses Sub Type,Expense Code,Narrative,Amount,Invoice Date,Capital /Revenue,Supplier Name
1,Central Services,Corporate Mangmt not separated,Chief Exec's Office,A01001,Supplies & Services           ,Grants and Subscriptions      ,DJ04,Subscriptions,"30,373.40",04/04/2013,R,LOCAL GOVERNMENT ASSOCIATION  
2,Central Services,Corporate Mangmt not separated,Chief Exec's Office,A01001,Supplies & Services           ,Grants and Subscriptions      ,DJ04,Subscriptions,"114,141.00",08/04/2013,R,LONDON COUNCILS               
3,Cultural Env Reg&Plan Services,Comm Safety (Crime Reduction),CCTV,A01200,Supplies & Services           ,Services                      ,DF57,Consulting Engineers Fees,"1,772.64",25/03/2013,R,GOODWILL ASSOCIATES LIMITED   
4,Adult Social Care,Substance Abuse (Addictions),Retention in Drug Treatmt Srvs,A01303,Third Party Payments          ,Private Contractors           ,EH02,Miscellaneous Hired Services,"16,246.50",11/04/2013,R,ST MARY�S UNIVERSITY COLLEGE  
5,Adult Social Care,Substance Abuse (Addictions),Retention in Drug Treatmt Srvs,A01303,Third Party Payments          ,Private Contractors           ,EH02,Miscellaneous Hired Services,"47,194.00",28/03/2013,R,SW LONDON ST GEORGES NHS TRUST
6,Central Services,SupS Chief Execs,NON-STATUTORY MARKETING & COMM,A02019,Supplies & Services           ,Prntng Stnry Gen Off Exp      ,DE22,Marketing,"2,045.70",10/01/2013,R,AWARDS INTELLIGENCE           
7,Central Services,SupS Chief Execs,NON-STATUTORY MARKETING & COMM,A02019,Supplies & Services           ,Services                      ,DF35,Graphic Design,"5,022.00",12/04/2013,R,PANACEA SOFTWARE LTD          
8,Central Services,SupS Chief Execs,Democratic Services,A02023,Employees                     ,Direct Employee Expenses      ,AA17,Agency Staff & Casual Paymts,"1,147.50",01/03/2013,R,REDACTED
9,Central Services,SupS Chief Execs,Democratic Services,A02023,Employees                     ,Direct Employee Expenses      ,AA96,SALARY SACRIFICE (TEACHERS),833.33,12/04/2013,R,F.W.EVANS CYCLES (UK) LTD.    
10,Central Services,SupS Chief Execs,Press and Public Relations.,A02026,Employees                     ,Direct Employee Expenses      ,AA17,Agency Staff & Casual Paymts,904,04/04/2013,R,HAYS RECRUITING EXPERTS       
11,Central Services,SupS Chief Execs,Press and Public Relations.,A02026,Employees                     ,Direct Employee Expenses      ,AA17,Agency Staff & Casual Paymts,904,09/04/2013,R,HAYS RECRUITING EXPERTS       
12,Central Services,SupS Chief Execs,Press and Public Relations.,A02026,Employees                     ,Direct Employee Expenses      ,AA17,Agency Staff & Casual Paymts,"1,130.00",27/03/2013,R,HAYS RECRUITING EXPERTS       
13,Central Services,SupS Chief Execs,Press and Public Relations.,A02026,Supplies & Services           ,Prntng Stnry Gen Off Exp      ,DE20,Council Magazine,"3,892.00",22/03/2013,R,LONDON LETTERBOX MARKETING    
14,CS -Oth Operating Inc & Expend,T/A Corporate Services,Prtng Jobs - Ext Agncy,A03041,Supplies & Services           ,Prntng Stnry Gen Off Exp      ,DE01,External Printing,610.7,25/04/2013,R,RECOGNITION EXPRESS           
15,CS -Oth Operating Inc & Expend,T/A Corporate Services,Prtng Jobs - Ext Agncy,A03041,Supplies & Services           ,Prntng Stnry Gen Off Exp      ,DE01,External Printing,873,16/04/2013,R,ULTIMATE INVOICE FINANCE LTD  
16,CS -Oth Operating Inc & Expend,T/A Corporate Services,Prtng Jobs - Ext Agncy,A03041,Third Party Payments          ,Private Contractors           ,EH02,Miscellaneous Hired Services,"3,000.00",28/03/2013,R,OCE FINANCE                   
17,CS -Oth Operating Inc & Expend,T/A Corporate Services,PrintUnit-HighVolPhtcopying,A03042,Third Party Payments          ,Private Contractors           ,EH02,Miscellaneous Hired Services,500,28/03/2013,R,OCE FINANCE                   
18,CS -Oth Operating Inc & Expend,T/A Corporate Services,PrintUnit-HighVolPhtcopying,A03042,Third Party Payments          ,Private Contractors           ,EH02,Miscellaneous Hired Services,500,28/03/2013,R,OCE FINANCE                   
19,CS -Oth Operating Inc & Expend,T/A Corporate Services,PrintUnit-HighVolPhtcopying,A03042,Third Party Payments          ,Private Contractors           ,EH02,Miscellaneous Hired Services,500,28/03/2013,R,OCE FINANCE                   
20,CS -Oth Operating Inc & Expend,T/A Corporate Services,PrintUnit-HighVolPhtcopying,A03042,Third Party Payments          ,Private Contractors           ,EH02,Miscellaneous Hired Services,500,28/03/2013,R,OCE FINANCE                   
21,CS -Oth Operating Inc & Expend,T/A Corporate Services,PrintUnit-HighVolPhtcopying,A03042,Third Party Payments          ,Private Contractors           ,EH02,Miscellaneous Hired Services,844.97,28/03/2013,R,OCE FINANCE                   
22,CS -Oth Operating Inc & Expend,T/A Corporate Services,PrintUnit-HighVolPhtcopying,A03042,Third Party Payments          ,Private Contractors           ,EH02,Miscellaneous Hired Services,"1,295.25",28/03/2013,R,OCE FINANCE                   
23,CS -Oth Operating Inc & Expend,T/A Corporate Services,PrintUnit-HighVolPhtcopying,A03042,Third Party Payments          ,Private Contractors           ,EH02,Miscellaneous Hired Services,"2,876.98",28/03/2013,R,OCE FINANCE                   
24,CS -Oth Operating Inc & Expend,T/A Corporate Services,PrintUnit-HighVolPhtcopying,A03042,Third Party Payments          ,Private Contractors           ,EH02,Miscellaneous Hired Services,"3,000.00",28/03/2013,R,OCE FINANCE                   
25,CS -Oth Operating Inc & Expend,T/A Corporate Services,PrintUnit-HighVolPhtcopying,A03042,Third Party Payments          ,Private Contractors           ,EH02,Miscellaneous Hired Services,"3,000.00",12/04/2013,R,OCE FINANCE                   
26,CS -Oth Operating Inc & Expend,T/A Corporate Services,PrintUnit-HighVolPhtcopying,A03042,Third Party Payments          ,Private Contractors           ,EH02,Miscellaneous Hired Services,"3,000.00",28/03/2013,R,OCE FINANCE                   
27,CS -Oth Operating Inc & Expend,T/A Corporate Services,PrintUnit-HighVolPhtcopying,A03042,Third Party Payments          ,Private Contractors           ,EH02,Miscellaneous Hired Services,"3,776.98",28/03/2013,R,OCE FINANCE                   
28,CS -Oth Operating Inc & Expend,T/A Corporate Services,PrintUnit-HighVolPhtcopying,A03042,Third Party Payments          ,Private Contractors           ,EH02,Miscellaneous Hired Services,"3,776.98",28/03/2013,R,OCE FINANCE                   
29,CS -Oth Operating Inc & Expend,T/A Corporate Services,PrintUnit-HighVolPhtcopying,A03042,Third Party Payments          ,Private Contractors           ,EH02,Miscellaneous Hired Services,"3,900.00",28/03/2013,R,OCE FINANCE                   
30,CS -Oth Operating Inc & Expend,T/A Corporate Services,PrintUnit-HighVolPhtcopying,A03042,Third Party Payments          ,Private Contractors           ,EH02,Miscellaneous Hired Services,"3,900.00",28/03/2013,R,OCE FINANCE                   
31,CS -Oth Operating Inc & Expend,T/A Corporate Services,PrintUnit-HighVolPhtcopying,A03042,Third Party Payments          ,Private Contractors           ,EH02,Miscellaneous Hired Services,"3,900.00",12/04/2013,R,OCE FINANCE                   
32,Central Services,SupS Best Value,Merton Link,A04070,Supplies & Services           ,Comms and Computing           ,DG15,Network Maintenance,737.25,02/04/2013,R,NORTHGATE  INFORMATION SOLUT. 
33,Central Services,SupS Comm and Member Services,Local Strategic Partnership,A04080,Supplies & Services           ,Prntng Stnry Gen Off Exp      ,DE22,Marketing,"2,800.00",19/03/2013,R,REDACTED
34,Central Services,SupS Comm and Member Services,Local Strategic Partnership,A04080,Supplies & Services           ,Services                      ,DF35,Graphic Design,"4,000.00",10/04/2013,R,TA2                           
35,Central Services,Grants - Voluntary Groups,VOLUNTARY SECTOR COORDINATION,A04082,Supplies & Services           ,Grants and Subscriptions      ,DJ01,Grants,"5,000.00",08/04/2013,R,COMMONSIDE COMMUNITY DEV TRUST
36,Central Services,Grants - Voluntary Groups,VOLUNTARY SECTOR COORDINATION,A04082,Supplies & Services           ,Grants and Subscriptions      ,DJ01,Grants,"10,000.00",08/04/2013,R,MERTON COMMUNITY TRANSPORT    
37,Central Services,Grants - Voluntary Groups,VOLUNTARY SECTOR COORDINATION,A04082,Supplies & Services           ,Grants and Subscriptions      ,DJ01,Grants,"11,140.00",08/04/2013,R,MERTON VOLUNTARY SERV COUNCIL 
38,Central Services,Grants - Voluntary Groups,VOLUNTARY SECTOR COORDINATION,A04082,Supplies & Services           ,Grants and Subscriptions      ,DJ01,Grants,"11,881.00",08/04/2013,R,MERTON CIL                    
39,Central Services,Grants - Voluntary Groups,VOLUNTARY SECTOR COORDINATION,A04082,Supplies & Services           ,Grants and Subscriptions      ,DJ01,Grants,"24,915.00",08/04/2013,R,VOLUNTEER CENTRE MERTON       
40,Central Services,Grants - Voluntary Groups,VOLUNTARY SECTOR COORDINATION,A04082,Supplies & Services           ,Grants and Subscriptions      ,DJ01,Grants,"27,000.00",08/04/2013,R,SW LONDON LAW CENTRES         
41,Central Services,Grants - Voluntary Groups,VOLUNTARY SECTOR COORDINATION,A04082,Supplies & Services           ,Grants and Subscriptions      ,DJ01,Grants,"28,303.00",08/04/2013,R,SPRINGFIELD LAW CENTRE LTD
42,Central Services,Grants - Voluntary Groups,VOLUNTARY SECTOR COORDINATION,A04082,Supplies & Services           ,Grants and Subscriptions      ,DJ01,Grants,"42,183.00",08/04/2013,R,MERTON VOLUNTARY SERV COUNCIL 
43,Central Services,Grants - Voluntary Groups,VOLUNTARY SECTOR COORDINATION,A04082,Supplies & Services           ,Grants and Subscriptions      ,DJ01,Grants,"73,000.00",18/04/2013,R,MERTON CITIZEN ADVICE BUREAU  
44,Central Services,Grants - Voluntary Groups,VOLUNTARY SECTOR COORDINATION,A04082,Supplies & Services           ,Grants and Subscriptions      ,DJ01,Grants,"177,878.00",10/04/2013,R,MERTON CITIZEN ADVICE BUREAU  
45,Central Services,Grants - Voluntary Groups,VOLUNTARY SECTOR COORDINATION,A04082,Supplies & Services           ,Grants and Subscriptions      ,DJ04,Subscriptions,"54,987.75",04/04/2013,R,LONDON COUNCILS               
46,Central Services,SupS Comm and Member Services,COMMERICIAL SERVICES,A04085,Employees                     ,Direct Employee Expenses      ,AA17,Agency Staff & Casual Paymts,"2,712.00",17/04/2013,R,HAYS RECRUITING EXPERTS       
47,Central Services,SupS Comm and Member Services,COMMERICIAL SERVICES,A04085,Employees                     ,Direct Employee Expenses      ,AA17,Agency Staff & Casual Paymts,"2,712.00",04/04/2013,R,HAYS RECRUITING EXPERTS       
48,Central Services,SupS Comm and Member Services,COMMERICIAL SERVICES,A04085,Employees                     ,Direct Employee Expenses      ,AA17,Agency Staff & Casual Paymts,"2,712.00",10/04/2013,R,HAYS RECRUITING EXPERTS       
49,Central Services,SupS Comm and Member Services,COMMERICIAL SERVICES,A04085,Employees                     ,Direct Employee Expenses      ,AA17,Agency Staff & Casual Paymts,"3,390.00",27/03/2013,R,HAYS RECRUITING EXPERTS       
50,Central Services,Emergency Planning (Cent Serv),Emergency Planning,B06138,Premises Related Expenditure  ,RepairsAlterations&MtceOfBldgs,BA62,Emergency Call-Out,"2,000.00",13/04/2013,R,BRITISH RED CROSS SOCIETY     
51,Central Services,SupS Health & Safety,Learning and Development,B06146,Employees                     ,Indirect Employee Expenses    ,AB56,Internal Training Costs,550,26/03/2013,R,RNIB                          
52,Central Services,SupS Health & Safety,Learning and Development,B06146,Employees                     ,Indirect Employee Expenses    ,AB56,Internal Training Costs,750,04/03/2013,R,WAVE PEOPLE CONSULTING        
53,Central Services,SupS Health & Safety,Learning and Development,B06146,Employees                     ,Indirect Employee Expenses    ,AB57,External Training Costs,560,25/03/2013,R,TOTAL COURSES                 
54,CS -Oth Operating Inc & Expend,T/A Corporate Services,CHAS Scheme,B06150,Supplies & Services           ,Services                      ,DF11,Counsel's fees,"2,053.50",27/03/2013,R,WEIGHTMANS LLP                
55,CS -Oth Operating Inc & Expend,T/A Corporate Services,CHAS Scheme,B06150,Supplies & Services           ,Services                      ,DF88,Assessor Fees,508,30/03/2013,R,REDACTED
56,CS -Oth Operating Inc & Expend,T/A Corporate Services,CHAS Scheme,B06150,Supplies & Services           ,Services                      ,DF88,Assessor Fees,515,22/03/2013,R,REDACTED
57,CS -Oth Operating Inc & Expend,T/A Corporate Services,CHAS Scheme,B06150,Supplies & Services           ,Services                      ,DF88,Assessor Fees,523.8,05/04/2013,R,REDACTED
58,CS -Oth Operating Inc & Expend,T/A Corporate Services,CHAS Scheme,B06150,Supplies & Services           ,Services                      ,DF88,Assessor Fees,555,02/04/2013,R,REDACTED
59,CS -Oth Operating Inc & Expend,T/A Corporate Services,CHAS Scheme,B06150,Supplies & Services           ,Services                      ,DF88,Assessor Fees,581,28/03/2013,R,REDACTED
60,CS -Oth Operating Inc & Expend,T/A Corporate Services,CHAS Scheme,B06150,Supplies & Services           ,Services                      ,DF88,Assessor Fees,682,20/03/2013,R,REDACTED
61,CS -Oth Operating Inc & Expend,T/A Corporate Services,CHAS Scheme,B06150,Supplies & Services           ,Services                      ,DF88,Assessor Fees,683.55,31/03/2013,R,REDACTED
62,CS -Oth Operating Inc & Expend,T/A Corporate Services,CHAS Scheme,B06150,Supplies & Services           ,Services                      ,DF88,Assessor Fees,689,18/04/2013,R,REDACTED
63,CS -Oth Operating Inc & Expend,T/A Corporate Services,CHAS Scheme,B06150,Supplies & Services           ,Services                      ,DF88,Assessor Fees,689,23/04/2013,R,MCG HEALTH & SAFETY LTD       
64,CS -Oth Operating Inc & Expend,T/A Corporate Services,CHAS Scheme,B06150,Supplies & Services           ,Services                      ,DF88,Assessor Fees,722,25/03/2013,R,REDACTED
65,CS -Oth Operating Inc & Expend,T/A Corporate Services,CHAS Scheme,B06150,Supplies & Services           ,Services                      ,DF88,Assessor Fees,729,19/03/2013,R,REDACTED
66,CS -Oth Operating Inc & Expend,T/A Corporate Services,CHAS Scheme,B06150,Supplies & Services           ,Services                      ,DF88,Assessor Fees,776,20/04/2013,R,REDACTED
67,CS -Oth Operating Inc & Expend,T/A Corporate Services,CHAS Scheme,B06150,Supplies & Services           ,Services                      ,DF88,Assessor Fees,897,25/03/2013,R,REDACTED
68,CS -Oth Operating Inc & Expend,T/A Corporate Services,CHAS Scheme,B06150,Supplies & Services           ,Services                      ,DF88,Assessor Fees,983,12/04/2013,R,REDACTED
69,CS -Oth Operating Inc & Expend,T/A Corporate Services,CHAS Scheme,B06150,Supplies & Services           ,Services                      ,DF88,Assessor Fees,"1,096.00",25/03/2013,R,REDACTED
70,CS -Oth Operating Inc & Expend,T/A Corporate Services,CHAS Scheme,B06150,Supplies & Services           ,Services                      ,DF88,Assessor Fees,"1,110.00",14/04/2013,R,REDACTED
71,CS -Oth Operating Inc & Expend,T/A Corporate Services,CHAS Scheme,B06150,Supplies & Services           ,Services                      ,DF88,Assessor Fees,"1,164.00",31/03/2013,R,SOUTH EAST HEALTH & SAFETY LTD
72,CS -Oth Operating Inc & Expend,T/A Corporate Services,CHAS Scheme,B06150,Supplies & Services           ,Services                      ,DF88,Assessor Fees,"1,204.00",22/03/2013,R,REDACTED
73,CS -Oth Operating Inc & Expend,T/A Corporate Services,CHAS Scheme,B06150,Supplies & Services           ,Services                      ,DF88,Assessor Fees,"1,218.00",28/02/2013,R,REDACTED
74,CS -Oth Operating Inc & Expend,T/A Corporate Services,CHAS Scheme,B06150,Supplies & Services           ,Services                      ,DF88,Assessor Fees,"1,237.00",14/04/2013,R,REDACTED
75,CS -Oth Operating Inc & Expend,T/A Corporate Services,CHAS Scheme,B06150,Supplies & Services           ,Services                      ,DF88,Assessor Fees,"1,350.00",23/03/2013,R,REDACTED
76,CS -Oth Operating Inc & Expend,T/A Corporate Services,CHAS Scheme,B06150,Supplies & Services           ,Services                      ,DF88,Assessor Fees,"1,404.00",12/04/2013,R,REDACTED
77,CS -Oth Operating Inc & Expend,T/A Corporate Services,CHAS Scheme,B06150,Supplies & Services           ,Services                      ,DF88,Assessor Fees,"1,451.00",21/03/2013,R,REDACTED
78,CS -Oth Operating Inc & Expend,T/A Corporate Services,CHAS Scheme,B06150,Supplies & Services           ,Services                      ,DF88,Assessor Fees,"1,554.00",16/04/2013,R,REDACTED
79,CS -Oth Operating Inc & Expend,T/A Corporate Services,CHAS Scheme,B06150,Supplies & Services           ,Services                      ,DF88,Assessor Fees,"1,604.00",18/04/2013,R,MGW SAFETY SERVICES           
80,CS -Oth Operating Inc & Expend,T/A Corporate Services,CHAS Scheme,B06150,Supplies & Services           ,Services                      ,DF88,Assessor Fees,"1,691.00",22/03/2013,R,REDACTED
81,CS -Oth Operating Inc & Expend,T/A Corporate Services,CHAS Scheme,B06150,Supplies & Services           ,Services                      ,DF88,Assessor Fees,"1,717.00",22/03/2013,R,STALLARD KANE ASSOCIATES LTD  
82,CS -Oth Operating Inc & Expend,T/A Corporate Services,CHAS Scheme,B06150,Supplies & Services           ,Services                      ,DF88,Assessor Fees,"1,778.00",25/03/2013,R,TERN ASSOCIATES LTD           
83,CS -Oth Operating Inc & Expend,T/A Corporate Services,CHAS Scheme,B06150,Supplies & Services           ,Services                      ,DF88,Assessor Fees,"2,065.00",09/04/2013,R,REDACTED
84,CS -Oth Operating Inc & Expend,T/A Corporate Services,CHAS Scheme,B06150,Supplies & Services           ,Services                      ,DF88,Assessor Fees,"2,206.00",12/04/2013,R,REDACTED
85,CS -Oth Operating Inc & Expend,T/A Corporate Services,CHAS Scheme,B06150,Supplies & Services           ,Services                      ,DF88,Assessor Fees,"2,321.00",22/03/2013,R,STALLARD KANE ASSOCIATES LTD  
86,CS -Oth Operating Inc & Expend,T/A Corporate Services,CHAS Scheme,B06150,Supplies & Services           ,Services                      ,DF88,Assessor Fees,"2,505.00",28/03/2013,R,REDACTED
87,CS -Oth Operating Inc & Expend,T/A Corporate Services,CHAS Scheme,B06150,Supplies & Services           ,Services                      ,DF88,Assessor Fees,"2,662.00",16/04/2013,R,REDACTED
88,CS -Oth Operating Inc & Expend,T/A Corporate Services,CHAS Scheme,B06150,Supplies & Services           ,Services                      ,DF88,Assessor Fees,"5,085.00",21/03/2013,R,REDACTED
89,Central Services,SupS Health & Safety,Occupational Health,B06152,Supplies & Services           ,Services                      ,DF14,Doctors and other fees,"1,428.25",23/04/2013,R,EDENRED (UK GROUP) LTD        
90,,,CCTV (match funding)                    ,CE002EA,New Construction Conversion and Renovation,0,B1,Design and Supervision - Consultants Fee,"1,021.82",20/12/2012,C,GOODWILL ASSOCIATES LIMITED   
91,,,Disabled Facilities Grant DCLG          ,CE004RA,Other Capital Expenditure,0,E1,Grants,754.48,25/04/2013,C,WEALDEN REHAB                 
92,,,Disabled Facilities Grant DCLG          ,CE004RA,Other Capital Expenditure,0,E1,Grants,"1,138.24",15/04/2013,C,STAYING FIRST                 
93,,,Disabled Facilities Grant DCLG          ,CE004RA,Other Capital Expenditure,0,E1,Grants,"1,143.45",25/04/2013,C,STAYING FIRST                 
94,,,Disabled Facilities Grant DCLG          ,CE004RA,Other Capital Expenditure,0,E1,Grants,"1,165.32",23/04/2013,C,R E SHELLEY                   
95,,,Disabled Facilities Grant DCLG          ,CE004RA,Other Capital Expenditure,0,E1,Grants,"1,177.31",04/04/2013,C,STAYING FIRST                 
96,,,Disabled Facilities Grant DCLG          ,CE004RA,Other Capital Expenditure,0,E1,Grants,"1,452.30",25/04/2013,C,R E SHELLEY                   
97,,,Disabled Facilities Grant DCLG          ,CE004RA,Other Capital Expenditure,0,E1,Grants,"1,762.59",25/04/2013,C,R E SHELLEY                   
98,,,Disabled Facilities Grant DCLG          ,CE004RA,Other Capital Expenditure,0,E1,Grants,"1,864.00",18/04/2013,C,TLC STAIRLIFTS                
99,,,Disabled Facilities Grant DCLG          ,CE004RA,Other Capital Expenditure,0,E1,Grants,"2,006.12",18/04/2013,C,CBS ADAPTATION                
100,,,Disabled Facilities Grant DCLG          ,CE004RA,Other Capital Expenditure,0,E1,Grants,"2,208.08",25/04/2013,C,STAYING FIRST                 
101,,,Disabled Facilities Grant DCLG          ,CE004RA,Other Capital Expenditure,0,E1,Grants,"2,968.00",15/04/2013,C,EXCEL INTERIOR REFURBISHMENT  
102,,,Disabled Facilities Grant DCLG          ,CE004RA,Other Capital Expenditure,0,E1,Grants,"3,991.00",23/04/2013,C,DREW PARTNERSHIP LTD.         
103,,,Disabled Facilities Grant DCLG          ,CE004RA,Other Capital Expenditure,0,E1,Grants,"4,535.00",15/04/2013,C,HOME ADAPTATIONS              
104,,,Disabled Facilities Grant DCLG          ,CE004RA,Other Capital Expenditure,0,E1,Grants,"5,570.00",18/04/2013,C,VISTA SCAPES                  
105,,,Disabled Facilities Grant DCLG          ,CE004RA,Other Capital Expenditure,0,E1,Grants,"8,911.50",25/04/2013,C,TBS ADAPTATIONS LTD           
106,,,Disabled Facilities Grant DCLG          ,CE004RA,Other Capital Expenditure,0,E1,Grants,"11,140.00",10/04/2013,C,DOLPHIN MOBILITY              
107,,,Disabled Facilities Grant DCLG          ,CE004RA,Other Capital Expenditure,0,E1,Grants,"11,348.00",25/04/2013,C,REDACTED
108,,,Disabled Facilities Grant DCLG          ,CE004RA,Other Capital Expenditure,0,E1,Grants,"13,570.00",25/04/2013,C,REDACTED
109,,,Disabled Facilities Grant DCLG          ,CE004RA,Other Capital Expenditure,0,E1,Grants,"15,000.00",04/04/2013,C,PREMIER ADAPTATIONS LTD       
110,,,Small Repairs Grant                     ,CE005RA,Other Capital Expenditure,0,E1,Grants,"4,000.00",10/04/2013,C,S&S CONSTRUCTION              
111,,,B487 Landscape Ravensbury Park          ,CE009CA,New Construction Conversion and Renovation,0,B4,Site Works - Contractor,"2,758.00",11/04/2013,C,I & J BUSHELL LTD             
112,,,Parks Investment                        ,CE013SA,New Construction Conversion and Renovation,0,B4,Site Works - Contractor,"73,624.47",26/03/2013,C,THOMAS SINDEN CONSTRUCTION LTD
113,,,Restoration of South Park Gdns          ,CE015CA,New Construction Conversion and Renovation,0,B4,Site Works - Contractor,650,22/03/2013,C,CLARKE CONSULTANCY            
114,,,Leisure Centre Plant & Machine          ,CE038MA,New Construction Conversion and Renovation,0,B4,Site Works - Contractor,868.4,28/03/2013,C,SALTASH ENTERPRISES LTD       
115,,,Leisure Centre Plant & Machine          ,CE038MA,New Construction Conversion and Renovation,0,B4,Site Works - Contractor,"1,000.00",28/03/2013,C,SALTASH ENTERPRISES LTD       
116,,,Leisure Centre Plant & Machine          ,CE038MA,New Construction Conversion and Renovation,0,B4,Site Works - Contractor,"1,000.00",28/03/2013,C,SALTASH ENTERPRISES LTD       
117,,,Leisure Centre Plant & Machine          ,CE038MA,New Construction Conversion and Renovation,0,B4,Site Works - Contractor,"1,000.00",28/03/2013,C,SALTASH ENTERPRISES LTD       
118,,,Leisure Centre Plant & Machine          ,CE038MA,New Construction Conversion and Renovation,0,B4,Site Works - Contractor,"2,175.64",28/03/2013,C,SALTASH ENTERPRISES LTD       
119,,,Leisure Centre Plant & Machine          ,CE038MA,New Construction Conversion and Renovation,0,B4,Site Works - Contractor,"3,820.50",28/03/2013,C,SALTASH ENTERPRISES LTD       
120,,,Leisure Centre Plant & Machine          ,CE038MA,New Construction Conversion and Renovation,0,B4,Site Works - Contractor,"4,403.75",28/03/2013,C,SALTASH ENTERPRISES LTD       
121,,,Leisure Centre Plant & Machine          ,CE038MA,New Construction Conversion and Renovation,0,B4,Site Works - Contractor,"5,000.00",28/03/2013,C,SALTASH ENTERPRISES LTD       
122,,,Leisure Centre Plant & Machine          ,CE038MA,New Construction Conversion and Renovation,0,B4,Site Works - Contractor,"5,000.00",28/03/2013,C,SALTASH ENTERPRISES LTD       
123,,,Town Centre Investment                  ,CE061FB,New Construction Conversion and Renovation,0,B3,Design and Supervision - Other Expenses,"6,484.87",21/02/2013,C,STUDIO WEAVE LTD              
124,,,Improve markings & road signs           ,CE066EA,Vehicles Plant Equipment and Machinery,0,D3,Equipment,"3,520.00",15/04/2013,C,TEASDALE GROUP LTD            
125,,,Improve markings & road signs           ,CE066EA,Vehicles Plant Equipment and Machinery,0,D5,Software,"-6,000.00",18/03/2013,C,TRAFFIC SAFETY SYSTEMS LTD    
126,,,Improve markings & road signs           ,CE066EA,Vehicles Plant Equipment and Machinery,0,D5,Software,"13,480.00",07/01/2013,C,TRAFFIC SAFETY SYSTEMS LTD    
127,,,Street scene enhancements               ,CE066FE,New Construction Conversion and Renovation,0,B4,Site Works - Contractor,"1,290.00",09/04/2013,C,LA BELLE ROOFING CO LTD       
128,,,Street scene enhancements               ,CE066FE,New Construction Conversion and Renovation,0,B4,Site Works - Contractor,"13,074.00",31/01/2013,C,FIRST CHOICE FACILITIES PLC   
129,,,Street Lighting Replacement Pr          ,CE068FA,New Construction Conversion and Renovation,0,B4,Site Works - Contractor,"1,471.80",28/03/2013,C,MAY GURNEY LTD T/A CARTLEDGE  
130,,,Street Lighting Replacement Pr          ,CE068FA,New Construction Conversion and Renovation,0,B4,Site Works - Contractor,"8,714.89",28/03/2013,C,MAY GURNEY LTD T/A CARTLEDGE  
131,,,Street Lighting Replacement Pr          ,CE068FA,New Construction Conversion and Renovation,0,B6,Site Works - Other Costs,644,11/04/2013,C,UK POWER NETWORKS (OPERATIONS)
132,,,Replacement of Fleet Vehicles           ,CE082EA,Vehicles Plant Equipment and Machinery,0,D1,Vehicles,"11,652.20",30/03/2013,C,CITROEN LONDON WEST           
133,,,Alley Gating Scheme - Fly Tip           ,CE087FA,Other Capital Expenditure,0,E1,Grants,748.44,15/04/2013,C,LOWER CARDINAL GATING ASSOC   
134,,,Alley Gating Scheme - Fly Tip           ,CE087FA,Other Capital Expenditure,0,E1,Grants,"3,458.70",23/04/2013,C,GRIDLOCK GATING ASSOCIATION   
135,,,Cycle Improvements                      ,CE104RM,Other Capital Expenditure,0,E4,TFL Other,"3,727.80",16/04/2013,C,BT PAYPHONES & EXPENDITURE    
136,,,Marathon Trust BMX Track                ,CE114SA,New Construction Conversion and Renovation,0,B4,Site Works - Contractor,"2,140.00",22/03/2013,C,PHASE 2 ELECTRICAL ENGINEERS  
137,,,Improved parking- shop parades          ,CE132FA,New Construction Conversion and Renovation,0,C3,Public Notices,"1,801.80",20/04/2013,C,NEWSQUEST (LONDON)LTD         
138,,,New Traffic Schemes                     ,CE135SA,New Construction Conversion and Renovation,0,B5,Site Works - Suppliers,"12,192.00",05/04/2013,C,PARKEON LTD                   
139,,,Civic Centre Windows                    ,CF001AK,New Construction Conversion and Renovation,0,B4,Site Works - Contractor,"2,932.00",14/03/2013,C,COBSEN-DAVIES ROOFING (LOND)LT
140,,,Invest to Save schemes-General          ,CF003SA,New Construction Conversion and Renovation,0,B4,Site Works - Contractor,"30,000.00",27/03/2013,C,MITIE TECHNICAL FACILITIES MGT
141,,,Invest to Save schemes-General          ,CF003SA,New Construction Conversion and Renovation,0,B5,Site Works - Suppliers,"2,311.92",04/04/2013,C,THORLUX LIGHTING              
142,,,St Ann's - Targeted Capital             ,CS001DA,New Construction Conversion and Renovation,0,B4,Site Works - Contractor,680.34,01/04/2013,C,PORTAKABIN LIMITED            
143,,,Raynes Park Sports Pavilion             ,CS003CA,New Construction Conversion and Renovation,0,B1,Design and Supervision - Consultants Fee,"2,339.00",28/03/2013,C,HAVERSTOCK ASSOCIATES LLP     
144,,,St Mary's expansion                     ,CS008RA,New Construction Conversion and Renovation,0,B1,Design and Supervision - Consultants Fee,"18,590.00",28/03/2013,C,NPS PROPERTY CONSULTANTS LTD  
145,,,St Mary's expansion                     ,CS008RA,New Construction Conversion and Renovation,0,B2,Design and Supervision - Site Surveys,761.25,19/04/2013,C,JMP CONSULTANTS LTD           
146,,,St Mary's expansion                     ,CS008RA,New Construction Conversion and Renovation,0,B2,Design and Supervision - Site Surveys,"1,030.00",26/03/2013,C,SURVEY SOLUTIONS              
147,,,St Mary's expansion                     ,CS008RA,New Construction Conversion and Renovation,0,B2,Design and Supervision - Site Surveys,"1,600.00",15/04/2013,C,ROBSON LIDDLE LTD             
148,,,St Mary's expansion                     ,CS008RA,New Construction Conversion and Renovation,0,B2,Design and Supervision - Site Surveys,"1,894.00",16/04/2013,C,ALBURY S.I LTD                
149,,,Benedict expansion                      ,CS009AA,New Construction Conversion and Renovation,0,B1,Design and Supervision - Consultants Fee,"9,786.47",21/03/2013,C,THE HOCA PRACTISE             
150,,,Garden PCP                              ,CS013AA,New Construction Conversion and Renovation,0,B4,Site Works - Contractor,"125,333.67",21/03/2013,C,R DURTNELL & SONS LTD         
151,,,Gorringe Park expansion                 ,CS018AB,New Construction Conversion and Renovation,0,B4,Site Works - Contractor,"160,000.00",09/04/2013,C,GEE CONSTRUCTION LTD          
152,,,Hillcross School Expansion              ,CS020AC,New Construction Conversion and Renovation,0,B2,Design and Supervision - Site Surveys,500,31/03/2013,C,MIDDLEMARCH ENVIRONMENTAL LTD 
153,,,Hillcross School Expansion              ,CS020AC,New Construction Conversion and Renovation,0,B2,Design and Supervision - Site Surveys,625,31/03/2013,C,CLEAR VIEW LTD                
154,,,Hillcross School Expansion              ,CS020AC,New Construction Conversion and Renovation,0,B2,Design and Supervision - Site Surveys,920,19/04/2013,C,JMP CONSULTANTS LTD           
155,,,Hillcross School Expansion              ,CS020AC,New Construction Conversion and Renovation,0,B2,Design and Supervision - Site Surveys,"1,370.00",19/04/2013,C,JMP CONSULTANTS LTD           
156,,,Merton Abbey Temp Accomodation          ,CS022AC,New Construction Conversion and Renovation,0,B1,Design and Supervision - Consultants Fee,"32,152.50",28/03/2013,C,PELLINGS LLP                  
157,,,Merton Abbey Temp Accomodation          ,CS022AC,New Construction Conversion and Renovation,0,B2,Design and Supervision - Site Surveys,"1,254.64",28/03/2013,C,KEEGANS LIMITED               
158,,,Merton Abbey Temp Accomodation          ,CS022AC,New Construction Conversion and Renovation,0,B2,Design and Supervision - Site Surveys,"5,328.00",19/04/2013,C,JMP CONSULTANTS LTD           
159,,,Pelham School Expansion                 ,CS023AC,New Construction Conversion and Renovation,0,B1,Design and Supervision - Consultants Fee,"15,645.00",20/02/2013,C,HAVERSTOCK ASSOCIATES LLP     
160,,,Pelham School Expansion                 ,CS023AC,New Construction Conversion and Renovation,0,B1,Design and Supervision - Consultants Fee,"22,545.00",28/03/2013,C,HAVERSTOCK ASSOCIATES LLP     
161,,,Pelham School Expansion                 ,CS023AC,New Construction Conversion and Renovation,0,B2,Design and Supervision - Site Surveys,"1,490.00",13/12/2012,C,ON CENTRE SURVEYS LTD         
162,,,Pelham School Expansion                 ,CS023AC,New Construction Conversion and Renovation,0,B2,Design and Supervision - Site Surveys,"1,490.00",13/12/2012,C,ON CENTRE SURVEYS LTD         
163,,,Pelham School Expansion                 ,CS023AC,New Construction Conversion and Renovation,0,B2,Design and Supervision - Site Surveys,"2,500.00",25/01/2013,C,ON CENTRE SURVEYS LTD         
164,,,Pelham School Expansion                 ,CS023AC,New Construction Conversion and Renovation,0,B2,Design and Supervision - Site Surveys,"2,575.00",28/03/2013,C,YES ENGINEERING               
165,,,St Ann's Primary Phase                  ,CS032AA,Vehicles Plant Equipment and Machinery,0,D3,Equipment,"9,070.00",09/04/2013,C,REDACTED
166,,,Wimbledon Chase DCSF grant              ,CS033AA,New Construction Conversion and Renovation,0,B4,Site Works - Contractor,"51,000.00",03/04/2013,C,GEE CONSTRUCTION LTD          
167,,,Poplar Permanent Expansion              ,CS034AB,New Construction Conversion and Renovation,0,B1,Design and Supervision - Consultants Fee,920,28/03/2013,C,EIGHT ASSOCIATES              
168,,,Poplar Permanent Expansion              ,CS034AB,New Construction Conversion and Renovation,0,B1,Design and Supervision - Consultants Fee,"21,293.13",28/03/2013,C,PELLINGS LLP                  
169,,,Poplar Permanent Expansion              ,CS034AB,New Construction Conversion and Renovation,0,B2,Design and Supervision - Site Surveys,"1,751.80",28/03/2013,C,KEEGANS LIMITED               
170,,,Poplar Permanent Expansion              ,CS034AB,New Construction Conversion and Renovation,0,B2,Design and Supervision - Site Surveys,"1,944.00",28/03/2013,C,MLM MULTIDISCIPLINARY CONSULT.
171,,,Poplar Permanent Expansion              ,CS034AB,New Construction Conversion and Renovation,0,B2,Design and Supervision - Site Surveys,"5,722.50",19/04/2013,C,JMP CONSULTANTS LTD           
172,,,Liberty expansion                       ,CS036AB,New Construction Conversion and Renovation,0,B1,Design and Supervision - Consultants Fee,"7,081.40",28/03/2013,C,ATKINS LIMITED                
173,,,Liberty expansion                       ,CS036AB,New Construction Conversion and Renovation,0,B1,Design and Supervision - Consultants Fee,"11,514.31",28/03/2013,C,ATKINS LIMITED                
174,,,Liberty expansion                       ,CS036AB,New Construction Conversion and Renovation,0,B4,Site Works - Contractor,"42,663.56",13/03/2013,C,R DURTNELL & SONS LTD         
175,,,Singlegate expansion                    ,CS049AA,New Construction Conversion and Renovation,0,B1,Design and Supervision - Consultants Fee,"15,330.00",28/03/2013,C,ATKINS LIMITED                
176,,,Wimbledon Park expansion                ,CS050AA,New Construction Conversion and Renovation,0,B1,Design and Supervision - Consultants Fee,"2,400.00",31/03/2013,C,SYNERGY CPC LLP               
177,,,Wimbledon Park expansion                ,CS050AA,New Construction Conversion and Renovation,0,B4,Site Works - Contractor,"180,290.47",16/04/2013,C,GEE CONSTRUCTION LTD          
178,,,Schools Access Initiative Inc           ,CS050SA,New Construction Conversion and Renovation,0,B4,Site Works - Contractor,"1,405.05",23/03/2013,C,MOY CONSTRUCTION CO LTD       
179,,,Connect to N3 Netwrk NHS Spine          ,CT001EA,New Construction Conversion and Renovation,0,B4,Site Works - Contractor,500,28/03/2013,C,DATA TECHNIQUES               
180,,,Connect to N3 Netwrk NHS Spine          ,CT001EA,New Construction Conversion and Renovation,0,B4,Site Works - Contractor,"1,181.67",28/03/2013,C,DATA TECHNIQUES               
181,,,Disaster recovery                       ,CT003EA,Vehicles Plant Equipment and Machinery,0,D3,Equipment,"6,117.00",27/03/2013,C,ORGANISED COMPUTER SYSTEMS LTD
182,,,Disaster recovery                       ,CT003EA,Vehicles Plant Equipment and Machinery,0,D5,Software,"2,486.26",27/03/2013,C,ORGANISED COMPUTER SYSTEMS LTD
183,,,IT Equipment                            ,CT006EA,Vehicles Plant Equipment and Machinery,0,D3,Equipment,"3,058.50",27/03/2013,C,ORGANISED COMPUTER SYSTEMS LTD
184,,,IT Equipment                            ,CT006EA,Vehicles Plant Equipment and Machinery,0,D3,Equipment,"7,200.00",15/04/2013,C,VIGLEN LIMITED                
185,,,IT Equipment                            ,CT006EA,Vehicles Plant Equipment and Machinery,0,D3,Equipment,"9,723.00",27/03/2013,C,ORGANISED COMPUTER SYSTEMS LTD
186,,,IT Equipment                            ,CT006EA,Vehicles Plant Equipment and Machinery,0,D5,Software,835.63,27/03/2013,C,ORGANISED COMPUTER SYSTEMS LTD
187,,,IT Equipment                            ,CT006EA,Vehicles Plant Equipment and Machinery,0,D5,Software,"3,472.89",27/03/2013,C,ORGANISED COMPUTER SYSTEMS LTD
188,,,IT Equipment                            ,CT006EA,Other Capital Expenditure,0,E3,Miscellaneous Capital Expenditure,900,28/03/2013,C,SCALABLE COMMUNICATIONS PLC   
189,,,IT Strategy - unallocated               ,CT007EW,Other Capital Expenditure,0,E3,Miscellaneous Capital Expenditure,"9,020.00",28/03/2013,C,NEC (UK) LTD                  
190,,,Stability Networks                      ,CT012ED,Vehicles Plant Equipment and Machinery,0,D5,Software,"53,947.50",28/03/2013,C,COMPUTERLAND                  
191,,,PCIDSS                                  ,CT012EE,Other Capital Expenditure,0,E3,Miscellaneous Capital Expenditure,"1,212.40",28/03/2013,C,CIVICA UK LIMITED             
192,Central Services,Council tax collection,Local Taxation Services,E02100,Support Services,Corporate Services,GB16,Legal,754.5,27/03/2013,R,WELBECK LAW LLP               
193,Central Services,Council tax collection,Local Taxation Bailiffs,E02101,Supplies & Services           ,Services                      ,DF18,Bailiffs' fees,800,26/04/2013,R,REDACTED
194,Central Services,Council tax collection,Local Taxation Bailiffs,E02101,Supplies & Services           ,Services                      ,DF18,Bailiffs' fees,"2,400.00",16/04/2013,R,MAGRATH SECURITY              
195,Central Services,SupS Payroll,Payroll,E02140,Third Party Payments          ,Private Contractors           ,EH10,Contract Payments,"5,486.38",27/02/2013,R,LONDON BOROUGH OF SUTTON      
196,Central Services,SupS DOF,AD Customer Services,E02180,Employees                     ,Indirect Employee Expenses    ,AB57,External Training Costs,796,09/04/2013,R,HBINFO LTD                    
197,Central Services,SupS DOF,AD Customer Services,E02180,Employees                     ,Indirect Employee Expenses    ,AB57,External Training Costs,"4,030.00",20/02/2013,R,CIPFA                         
198,Central Services,SupS Facilities,Civic Centre,E02222,Third Party Payments          ,Private Contractors           ,EH02,Miscellaneous Hired Services,"1,440.11",14/04/2013,R,PHS GROUP PLC                 
199,Central Services,SupS Facilities,Civic Centre,E02222,Third Party Payments          ,Private Contractors           ,EH10,Contract Payments,"1,701.96",02/04/2013,R,ISS COLLECTIONS LTD           
200,Central Services,SupS Facilities,Facilities,E02231,Premises Related Expenditure  ,RepairsAlterations&MtceOfBldgs,BA02,Energy Conservation,"185,000.00",27/03/2013,R,MITIE TECHNICAL FACILITIES MGT
201,Central Services,SupS Facilities,Facilities,E02231,Premises Related Expenditure  ,RepairsAlterations&MtceOfBldgs,BA06,Repairs & Maintenance General,"3,100.00",10/04/2013,R,FORBO FLOORING UK LTD         
202,Central Services,SupS Facilities,Facilities,E02231,Premises Related Expenditure  ,RepairsAlterations&MtceOfBldgs,BA06,Repairs & Maintenance General,"3,115.76",07/08/2012,R,SALTASH ENTERPRISES LTD       
203,Central Services,SupS Facilities,Facilities,E02231,Premises Related Expenditure  ,RepairsAlterations&MtceOfBldgs,BA06,Repairs & Maintenance General,"6,720.00",08/04/2013,R,FORBO FLOORING UK LTD         
204,Central Services,SupS Facilities,Facilities,E02231,Premises Related Expenditure  ,RepairsAlterations&MtceOfBldgs,BA89,Fire Safety Risk Assessment,"3,457.32",31/03/2013,R,FIRST CHOICE FACILITIES PLC   
205,Central Services,SupS Facilities,Facilities,E02231,Premises Related Expenditure  ,RepairsAlterations&MtceOfBldgs,BA90,Water Hygiene,939,02/04/2013,R,HYDRO-X WATER TREATMENT LTD   
206,Central Services,SupS Facilities,Facilities,E02231,Supplies & Services           ,Services                      ,DF09,Miscellaneous Fees,"1,290.00",12/04/2013,R,ENVIRONMENT AGENCY            
207,Central Services,SupS Facilities,Facilities,E02231,Supplies & Services           ,Services                      ,DF09,Miscellaneous Fees,"9,500.00",14/03/2013,R,LONDON BOROUGH HARINGEY       
208,Central Services,SupS Facilities,Facilities,E02231,Supplies & Services           ,Comms and Computing           ,DG09,Computer Purchases - Misc,"2,067.00",09/04/2013,R,VIGLEN LIMITED                
209,Central Services,SupS Facilities,Corporate Services Buildings,E02240,Premises Related Expenditure  ,RepairsAlterations&MtceOfBldgs,BA01,DDM - General Building,687.73,07/08/2012,R,SALTASH ENTERPRISES LTD       
210,Central Services,SupS Facilities,Corporate Services Buildings,E02240,Premises Related Expenditure  ,RepairsAlterations&MtceOfBldgs,BA05,DDM - Electrical,"3,341.00",09/04/2013,R,PHS COMPLIANCE                
211,Central Services,SupS Facilities,Corporate Services Buildings,E02240,Premises Related Expenditure  ,RepairsAlterations&MtceOfBldgs,BA05,DDM - Electrical,"5,109.93",01/04/2013,R,ADT FIRE AND SECURITY PLC     
212,Central Services,SupS Facilities,Corporate Services Buildings,E02240,Premises Related Expenditure  ,Energy Costs                  ,BB03,Gas (incl. Butane),583.2,15/02/2013,R,KENT COUNTY COUNCIL           
213,Central Services,SupS Facilities,Corporate Services Buildings,E02240,Premises Related Expenditure  ,Energy Costs                  ,BB03,Gas (incl. Butane),606.13,28/03/2013,R,KENT COUNTY COUNCIL           
214,Central Services,SupS Facilities,Corporate Services Buildings,E02240,Premises Related Expenditure  ,Energy Costs                  ,BB03,Gas (incl. Butane),615.23,28/03/2013,R,KENT COUNTY COUNCIL           
215,Central Services,SupS Facilities,Corporate Services Buildings,E02240,Premises Related Expenditure  ,Energy Costs                  ,BB03,Gas (incl. Butane),678.76,13/03/2013,R,KENT COUNTY COUNCIL           
216,Central Services,SupS Facilities,Corporate Services Buildings,E02240,Premises Related Expenditure  ,Energy Costs                  ,BB03,Gas (incl. Butane),719.59,28/03/2013,R,KENT COUNTY COUNCIL           
217,Central Services,SupS Facilities,Corporate Services Buildings,E02240,Premises Related Expenditure  ,Energy Costs                  ,BB03,Gas (incl. Butane),751.75,28/03/2013,R,KENT COUNTY COUNCIL           
218,Central Services,SupS Facilities,Corporate Services Buildings,E02240,Premises Related Expenditure  ,Water Services                ,BE01,Use of Water (Metered),"1,045.78",22/03/2013,R,SUTTON AND EAST SURREY WATER  
219,Central Services,SupS Facilities,Corporate Services Buildings,E02240,Premises Related Expenditure  ,Water Services                ,BE01,Use of Water (Metered),"1,145.46",22/03/2013,R,SUTTON AND EAST SURREY WATER  
220,Childrens & Education Services,Strategic Management,CSF Buildings,E02256,Premises Related Expenditure  ,RepairsAlterations&MtceOfBldgs,BA01,DDM - General Building,530,26/03/2013,R,PJ HARVEY & CO LTD            
221,Childrens & Education Services,Strategic Management,CSF Buildings,E02256,Premises Related Expenditure  ,RepairsAlterations&MtceOfBldgs,BA01,DDM - General Building,"1,465.00",04/04/2013,R,STP SOLUTIONS                 
222,Childrens & Education Services,Strategic Management,CSF Buildings,E02256,Premises Related Expenditure  ,RepairsAlterations&MtceOfBldgs,BA01,DDM - General Building,"3,680.00",18/04/2013,R,STP SOLUTIONS                 
223,Cultural Env Reg&Plan Services,Parks & Open Spaces,E & R Buildings,E02344,Premises Related Expenditure  ,RepairsAlterations&MtceOfBldgs,BA01,DDM - General Building,"1,000.00",07/08/2012,R,SALTASH ENTERPRISES LTD       
224,Cultural Env Reg&Plan Services,Parks & Open Spaces,E & R Buildings,E02344,Premises Related Expenditure  ,RepairsAlterations&MtceOfBldgs,BA01,DDM - General Building,"1,393.55",07/08/2012,R,SALTASH ENTERPRISES LTD       
225,Cultural Env Reg&Plan Services,Parks & Open Spaces,E & R Buildings,E02344,Premises Related Expenditure  ,RepairsAlterations&MtceOfBldgs,BA05,DDM - Electrical,"1,413.26",13/02/2013,R,CHUBB ELECTRONIC SEC. SYSTEMS 
226,Adult Social Care,PS u65 Day Care,C & H Buildings,E02345,Premises Related Expenditure  ,RepairsAlterations&MtceOfBldgs,BA01,DDM - General Building,802.73,02/04/2013,R,SALTASH ENTERPRISES LTD       
227,Cultural Env Reg&Plan Services,Parks & Open Spaces,Leisure Buildings,E02350,Premises Related Expenditure  ,RepairsAlterations&MtceOfBldgs,BA01,DDM - General Building,571.88,02/04/2013,R,SALTASH ENTERPRISES LTD       
228,Cultural Env Reg&Plan Services,Parks & Open Spaces,Leisure Buildings,E02350,Premises Related Expenditure  ,RepairsAlterations&MtceOfBldgs,BA01,DDM - General Building,"1,123.23",02/04/2013,R,SALTASH ENTERPRISES LTD       
229,Cultural Env Reg&Plan Services,Parks & Open Spaces,Leisure Buildings,E02350,Premises Related Expenditure  ,RepairsAlterations&MtceOfBldgs,BA01,DDM - General Building,"1,349.71",02/04/2013,R,SALTASH ENTERPRISES LTD       
230,Cultural Env Reg&Plan Services,Parks & Open Spaces,Leisure Buildings,E02350,Premises Related Expenditure  ,RepairsAlterations&MtceOfBldgs,BA01,DDM - General Building,"1,535.33",02/04/2013,R,SALTASH ENTERPRISES LTD       
231,Cultural Env Reg&Plan Services,Parks & Open Spaces,Leisure Buildings,E02350,Premises Related Expenditure  ,RepairsAlterations&MtceOfBldgs,BA01,DDM - General Building,"5,093.22",02/04/2013,R,SALTASH ENTERPRISES LTD       
232,Cultural Env Reg&Plan Services,Parks & Open Spaces,Leisure Buildings,E02350,Premises Related Expenditure  ,RepairsAlterations&MtceOfBldgs,BA03,DDM - Mechanical,600,23/01/2013,R,CHIMNEY MAINTENANCE LTD       
233,Cultural Env Reg&Plan Services,Parks & Open Spaces,Leisure Buildings,E02350,Premises Related Expenditure  ,RepairsAlterations&MtceOfBldgs,BA03,DDM - Mechanical,600,23/01/2013,R,CHIMNEY MAINTENANCE LTD       
234,Cultural Env Reg&Plan Services,Parks & Open Spaces,Leisure Buildings,E02350,Premises Related Expenditure  ,RepairsAlterations&MtceOfBldgs,BA05,DDM - Electrical,531.73,17/04/2013,R,COFELY LIMITED                
235,Cultural Env Reg&Plan Services,Parks & Open Spaces,Leisure Buildings,E02350,Premises Related Expenditure  ,RepairsAlterations&MtceOfBldgs,BA05,DDM - Electrical,547.5,31/03/2013,R,BLOUNT SHUTTERS LIMITED       
236,Central Services,SupS DOF,Director of Corporate Services,E04060,Supplies & Services           ,Services                      ,DF11,Counsel's fees,500,27/03/2013,R,REDACTED
237,Central Services,SupS DOF,AD RESOURCES,E04061,Employees                     ,Direct Employee Expenses      ,AA17,Agency Staff & Casual Paymts,"14,250.00",10/04/2013,R,REDACTED
238,Central Services,SupS DOF,AD RESOURCES,E04061,Supplies & Services           ,Services                      ,DF03,Consultants,"1,200.00",03/04/2013,R,UNISERVE CONSULTING LIMITED   
239,Central Services,SupS DOF,AD RESOURCES,E04061,Supplies & Services           ,Services                      ,DF03,Consultants,"4,356.45",03/04/2013,R,UNISERVE CONSULTING LIMITED   
240,Central Services,SupS DOF,AD RESOURCES,E04061,Supplies & Services           ,Services                      ,DF03,Consultants,"10,400.00",03/04/2013,R,UNISERVE CONSULTING LIMITED   
241,Central Services,SupS DOF,AD RESOURCES,E04061,Supplies & Services           ,Grants and Subscriptions      ,DJ04,Subscriptions,"5,330.00",21/02/2013,R,CIPFA BUSINESS LTD            
242,Housing Services,Fraud Investigation,Benefits Investigation Section,E05103,Employees                     ,Indirect Employee Expenses    ,AB57,External Training Costs,890,28/03/2013,R,ITS TRAINING (UK) LTD         
243,Central Services,SupS  Risk and Insurance,Insurance Premiums & Funding,E05161,Supplies & Services           ,Services                      ,DF74,Insurance Premiums,530,11/04/2013,R,ZURICH INSURANCE COMPANY      
244,Central Services,SupS  Risk and Insurance,Insurance Premiums & Funding,E05161,Supplies & Services           ,Services                      ,DF74,Insurance Premiums,"1,335.40",11/04/2013,R,ZURICH INSURANCE COMPANY      
245,Central Services,SupS  Risk and Insurance,Insurance Premiums & Funding,E05161,Supplies & Services           ,Services                      ,DF74,Insurance Premiums,"3,498.00",11/04/2013,R,ZURICH INSURANCE COMPANY      
246,Central Services,SupS  Risk and Insurance,Insurance Premiums & Funding,E05161,Supplies & Services           ,Services                      ,DF74,Insurance Premiums,"4,033.52",11/04/2013,R,ZURICH INSURANCE COMPANY      
247,Central Services,SupS  Risk and Insurance,Insurance Premiums & Funding,E05161,Supplies & Services           ,Services                      ,DF74,Insurance Premiums,"459,065.69",11/04/2013,R,ZURICH INSURANCE COMPANY      
248,Central Services,SupS  Risk and Insurance,Insurance Premiums & Funding,E05161,Supplies & Services           ,Comms and Computing           ,DG02,Software Licences,"11,209.00",01/04/2013,R,JC APPLICATIONS DEVELOPMENT   
249,Central Services,SupS Corporate Finance,Corporate Accountancy,E06209,Supplies & Services           ,Services                      ,DF58,Audit Fee,"5,250.00",13/03/2013,R,ERNST & YOUNG LLP             
250,Central Services,SupS Corporate Finance,Corporate Accountancy,E06209,Supplies & Services           ,Grants and Subscriptions      ,DJ04,Subscriptions,"3,000.00",05/04/2013,R,PRICEWATERHOUSE COOPERS       
251,Central Services,SupS Corporate Finance,Corporate Accountancy,E06209,Supplies & Services           ,Grants and Subscriptions      ,DJ04,Subscriptions,"7,090.00",21/02/2013,R,CIPFA BUSINESS LTD            
252,Central Services,SupS Corporate Finance,Accounts Payable,E06212,Supplies & Services           ,Comms and Computing           ,DG09,Computer Purchases - Misc,"1,150.00",28/03/2013,R,PROACTIS GROUP LTD            
253,Central Services,SupS Strategic Finance,Business Planning,E06221,Supplies & Services           ,Equip Furniture/Materials     ,DA09,Equip-Purchases,586.5,05/04/2013,R,UNIQUE OFFICE SOLUTIONS LTD   
254,Central Services,SupS Strategic Finance,Treasury & Insurance,E06222,Employees                     ,Direct Employee Expenses      ,AA17,Agency Staff & Casual Paymts,"2,250.00",11/02/2013,R,RANDSTAD FIN & PROF LTD.      
255,Central Services,SupS Strategic Finance,Treasury & Insurance,E06222,Employees                     ,Direct Employee Expenses      ,AA17,Agency Staff & Casual Paymts,"4,800.00",11/02/2013,R,RANDSTAD FIN & PROF LTD.      
256,Central Services,SupS Strategic Finance,Treasury & Insurance,E06222,Employees                     ,Direct Employee Expenses      ,AA17,Agency Staff & Casual Paymts,"7,050.00",04/03/2013,R,RANDSTAD FIN & PROF LTD.      
257,Central Services,SupS Strategic Finance,Treasury & Insurance,E06222,Employees                     ,Direct Employee Expenses      ,AA17,Agency Staff & Casual Paymts,"9,870.00",28/03/2013,R,RANDSTAD FIN & PROF LTD.      
258,Central Services,GENERATED ACCOUNT,Establishments' Cash Collect'n,E06226,Third Party Payments          ,Private Contractors           ,EH02,Miscellaneous Hired Services,534.95,28/02/2013,R,LOOMIS UK LTD                 
259,Central Services,GENERATED ACCOUNT,Establishments' Cash Collect'n,E06226,Third Party Payments          ,Private Contractors           ,EH02,Miscellaneous Hired Services,544.05,28/03/2013,R,LOOMIS UK LTD                 
260,Central Services,GENERATED ACCOUNT,Establishments' Cash Collect'n,E06226,Third Party Payments          ,Private Contractors           ,EH02,Miscellaneous Hired Services,585,28/03/2013,R,LOOMIS UK LTD                 
261,Central Services,SupS DOF,Service Accountancy,E06227,Employees                     ,Direct Employee Expenses      ,AA17,Agency Staff & Casual Paymts,"3,450.00",28/03/2013,R,RANDSTAD FIN & PROF LTD.      
262,Central Services,SupS DOF,Service Accountancy,E06227,Employees                     ,Direct Employee Expenses      ,AA17,Agency Staff & Casual Paymts,"4,600.00",28/03/2013,R,RANDSTAD FIN & PROF LTD.      
263,Central Services,SupS DOF,Service Accountancy,E06227,Employees                     ,Direct Employee Expenses      ,AA17,Agency Staff & Casual Paymts,"4,600.00",26/02/2013,R,RANDSTAD FIN & PROF LTD.      
264,Central Services,SupS DOF,Service Accountancy,E06227,Supplies & Services           ,Grants and Subscriptions      ,DJ04,Subscriptions,795,15/04/2013,R,DEBTCO ONE LTD                
265,Central Services,SupS DOF,Service Accountancy,E06227,Supplies & Services           ,Grants and Subscriptions      ,DJ04,Subscriptions,"2,385.00",21/02/2013,R,CIPFA BUSINESS LTD            
266,Central Services,SupS DOF,Service Accountancy,E06227,Supplies & Services           ,Grants and Subscriptions      ,DJ04,Subscriptions,"11,738.00",18/02/2013,R,SECTOR TREASURY SERVICES LTD  
267,Central Services,SupS DOF,Service Accountancy,E06227,Transfer Payments             ,Housing Benefits              ,FA50,Burial and Cremation,"1,125.50",02/04/2013,R,F.W. PAINE                    
268,Central Services,SupS Financial Systems,Business Solutions.,E06240,Supplies & Services           ,Services                      ,DF01,General Office Expenses,"16,900.00",25/04/2013,R,MARKS AND SPENCER GIFT VOUCHER
269,Central Services,SupS Legal,AD CORPORATE GOVERNANCE,E10279,Employees                     ,Indirect Employee Expenses    ,AB57,External Training Costs,620,27/03/2013,R,AUDITWARE SYSTEMS LTD         
270,Central Services,SupS Legal,Legal Services,E10282,Supplies & Services           ,Services                      ,DF28,Court Fees,515,08/04/2013,R,REDACTED
271,Central Services,SupS Legal,Legal Services,E10282,Supplies & Services           ,Services                      ,DF28,Court Fees,700,16/04/2013,R,REDACTED
272,Central Services,SupS Legal,Legal Services,E10282,Supplies & Services           ,Services                      ,DF28,Court Fees,"2,120.00",16/04/2013,R,REDACTED
273,Central Services,SupS Legal,Legal Services,E10282,Supplies & Services           ,Services                      ,DF28,Court Fees,"2,225.00",16/04/2013,R,REDACTED
274,Central Services,SupS Legal,Legal Services,E10282,Supplies & Services           ,Services                      ,DF28,Court Fees,"7,800.00",09/04/2013,R,REDACTED
275,Central Services,SupS Legal,Shared Legal Service,E10288,Supplies & Services           ,Services                      ,DF09,Miscellaneous Fees,569.56,31/03/2013,R,WINCANTON RECORDS MANAGEMENT  
276,Central Services,SupS Legal,Shared Legal Service,E10288,Supplies & Services           ,Services                      ,DF95,Services from Provider,649.7,24/04/2013,R,KENT COUNTY COUNCIL           
277,Central Services,SupS Legal,Shared Legal Service,E10288,Supplies & Services           ,Comms and Computing           ,DG04,Postage - General,750,31/03/2013,R,DX NETWORK SERVICES LTD       
278,Central Services,SupS Legal,Richmond Legal,E10289,Supplies & Services           ,Services                      ,DF11,Counsel's fees,500,02/04/2013,R,REDACTED
279,Central Services,SupS Legal,Richmond Legal,E10289,Supplies & Services           ,Services                      ,DF11,Counsel's fees,525,27/03/2013,R,REDACTED
280,Central Services,SupS Legal,Richmond Legal,E10289,Supplies & Services           ,Services                      ,DF11,Counsel's fees,525,27/03/2013,R,REDACTED
281,Central Services,SupS Legal,Richmond Legal,E10289,Supplies & Services           ,Services                      ,DF11,Counsel's fees,"1,185.00",10/04/2013,R,REDACTED
282,Central Services,SupS Legal,Richmond Legal,E10289,Supplies & Services           ,Services                      ,DF11,Counsel's fees,"1,225.00",27/03/2013,R,REDACTED
283,Central Services,SupS Legal,Richmond Legal,E10289,Supplies & Services           ,Services                      ,DF11,Counsel's fees,"1,470.00",16/04/2013,R,REDACTED
284,Central Services,SupS Legal,Richmond Legal,E10289,Supplies & Services           ,Services                      ,DF11,Counsel's fees,"2,968.75",27/03/2013,R,REDACTED
285,Central Services,SupS Legal,Richmond Legal,E10289,Supplies & Services           ,Services                      ,DF11,Counsel's fees,"3,096.67",25/03/2013,R,REDACTED
286,Central Services,SupS Legal,Richmond Legal,E10289,Supplies & Services           ,Services                      ,DF14,Doctors and other fees,"1,062.50",28/02/2013,R,N&S CONSULTANTS LTD           
287,Central Services,SupS Legal,Richmond Legal,E10289,Supplies & Services           ,Services                      ,DF14,Doctors and other fees,"1,062.50",26/02/2013,R,N&S CONSULTANTS LTD           
288,Central Services,SupS Legal,Richmond Legal,E10289,Supplies & Services           ,Services                      ,DF95,Services from Provider,663,31/01/2013,R,SHARPE PRITCHARD SOLICITORS   
289,Central Services,SupS Legal,Richmond Legal,E10289,Supplies & Services           ,Services                      ,DF95,Services from Provider,750,06/02/2013,R,RUSSELL -  COOKE LLP          
290,Central Services,SupS Legal,Richmond Legal,E10289,Supplies & Services           ,Services                      ,DF95,Services from Provider,"1,336.50",06/02/2013,R,RUSSELL -  COOKE LLP          
291,Central Services,SupS Legal,Richmond Legal,E10289,Supplies & Services           ,Services                      ,DF95,Services from Provider,"1,354.00",31/03/2013,R,SHARPE PRITCHARD SOLICITORS   
292,Central Services,SupS Legal,Richmond Legal,E10289,Supplies & Services           ,Services                      ,DF95,Services from Provider,"1,510.90",27/03/2013,R,GOODWIN MALATESTA LEGAL SERVS 
293,Central Services,SupS IT,AD Business Improvement,E14358,Employees                     ,Direct Employee Expenses      ,AA17,Agency Staff & Casual Paymts,"4,020.00",11/04/2013,R,REDACTED
294,Central Services,SupS IT,AD Business Improvement,E14358,Employees                     ,Direct Employee Expenses      ,AA17,Agency Staff & Casual Paymts,"4,020.00",22/04/2013,R,REDACTED
295,Central Services,SupS IT,BI IT Projects,E14360,Employees                     ,Direct Employee Expenses      ,AA17,Agency Staff & Casual Paymts,975.03,10/04/2013,R,NUMBER 10 INTERIM LTD         
296,Central Services,SupS IT,BI IT Projects,E14360,Employees                     ,Direct Employee Expenses      ,AA17,Agency Staff & Casual Paymts,"1,300.04",03/04/2013,R,NUMBER 10 INTERIM LTD         
297,Central Services,SupS IT,BI IT Projects,E14360,Employees                     ,Direct Employee Expenses      ,AA17,Agency Staff & Casual Paymts,"1,462.55",07/04/2013,R,NUMBER 10 INTERIM LTD         
298,Central Services,SupS IT,BI IT Projects,E14360,Employees                     ,Direct Employee Expenses      ,AA17,Agency Staff & Casual Paymts,"1,508.98",29/03/2013,R,NUMBER 10 INTERIM LTD         
299,Central Services,SupS IT,BI IT Projects,E14360,Employees                     ,Direct Employee Expenses      ,AA17,Agency Staff & Casual Paymts,"1,625.05",15/04/2013,R,NUMBER 10 INTERIM LTD         
300,Central Services,SupS IT,BI IT Projects,E14360,Employees                     ,Direct Employee Expenses      ,AA17,Agency Staff & Casual Paymts,"1,625.05",15/04/2013,R,NUMBER 10 INTERIM LTD         
301,Central Services,SupS IT,BI IT Projects,E14360,Employees                     ,Direct Employee Expenses      ,AA17,Agency Staff & Casual Paymts,"1,625.05",19/04/2013,R,NUMBER 10 INTERIM LTD         
302,Central Services,SupS IT,Systems & Projects,E14366,Supplies & Services           ,Comms and Computing           ,DG09,Computer Purchases - Misc,683.05,20/03/2013,R,OCE (UK) LTD                  
303,Central Services,SupS IT,Systems & Projects,E14366,Supplies & Services           ,Comms and Computing           ,DG63,Software Licences - Data,"14,878.46",14/02/2013,R,CIVICA UK LIMITED             
304,Central Services,SupS IT,Systems & Projects,E14366,Supplies & Services           ,Grants and Subscriptions      ,DJ04,Subscriptions,"1,450.00",02/04/2013,R,IDEA                          
305,Central Services,SupS IT,Operations & Telecomms,E14367,Premises Related Expenditure  ,RepairsAlterations&MtceOfBldgs,BA05,DDM - Electrical,720,31/03/2013,R,NETWORK SOLUTIONS INC         
306,Central Services,SupS IT,Operations & Telecomms,E14367,Supplies & Services           ,Comms and Computing           ,DG15,Network Maintenance,"3,449.00",07/02/2013,R,BTS                           
307,Central Services,SupS IT,Operations & Telecomms,E14367,Supplies & Services           ,Comms and Computing           ,DG54,Corporate Telephones,"3,908.02",22/04/2013,R,SCALABLE COMMUNICATIONS PLC   
308,Central Services,SupS IT,Distributed Services,E14368,Supplies & Services           ,Comms and Computing           ,DG63,Software Licences - Data,815.2,16/04/2013,R,HANDD BUSINESS SOLUTIONS LTD  
309,Central Services,SupS IT,Distributed Services,E14368,Supplies & Services           ,Comms and Computing           ,DG63,Software Licences - Data,"1,162.80",16/04/2013,R,FORDWAY LTD                   
310,Central Services,SupS IT,Distributed Services,E14368,Supplies & Services           ,Comms and Computing           ,DG63,Software Licences - Data,"1,417.50",16/04/2013,R,HORNBILL SERVICE MGMENT LTD   
311,Central Services,SupS IT,Distributed Services,E14368,Supplies & Services           ,Comms and Computing           ,DG63,Software Licences - Data,"1,417.50",16/04/2013,R,HORNBILL SERVICE MGMENT LTD   
312,Central Services,SupS IT,Distributed Services,E14368,Supplies & Services           ,Comms and Computing           ,DG63,Software Licences - Data,"1,525.00",16/04/2013,R,AMTEC COMPUTER CORPORATION LTD
313,Central Services,SupS IT,Distributed Services,E14368,Supplies & Services           ,Comms and Computing           ,DG63,Software Licences - Data,"2,362.50",16/04/2013,R,HORNBILL SERVICE MGMENT LTD   
314,Central Services,SupS IT,Distributed Services,E14368,Supplies & Services           ,Comms and Computing           ,DG63,Software Licences - Data,"2,362.50",16/04/2013,R,HORNBILL SERVICE MGMENT LTD   
315,Central Services,SupS IT,Distributed Services,E14368,Supplies & Services           ,Comms and Computing           ,DG63,Software Licences - Data,"2,690.15",16/04/2013,R,HANDD BUSINESS SOLUTIONS LTD  
316,Central Services,SupS IT,Distributed Services,E14368,Supplies & Services           ,Comms and Computing           ,DG63,Software Licences - Data,"4,789.68",08/04/2013,R,PITNEY BOWES SOFTWARE LTD     
317,Central Services,SupS IT,Distributed Services,E14368,Supplies & Services           ,Comms and Computing           ,DG63,Software Licences - Data,"15,186.00",28/03/2013,R,FORDWAY LTD                   
318,Central Services,SupS IT,Distributed Services,E14368,Supplies & Services           ,Comms and Computing           ,DG63,Software Licences - Data,"16,380.00",18/03/2013,R,SOFTCAT LTD                   
319,Central Services,SupS IT,Distributed Services,E14368,Supplies & Services           ,Comms and Computing           ,DG63,Software Licences - Data,"22,147.02",16/04/2013,R,HORNBILL SERVICE MGMENT LTD   
320,Central Services,SupS IT,Distributed Services,E14368,Supplies & Services           ,Comms and Computing           ,DG63,Software Licences - Data,"37,965.00",28/03/2013,R,NORTHGATE ARINSO              
321,Central Services,SupS IT,Distributed Services,E14368,Supplies & Services           ,Comms and Computing           ,DG63,Software Licences - Data,"43,496.00",16/04/2013,R,FORDWAY LTD                   
322,Central Services,SupS IT,Corp Saving-IT Consolidation,E14370,Premises Related Expenditure  ,RepairsAlterations&MtceOfBldgs,BA01,DDM - General Building,975,08/04/2013,R,NEC (UK) LTD                  
323,Central Services,SupS IT,Corp Saving-IT Consolidation,E14370,Premises Related Expenditure  ,RepairsAlterations&MtceOfBldgs,BA01,DDM - General Building,975,08/04/2013,R,NEC (UK) LTD                  
324,Central Services,SupS IT,Corp Saving-IT Consolidation,E14370,Premises Related Expenditure  ,RepairsAlterations&MtceOfBldgs,BA01,DDM - General Building,975,08/04/2013,R,NEC (UK) LTD                  
325,Central Services,SupS IT,Corp Saving-IT Consolidation,E14370,Premises Related Expenditure  ,RepairsAlterations&MtceOfBldgs,BA01,DDM - General Building,975,08/04/2013,R,NEC (UK) LTD                  
326,Central Services,SupS IT,Corp Saving-IT Consolidation,E14370,Premises Related Expenditure  ,RepairsAlterations&MtceOfBldgs,BA01,DDM - General Building,"1,300.00",08/04/2013,R,NEC (UK) LTD                  
327,Central Services,SupS IT,Corp Saving-IT Consolidation,E14370,Premises Related Expenditure  ,RepairsAlterations&MtceOfBldgs,BA01,DDM - General Building,"1,300.00",08/04/2013,R,NEC (UK) LTD                  
328,Central Services,SupS IT,Corp Saving-IT Consolidation,E14370,Premises Related Expenditure  ,RepairsAlterations&MtceOfBldgs,BA01,DDM - General Building,"1,300.00",08/04/2013,R,NEC (UK) LTD                  
329,Central Services,SupS IT,Corp Saving-IT Consolidation,E14370,Premises Related Expenditure  ,RepairsAlterations&MtceOfBldgs,BA01,DDM - General Building,"1,300.00",08/04/2013,R,NEC (UK) LTD                  
330,Central Services,SupS IT,Corp Saving-IT Consolidation,E14370,Premises Related Expenditure  ,RepairsAlterations&MtceOfBldgs,BA01,DDM - General Building,"1,430.00",08/04/2013,R,NEC (UK) LTD                  
331,Central Services,SupS IT,Corp Saving-IT Consolidation,E14370,Premises Related Expenditure  ,RepairsAlterations&MtceOfBldgs,BA01,DDM - General Building,"1,500.00",04/04/2013,R,REDACTED
332,Central Services,SupS IT,Corp Saving-IT Consolidation,E14370,Premises Related Expenditure  ,RepairsAlterations&MtceOfBldgs,BA01,DDM - General Building,"3,250.00",08/04/2013,R,NEC (UK) LTD                  
333,Central Services,SupS IT,Business Systems - Deptl Supt,E14377,Supplies & Services           ,Services                      ,DF03,Consultants,"23,000.00",25/03/2013,R,PEER SECURITIES LTD           
334,Central Services,SupS IT,Business Systems - Deptl Supt,E14377,Supplies & Services           ,Comms and Computing           ,DG15,Network Maintenance,540,31/03/2013,R,NETWORK SOLUTIONS INC         
335,Central Services,SupS IT,Business Systems - Deptl Supt,E14377,Supplies & Services           ,Comms and Computing           ,DG15,Network Maintenance,880,31/03/2013,R,NETWORK SOLUTIONS INC         
336,Central Services,SupS IT,Business Systems - Deptl Supt,E14377,Supplies & Services           ,Comms and Computing           ,DG15,Network Maintenance,"2,202.00",27/03/2013,R,INCOM TELECOMMUNICATIONS      
337,Central Services,SupS IT,Business Systems - Deptl Supt,E14377,Supplies & Services           ,Comms and Computing           ,DG15,Network Maintenance,"2,217.00",27/03/2013,R,INCOM TELECOMMUNICATIONS      
338,Central Services,SupS IT,Business Systems - Deptl Supt,E14377,Supplies & Services           ,Comms and Computing           ,DG15,Network Maintenance,"13,440.00",27/03/2013,R,INCOM TELECOMMUNICATIONS      
339,Central Services,SupS IT,Business Systems - Deptl Supt,E14377,Supplies & Services           ,Comms and Computing           ,DG15,Network Maintenance,"65,250.00",28/03/2013,R,COMPUTERLAND                  
340,Central Services,SupS IT,Business Systems - Deptl Supt,E14377,Supplies & Services           ,Comms and Computing           ,DG57,Licences Microsoft Select,"36,000.00",26/03/2013,R,CIVICA SERVICES LTD           
341,Central Services,SupS IT,Business Systems - Deptl Supt,E14377,Supplies & Services           ,Comms and Computing           ,DG57,Licences Microsoft Select,"206,984.32",28/03/2013,R,CIVICA SERVICES LTD           
342,Cultural Env Reg&Plan Services,Mgt & Support (Env),Senior Mgt. - E.S.C.,G00100,Supplies & Services           ,Services                      ,DF11,Counsel's fees,500,26/03/2013,R,REDACTED
343,Cultural Env Reg&Plan Services,Mgt & Support (Env),Senior Mgt. - E.S.C.,G00100,Supplies & Services           ,Services                      ,DF11,Counsel's fees,595,28/02/2013,R,REDACTED
344,Highways & Transport Services,Hwys/Rds (struct) not split,C'way & F'way Mtce,G00121,Supplies & Services           ,Grants and Subscriptions      ,DJ04,Subscriptions,"2,178.00",23/04/2013,R,THOMSON REUTERS               
345,Highways & Transport Services,Street Lighting.,Street Lighting .,G00260,Third Party Payments          ,Private Contractors           ,EH01,Miscellaneous Contrct Services,538.55,28/03/2013,R,MAY GURNEY LTD T/A CARTLEDGE  
346,Highways & Transport Services,Street Lighting.,Street Lighting .,G00260,Third Party Payments          ,Private Contractors           ,EH01,Miscellaneous Contrct Services,644,11/04/2013,R,UK POWER NETWORKS (OPERATIONS)
347,Highways & Transport Services,Street Lighting.,Street Lighting .,G00260,Third Party Payments          ,Private Contractors           ,EH01,Miscellaneous Contrct Services,644,03/04/2013,R,UK POWER NETWORKS (OPERATIONS)
348,Highways & Transport Services,Street Lighting.,Street Lighting .,G00260,Third Party Payments          ,Private Contractors           ,EH01,Miscellaneous Contrct Services,661,11/04/2013,R,UK POWER NETWORKS (OPERATIONS)
349,Highways & Transport Services,Street Lighting.,Street Lighting .,G00260,Third Party Payments          ,Private Contractors           ,EH01,Miscellaneous Contrct Services,661,15/04/2013,R,UK POWER NETWORKS (OPERATIONS)
350,Highways & Transport Services,Street Lighting.,Street Lighting .,G00260,Third Party Payments          ,Private Contractors           ,EH01,Miscellaneous Contrct Services,"4,571.41",28/03/2013,R,MAY GURNEY LTD T/A CARTLEDGE  
351,Highways & Transport Services,Street Lighting.,Street Lighting .,G00260,Third Party Payments          ,Private Contractors           ,EH01,Miscellaneous Contrct Services,"5,000.00",28/03/2013,R,MAY GURNEY LTD T/A CARTLEDGE  
352,Highways & Transport Services,Street Lighting.,Street Lighting .,G00260,Third Party Payments          ,Private Contractors           ,EH01,Miscellaneous Contrct Services,"6,947.06",28/03/2013,R,MAY GURNEY LTD T/A CARTLEDGE  
353,Highways & Transport Services,Street Lighting.,Street Lighting .,G00260,Third Party Payments          ,Private Contractors           ,EH01,Miscellaneous Contrct Services,"7,000.92",28/03/2013,R,MAY GURNEY LTD T/A CARTLEDGE  
354,Highways & Transport Services,Street Lighting.,Street Lighting .,G00260,Third Party Payments          ,Private Contractors           ,EH01,Miscellaneous Contrct Services,"8,000.00",28/03/2013,R,MAY GURNEY LTD T/A CARTLEDGE  
355,Highways & Transport Services,Street Lighting.,Street Lighting .,G00260,Third Party Payments          ,Private Contractors           ,EH01,Miscellaneous Contrct Services,"10,000.00",28/03/2013,R,MAY GURNEY LTD T/A CARTLEDGE  
356,Highways & Transport Services,Off-street parking,Coombe Lane,G00292,Premises Related Expenditure  ,Rents                         ,BC01,Miscellaneous Rents,"7,335.62",27/02/2013,R,CAPITA SYMONDS LTD            
357,Highways & Transport Services,Off-street parking,"St. Mks Rd, Multi Sty",G00308,Premises Related Expenditure  ,Rents                         ,BC01,Miscellaneous Rents,"5,500.00",01/04/2013,R,ASDA STORES LTD               
358,Highways & Transport Services,Parking Enforcement not split,Civil Enforcement Officers,G00330,Premises Related Expenditure  ,Rents                         ,BC01,Miscellaneous Rents,605.42,22/03/2013,R,REDACTED
359,Highways & Transport Services,Parking Enforcement not split,Civil Enforcement Officers,G00330,Supplies & Services           ,Clothing Unfrms Laundry       ,DC02,Clothing & Uniforms,"1,760.00",05/04/2013,R,VOUCHER SYSTEMS LIMITED       
360,Highways & Transport Services,Parking Enforcement not split,Operational Running Costs,G00331,Supplies & Services           ,Equip Furniture/Materials     ,DA09,Equip-Purchases,"2,457.40",15/04/2013,R,TEASDALE GROUP LTD            
361,Highways & Transport Services,Parking Enforcement not split,Operational Running Costs,G00331,Supplies & Services           ,Comms and Computing           ,DG61,Computer Servs Special,650,22/04/2013,R,IMPERIAL CIVIL ENFORC.SOLUT.  
362,Highways & Transport Services,Parking Enforcement not split,Operational Running Costs,G00331,Supplies & Services           ,Comms and Computing           ,DG61,Computer Servs Special,"65,638.76",11/03/2013,R,IMPERIAL CIVIL ENFORC.SOLUT.  
363,Highways & Transport Services,Parking Enforcement not split,Operational Running Costs,G00331,Third Party Payments          ,Other Agencies                ,EJ58,Parking Cttee for London,"1,500.00",22/04/2013,R,LONDON COUNCILS               
364,Highways & Transport Services,Parking Enforcement not split,Operational Running Costs,G00331,Third Party Payments          ,Other Agencies                ,EJ58,Parking Cttee for London,"18,255.41",10/04/2013,R,LONDON COUNCILS               
365,Highways & Transport Services,Parking Enforcement not split,Operational Running Costs,G00331,Third Party Payments          ,Other Agencies                ,EJ58,Parking Cttee for London,"30,000.00",16/04/2013,R,HMCTS                         
366,Highways & Transport Services,Hwys/Rds (struct) not split,NRSWA Permitting (LoPS),G00385,Employees                     ,Indirect Employee Expenses    ,AB57,External Training Costs,536,08/04/2013,R,WILBAR ASSOCIATES             
367,Cultural Env Reg&Plan Services,Street Clean - Not highways,Street Cleansing (Inc. Gully),G00492,Supplies & Services           ,Equip Furniture/Materials     ,DA08,Tools-Purchase,"1,377.70",16/04/2013,R,BELL BRUSH                    
368,Cultural Env Reg&Plan Services,Waste Disposal (not separated),Waste Disposal .,G00550,Third Party Payments          ,Private Contractors           ,EH04,Accommodation Based Support,"251,533.01",27/03/2013,R,KINGSTON CORPORATION          
369,Cultural Env Reg&Plan Services,Waste Disposal (not separated),Waste Disposal .,G00550,Third Party Payments          ,Private Contractors           ,EH10,Contract Payments,"26,734.92",27/03/2013,R,KINGSTON CORPORATION          
370,Cultural Env Reg&Plan Services,Waste Disposal (not separated),Waste Disposal .,G00550,Third Party Payments          ,Private Contractors           ,EH66,Clinical Waste Disposal,793.96,31/03/2013,R,S.GRUNDON (WASTE) LTD.        
371,Cultural Env Reg&Plan Services,Waste Disposal (not separated),Waste Disposal .,G00550,Third Party Payments          ,Private Contractors           ,EH96,Gen Waste - Alt.  Contractor  ,"2,124.46",31/03/2013,R,CORY ENVIRONMENTAL LIMITED    
372,Cultural Env Reg&Plan Services,Civic Amenity Sites,Garth Road Site,G00580,Third Party Payments          ,Private Contractors           ,EH63,Paper Haulage,"9,045.24",27/03/2013,R,KINGSTON CORPORATION          
373,Highways & Transport Services,Hwys/Rds (struct) not split,Grass Cut/Tr Mtce,G00600,Premises Related Expenditure  ,Ground Maintenance Costs      ,BL03,Maintenance of Grounds,525.92,25/03/2013,R,VEOLIA ES (UK) LIMITED        
374,Highways & Transport Services,Hwys/Rds (struct) not split,Grass Cut/Tr Mtce,G00600,Premises Related Expenditure  ,Ground Maintenance Costs      ,BL03,Maintenance of Grounds,855.98,25/03/2013,R,VEOLIA ES (UK) LIMITED        
375,Highways & Transport Services,Hwys/Rds (struct) not split,Grass Cut/Tr Mtce,G00600,Premises Related Expenditure  ,Ground Maintenance Costs      ,BL03,Maintenance of Grounds,937.79,25/03/2013,R,VEOLIA ES (UK) LIMITED        
376,Highways & Transport Services,Hwys/Rds (struct) not split,Grass Cut/Tr Mtce,G00600,Premises Related Expenditure  ,Ground Maintenance Costs      ,BL03,Maintenance of Grounds,"1,612.73",25/03/2013,R,VEOLIA ES (UK) LIMITED        
377,Highways & Transport Services,Hwys/Rds (struct) not split,Grass Cut/Tr Mtce,G00600,Premises Related Expenditure  ,Ground Maintenance Costs      ,BL03,Maintenance of Grounds,"1,852.67",25/03/2013,R,VEOLIA ES (UK) LIMITED        
378,Highways & Transport Services,Hwys/Rds (struct) not split,Grass Cut/Tr Mtce,G00600,Premises Related Expenditure  ,Ground Maintenance Costs      ,BL03,Maintenance of Grounds,"2,291.89",25/03/2013,R,VEOLIA ES (UK) LIMITED        
379,Highways & Transport Services,Hwys/Rds (struct) not split,Grass Cut/Tr Mtce,G00600,Premises Related Expenditure  ,Ground Maintenance Costs      ,BL03,Maintenance of Grounds,"2,556.91",25/03/2013,R,VEOLIA ES (UK) LIMITED        
380,Cultural Env Reg&Plan Services,Public Health,Dog Control.,G00620,Third Party Payments          ,Private Contractors           ,EH02,Miscellaneous Hired Services,"3,398.00",02/04/2013,R,NOAH'S ARK ENVIRONMENTAL SERV.
381,Cultural Env Reg&Plan Services,Recycling (Collection),Recycling Activities,G00640,Third Party Payments          ,Private Contractors           ,EH01,Miscellaneous Contrct Services,"26,278.49",27/03/2013,R,KINGSTON CORPORATION          
382,Cultural Env Reg&Plan Services,Recycling (Collection),Recycling Activities,G00640,Third Party Payments          ,Private Contractors           ,EH03,Term Contract,568.1,29/03/2013,R,BIFFA WASTE SERVICES LTD      
383,Cultural Env Reg&Plan Services,Recycling (Collection),Recycling Activities,G00640,Third Party Payments          ,Private Contractors           ,EH03,Term Contract,"51,430.33",21/02/2013,R,KINGSTON CORPORATION          
384,Cultural Env Reg&Plan Services,Recycling (Collection),Recycling Activities,G00640,Third Party Payments          ,Private Contractors           ,EH10,Contract Payments,"12,477.93",27/03/2013,R,KINGSTON CORPORATION          
385,Cultural Env Reg&Plan Services,Recycling (Collection),Recycling Activities,G00640,Third Party Payments          ,Private Contractors           ,EH18,Disposal of Kitchen Waste,"21,124.70",21/02/2013,R,KINGSTON CORPORATION          
386,Cultural Env Reg&Plan Services,Recycling (Collection),Recycling Activities,G00640,Third Party Payments          ,Private Contractors           ,EH19,Dano Drum Contract Sita Haulag,"3,861.42",27/03/2013,R,KINGSTON CORPORATION          
387,Cultural Env Reg&Plan Services,Recycling (Collection),Recycling Activities,G00640,Third Party Payments          ,Private Contractors           ,EH61,Green Waste Disposal,"2,692.65",31/03/2013,R,VIRIDOR WASTE KENT LTD        
388,Cultural Env Reg&Plan Services,Recycling (Collection),Recycling Activities,G00640,Third Party Payments          ,Private Contractors           ,EH63,Paper Haulage,"49,546.36",21/02/2013,R,KINGSTON CORPORATION          
389,Cultural Env Reg&Plan Services,Recycling (Collection),Recycling Activities,G00640,Third Party Payments          ,Private Contractors           ,EH94,Waste Disposal - Alt. Site,"5,578.44",27/03/2013,R,KINGSTON CORPORATION          
390,Cultural Env Reg&Plan Services,Recycling (Collection),Recycling Collection,G00645,Supplies & Services           ,Equip Furniture/Materials     ,DA32,Wheeled Bins,652.5,21/03/2013,R,SPIDER UK LTD                 
391,Cultural Env Reg&Plan Services,Household Waste Collection,Refuse Collection (Operations),G00661,Employees                     ,Direct Employee Expenses      ,AA96,SALARY SACRIFICE (TEACHERS),833.33,12/04/2013,R,F.W.EVANS CYCLES (UK) LTD.    
392,Cultural Env Reg&Plan Services,Street Clean - Not highways,Waste Enforcement,G00680,Supplies & Services           ,Services                      ,DF30,Activities Programme,"1,060.00",22/03/2013,R,DANGEROUS THEATRE COMPANY     
393,Cultural Env Reg&Plan Services,Inspect/Enforce (Consumer P),Trading Standards,G00690,Supplies & Services           ,Equip Furniture/Materials     ,DA09,Equip-Purchases,"4,292.50",28/03/2013,R,ALTIA SOLUTIONS               
394,Cultural Env Reg&Plan Services,Inspect/Enforce (Consumer P),Trading Standards,G00690,Supplies & Services           ,Grants and Subscriptions      ,DJ04,Subscriptions,600,26/03/2013,R,LEXIS NEXIS                   
395,Cultural Env Reg&Plan Services,Inspect/Enforce (Consumer P),Trading Standards,G00690,Supplies & Services           ,Grants and Subscriptions      ,DJ04,Subscriptions,605,26/03/2013,R,LEXIS NEXIS                   
396,Cultural Env Reg&Plan Services,Inspect/Enforce (Consumer P),Trading Standards,G00690,Supplies & Services           ,Grants and Subscriptions      ,DJ04,Subscriptions,710.52,25/03/2013,R,LEXIS NEXIS                   
397,Cultural Env Reg&Plan Services,Inspect/Enforce (Consumer P),Trading Standards,G00690,Supplies & Services           ,Grants and Subscriptions      ,DJ04,Subscriptions,754.48,25/03/2013,R,LEXIS NEXIS                   
398,Cultural Env Reg&Plan Services,Inspect/Enforce (Consumer P),Trading Standards,G00690,Supplies & Services           ,Grants and Subscriptions      ,DJ04,Subscriptions,"2,355.50",12/04/2013,R,LOTSA CIC                     
399,Cultural Env Reg&Plan Services,Public Health,Merton Winter Warmer Programme,G00696,Supplies & Services           ,Equip Furniture/Materials     ,DA09,Equip-Purchases,"1,426.00",27/03/2013,R,TUNSTALL TELECOM LIMITED      
400,Cultural Env Reg&Plan Services,Public Health,Merton Winter Warmer Programme,G00696,Supplies & Services           ,Equip Furniture/Materials     ,DA09,Equip-Purchases,"10,416.00",27/03/2013,R,TUNSTALL TELECOM LIMITED      
401,Cultural Env Reg&Plan Services,Food Safety,Health & Safety,G00697,Supplies & Services           ,Grants and Subscriptions      ,DJ04,Subscriptions,"1,505.00",05/03/2013,R,LEXIS NEXIS                   
402,Cultural Env Reg&Plan Services,Mortuaries,Mortuary,G00700,Third Party Payments          ,Other Local Authorities       ,EB01,Payments to OLAs,"6,949.00",13/03/2013,R,ST GEORGES HEALTHCARE TRUST   
403,Cultural Env Reg&Plan Services,Mortuaries,Mortuary,G00700,Third Party Payments          ,Other Local Authorities       ,EB01,Payments to OLAs,"15,723.00",13/03/2013,R,ST GEORGES HEALTHCARE TRUST   
404,Cultural Env Reg&Plan Services,Housing Standards,AIR QUALITY GRANT (DEFRA) MB,G00732,Third Party Payments          ,Private Contractors           ,EH02,Miscellaneous Hired Services,"9,392.00",27/03/2013,R,ATKINS LTD                    
405,Cultural Env Reg&Plan Services,Community Develop't (Plg),N.E.Mitcham Community Asso,G18250,Supplies & Services           ,Grants and Subscriptions      ,DJ01,Grants,"18,640.00",15/04/2013,R,NORTH EAST MITCHAM COMM ASSOC 
406,Cultural Env Reg&Plan Services,Community Develop't (Plg),Colliers Wood Community Asso,G18251,Supplies & Services           ,Grants and Subscriptions      ,DJ01,Grants,"6,170.00",15/04/2013,R,COLLIERS WOOD COMMUNITY ASSOC 
407,Cultural Env Reg&Plan Services,Community Develop't (Plg),S Mitcham Community Asso,G18253,Supplies & Services           ,Grants and Subscriptions      ,DJ01,Grants,"19,320.00",15/04/2013,R,SOUTH MITCHAM COMMUNITY ASS   
408,Cultural Env Reg&Plan Services,Community Develop't (Plg),S Wimbledon Community Asso,G18254,Supplies & Services           ,Grants and Subscriptions      ,DJ01,Grants,"2,735.00",15/04/2013,R,SOUTH WIMBLEDON COMMUNITY ASSO
409,Cultural Env Reg&Plan Services,Community Develop't (Plg),St. Marks Family Cntr,G18257,Supplies & Services           ,Grants and Subscriptions      ,DJ01,Grants,"27,050.00",15/04/2013,R,ST MARKS FAMILY CENTRE        
410,Cultural Env Reg&Plan Services,Museums & Galleries,Wandle Industrial Museum,G19289,Supplies & Services           ,Grants and Subscriptions      ,DJ01,Grants,"1,975.00",15/04/2013,R,THE WANDLE INDUSTRIAL MUSEUM  
411,Central Services,Grants - Voluntary Groups,Vestry Hall,G19290,Employees                     ,Direct Employee Expenses      ,AA17,Agency Staff & Casual Paymts,"4,611.35",10/04/2013,R,REDACTED
412,Central Services,Grants - Voluntary Groups,Vestry Hall,G19290,Premises Related Expenditure  ,Energy Costs                  ,BB03,Gas (incl. Butane),"1,251.70",11/04/2013,R,KENT COUNTY COUNCIL           
413,Central Services,Grants - Voluntary Groups,Vestry Hall,G19290,Third Party Payments          ,Private Contractors           ,EH02,Miscellaneous Hired Services,"1,430.38",24/04/2013,R,SITA SOUTH EAST LTD           
414,Central Services,Grants - Voluntary Groups,Vestry Hall,G40314,Premises Related Expenditure  ,RepairsAlterations&MtceOfBldgs,BA06,Repairs & Maintenance General,910,17/03/2013,R,REDACTED
415,Central Services,Grants - Voluntary Groups,Vestry Hall,G40314,Premises Related Expenditure  ,RepairsAlterations&MtceOfBldgs,BA06,Repairs & Maintenance General,"1,050.00",27/03/2013,R,DAPPA MRP FLOORING            
416,Central Services,Grants - Voluntary Groups,Vestry Hall,G40314,Premises Related Expenditure  ,RepairsAlterations&MtceOfBldgs,BA06,Repairs & Maintenance General,"1,445.00",27/03/2013,R,DAPPA MRP FLOORING            
417,Central Services,Grants - Voluntary Groups,Vestry Hall,G40314,Premises Related Expenditure  ,RepairsAlterations&MtceOfBldgs,BA06,Repairs & Maintenance General,"5,500.00",28/03/2013,R,REDACTED
418,Central Services,Grants - Voluntary Groups,Vestry Hall,G40314,Premises Related Expenditure  ,Energy Costs                  ,BB03,Gas (incl. Butane),"1,497.70",20/03/2013,R,KENT COUNTY COUNCIL           
419,CS -Oth Operating Inc & Expend,Extraordinary Items & PY Adj.,Edenvale Com Cntr (NE Mitcham),G40316,Premises Related Expenditure  ,RepairsAlterations&MtceOfBldgs,BA01,DDM - General Building,550,02/04/2013,R,SALTASH ENTERPRISES LTD       
420,CS -Oth Operating Inc & Expend,Extraordinary Items & PY Adj.,Edenvale Com Cntr (NE Mitcham),G40316,Premises Related Expenditure  ,RepairsAlterations&MtceOfBldgs,BA01,DDM - General Building,550,02/04/2013,R,SALTASH ENTERPRISES LTD       
421,Cultural Env Reg&Plan Services,BC Regs & Other not split,Building Control,H01100,Supplies & Services           ,Services                      ,DF57,Consulting Engineers Fees,602,01/04/2013,R,BSI                           
422,Cultural Env Reg&Plan Services,DC Advice Apps & Reg not split,Development Control,H01130,Supplies & Services           ,Services                      ,DF02,Misc Advertising/Publicity,549,30/03/2013,R,NEWSQUEST (LONDON)LTD         
423,Cultural Env Reg&Plan Services,DC Advice Apps & Reg not split,Development Control,H01130,Supplies & Services           ,Services                      ,DF02,Misc Advertising/Publicity,702.72,23/03/2013,R,NEWSQUEST (LONDON)LTD         
424,Cultural Env Reg&Plan Services,DC Advice Apps & Reg not split,Development Control,H01130,Supplies & Services           ,Services                      ,DF11,Counsel's fees,975,02/04/2013,R,REDACTED
425,Cultural Env Reg&Plan Services,DC Advice Apps & Reg not split,Development Control,H01130,Supplies & Services           ,Services                      ,DF11,Counsel's fees,"4,550.00",16/04/2013,R,REDACTED
426,Cultural Env Reg&Plan Services,Planning Policy not split,Spatial Policy,H01173,Employees                     ,Indirect Employee Expenses    ,AB57,External Training Costs,600,08/03/2013,R,ASPECT TRAINING               
427,Cultural Env Reg&Plan Services,Planning Policy not split,REGENERATION & INVESTMENT,H01174,Third Party Payments          ,Private Contractors           ,EH10,Contract Payments,"2,000.00",22/04/2013,R,GREENSPACE INFO - GREATER LDN 
428,Cultural Env Reg&Plan Services,Planning Policy not split,Green Deal Pioneer Places,H01185,Supplies & Services           ,Services                      ,DF30,Activities Programme,"9,116.00",01/04/2013,R,SUSTAINABLE MERTON            
429,Cultural Env Reg&Plan Services,Planning Policy not split,Collective Energy Switching,H01186,Supplies & Services           ,Services                      ,DF30,Activities Programme,670,01/04/2013,R,SUSTAINABLE MERTON            
430,Cultural Env Reg&Plan Services,Planning Policy not split,Collective Energy Switching,H01186,Supplies & Services           ,Services                      ,DF30,Activities Programme,"2,147.00",01/04/2013,R,SUSTAINABLE MERTON            
431,CS -Oth Operating Inc & Expend,Extraordinary Items & PY Adj.,MILES RD GENERATOR,H01203,Premises Related Expenditure  ,Rents                         ,BC01,Miscellaneous Rents,"8,000.00",27/02/2013,R,W & R BUXTON LTD PENSION FUND 
432,CS -Oth Operating Inc & Expend,Extraordinary Items & PY Adj.,MILES RD GENERATOR,H01203,Third Party Payments          ,Private Contractors           ,EH02,Miscellaneous Hired Services,"13,750.00",27/03/2013,R,MERTON CHAMBER OF COMMERCE    
433,Cultural Env Reg&Plan Services,Economic Dev (Not separated),(LABGI)-BUSINESS SUPPORT,H01210,Supplies & Services           ,Services                      ,DF03,Consultants,"4,956.30",21/02/2013,R,STUDIO WEAVE LTD              
434,Cultural Env Reg&Plan Services,Economic Dev (Not separated),(LABGI)-BUSINESS SUPPORT,H01210,Supplies & Services           ,Grants and Subscriptions      ,DJ54,Contributions,"1,500.00",28/02/2013,R,EVENTS AND PR LIMITED         
435,Cultural Env Reg&Plan Services,Economic Dev (Not separated),(LABGI)-BUSINESS SUPPORT,H01210,Supplies & Services           ,Grants and Subscriptions      ,DJ54,Contributions,"8,500.00",18/03/2013,R,EVENTS AND PR LIMITED         
436,Cultural Env Reg&Plan Services,Economic Dev (Not separated),(LABGI)-BUSINESS SUPPORT,H01210,Third Party Payments          ,Private Contractors           ,EH02,Miscellaneous Hired Services,"7,500.00",27/03/2013,R,MERTON CHAMBER OF COMMERCE    
437,Cultural Env Reg&Plan Services,Economic Dev (Not separated),TOWN CENTRE MANAGEMENT,H01223,Third Party Payments          ,Private Contractors           ,EH02,Miscellaneous Hired Services,"29,775.50",28/03/2013,R,LANDOLT AND BROWN LTD         
438,CS -Oth Operating Inc & Expend,T/A Vehicle Maintenance etc,Transport-Contract Hire,J01374,Premises Related Expenditure  ,Energy Costs                  ,BB03,Gas (incl. Butane),884.15,11/04/2013,R,KENT COUNTY COUNCIL           
439,CS -Oth Operating Inc & Expend,T/A Vehicle Maintenance etc,Transport-Contract Hire,J01374,Premises Related Expenditure  ,Energy Costs                  ,BB03,Gas (incl. Butane),"1,973.45",20/03/2013,R,KENT COUNTY COUNCIL           
440,CS -Oth Operating Inc & Expend,T/A Vehicle Maintenance etc,Transport-Contract Hire,J01374,Transport Related Expenditure ,Direct Transport Costs        ,CA01,Petrol Derv & Oil,"38,644.62",18/04/2013,R,EMO OILS LTD                  
441,CS -Oth Operating Inc & Expend,T/A Vehicle Maintenance etc,Transport-Contract Hire,J01374,Transport Related Expenditure ,Direct Transport Costs        ,CA01,Petrol Derv & Oil,"39,546.50",03/04/2013,R,EMO OILS LTD                  
442,CS -Oth Operating Inc & Expend,T/A Vehicle Maintenance etc,Transport-Contract Hire,J01374,Transport Related Expenditure ,Direct Transport Costs        ,CA01,Petrol Derv & Oil,"40,122.85",13/03/2013,R,EMO OILS LTD                  
443,CS -Oth Operating Inc & Expend,T/A Vehicle Maintenance etc,Transport-Contract Hire,J01374,Transport Related Expenditure ,Direct Transport Costs        ,CA02,Tyres,990,16/04/2013,R,MORDEN TYRE SERVICES LTD      
444,CS -Oth Operating Inc & Expend,T/A Vehicle Maintenance etc,Transport-Contract Hire,J01374,Transport Related Expenditure ,Direct Transport Costs        ,CA02,Tyres,"1,270.00",15/04/2013,R,MORDEN TYRE SERVICES LTD      
445,CS -Oth Operating Inc & Expend,T/A Vehicle Maintenance etc,Transport-Contract Hire,J01374,Transport Related Expenditure ,Direct Transport Costs        ,CA05,Vehicle MOTs,"2,000.00",22/04/2013,R,V.O.S.A                       
446,CS -Oth Operating Inc & Expend,T/A Vehicle Maintenance etc,Transport-Contract Hire,J01374,Transport Related Expenditure ,Direct Transport Costs        ,CA55,Specialist Maint. (Off Site),556.5,08/04/2013,R,REDACTED
447,CS -Oth Operating Inc & Expend,T/A Vehicle Maintenance etc,Transport-Contract Hire,J01374,Transport Related Expenditure ,Direct Transport Costs        ,CA55,Specialist Maint. (Off Site),590.92,05/04/2013,R,GRAYS TRUCK CENTRE LIMITED    
448,CS -Oth Operating Inc & Expend,T/A Vehicle Maintenance etc,Transport-Contract Hire,J01374,Transport Related Expenditure ,Direct Transport Costs        ,CA55,Specialist Maint. (Off Site),860.38,28/03/2013,R,KINGSLEY COMM COMPONENTS LTD  
449,CS -Oth Operating Inc & Expend,T/A Vehicle Maintenance etc,Transport-Contract Hire,J01374,Transport Related Expenditure ,Direct Transport Costs        ,CA55,Specialist Maint. (Off Site),860.38,28/03/2013,R,KINGSLEY COMM COMPONENTS LTD  
450,CS -Oth Operating Inc & Expend,T/A Vehicle Maintenance etc,Transport-Contract Hire,J01374,Transport Related Expenditure ,Direct Transport Costs        ,CA55,Specialist Maint. (Off Site),"2,000.00",22/04/2013,R,GRV                           
451,CS -Oth Operating Inc & Expend,T/A Vehicle Maintenance etc,Transport-Contract Hire,J01374,Transport Related Expenditure ,Direct Transport Costs        ,CA55,Specialist Maint. (Off Site),"2,072.35",15/04/2013,R,JOHNSTON SWEEPERS LIMITED     
452,CS -Oth Operating Inc & Expend,T/A Vehicle Maintenance etc,Transport-Contract Hire,J01374,Transport Related Expenditure ,Direct Transport Costs        ,CA55,Specialist Maint. (Off Site),"2,240.65",28/03/2013,R,WILSONS AUTOMOBILE & COACHWORK
453,CS -Oth Operating Inc & Expend,T/A Vehicle Maintenance etc,Transport-Contract Hire,J01374,Transport Related Expenditure ,Direct Transport Costs        ,CA56,Specialist Maint. (On Site),600,15/04/2013,R,R.J.H.WELDING                 
454,CS -Oth Operating Inc & Expend,T/A Vehicle Maintenance etc,Transport-Contract Hire,J01374,Transport Related Expenditure ,Direct Transport Costs        ,CA56,Specialist Maint. (On Site),750,15/04/2013,R,R.J.H.WELDING                 
455,CS -Oth Operating Inc & Expend,T/A Vehicle Maintenance etc,Transport-Contract Hire,J01374,Transport Related Expenditure ,Direct Transport Costs        ,CA72,Vehicle Parts,552,09/04/2013,R,GVS HIRE LTD                  
456,CS -Oth Operating Inc & Expend,T/A Vehicle Maintenance etc,Transport-Contract Hire,J01374,Transport Related Expenditure ,Direct Transport Costs        ,CA72,Vehicle Parts,603.12,22/04/2013,R,COMMERCIAL & PLANT LTD        
457,CS -Oth Operating Inc & Expend,T/A Vehicle Maintenance etc,Transport-Contract Hire,J01374,Transport Related Expenditure ,Direct Transport Costs        ,CA72,Vehicle Parts,671.88,15/04/2013,R,REDACTED
458,CS -Oth Operating Inc & Expend,T/A Vehicle Maintenance etc,Transport-Contract Hire,J01374,Transport Related Expenditure ,Direct Transport Costs        ,CA72,Vehicle Parts,"1,104.77",03/04/2013,R,COMMERCIAL & PLANT LTD        
459,CS -Oth Operating Inc & Expend,T/A Vehicle Maintenance etc,Transport-Contract Hire,J01374,Transport Related Expenditure ,Direct Transport Costs        ,CA72,Vehicle Parts,"2,970.00",13/03/2013,R,OPTIMUM OILS LTD              
460,CS -Oth Operating Inc & Expend,T/A Vehicle Maintenance etc,Transport-Contract Hire,J01374,Transport Related Expenditure ,Contract Hire and Op Leasing  ,CC53,Plant Hire for MRCS,700,31/03/2013,R,PHOENIX VEHICLE HIRE LTD      
461,CS -Oth Operating Inc & Expend,T/A Vehicle Maintenance etc,Transport-Contract Hire,J01374,Transport Related Expenditure ,Contract Hire and Op Leasing  ,CC53,Plant Hire for MRCS,700,07/04/2013,R,PHOENIX VEHICLE HIRE LTD      
462,CS -Oth Operating Inc & Expend,T/A Vehicle Maintenance etc,Transport-Contract Hire,J01374,Transport Related Expenditure ,Contract Hire and Op Leasing  ,CC53,Plant Hire for MRCS,740,28/02/2013,R,B&T PLANT HIRE LTD            
463,CS -Oth Operating Inc & Expend,T/A Vehicle Maintenance etc,Transport-Contract Hire,J01374,Transport Related Expenditure ,Contract Hire and Op Leasing  ,CC53,Plant Hire for MRCS,740,31/03/2013,R,B&T PLANT HIRE LTD            
464,CS -Oth Operating Inc & Expend,T/A Vehicle Maintenance etc,Transport-Contract Hire,J01374,Transport Related Expenditure ,Contract Hire and Op Leasing  ,CC53,Plant Hire for MRCS,"1,140.00",02/04/2013,R,GVS HIRE LTD                  
465,CS -Oth Operating Inc & Expend,T/A Vehicle Maintenance etc,Transport-Contract Hire,J01374,Transport Related Expenditure ,Contract Hire and Op Leasing  ,CC53,Plant Hire for MRCS,"2,500.00",29/03/2013,R,NOBLET MUNICIPAL SERVICES LTD 
466,CS -Oth Operating Inc & Expend,T/A Vehicle Maintenance etc,Transport-Contract Hire,J01374,Transport Related Expenditure ,Contract Hire and Op Leasing  ,CC57,Plant Hire for Housing,940,31/03/2013,R,REDACTED
467,CS -Oth Operating Inc & Expend,T/A Vehicle Maintenance etc,Transport-Contract Hire,J01374,Transport Related Expenditure ,Contract Hire and Op Leasing  ,CC59,Plant Hire - Non-Rechargeable ,"1,386.00",28/03/2013,R,BURNT TREE VEHICLE RENTAL     
468,CS -Oth Operating Inc & Expend,T/A Vehicle Maintenance etc,Transport-Contract Hire,J01374,Transport Related Expenditure ,Contract Hire and Op Leasing  ,CC59,Plant Hire - Non-Rechargeable ,"1,386.00",28/03/2013,R,BURNT TREE VEHICLE RENTAL     
469,CS -Oth Operating Inc & Expend,T/A Vehicle Maintenance etc,Transport-Contract Hire,J01374,Transport Related Expenditure ,Contract Hire and Op Leasing  ,CC59,Plant Hire - Non-Rechargeable ,"1,386.00",28/03/2013,R,BURNT TREE VEHICLE RENTAL     
470,CS -Oth Operating Inc & Expend,T/A Vehicle Maintenance etc,Transport-Contract Hire,J01374,Transport Related Expenditure ,Contract Hire and Op Leasing  ,CC59,Plant Hire - Non-Rechargeable ,"2,238.32",31/03/2013,R,REDACTED
471,CS -Oth Operating Inc & Expend,T/A Vehicle Maintenance etc,Transport-Contract Hire,J01374,Transport Related Expenditure ,Contract Hire and Op Leasing  ,CC64,Mini Cab Hire for Education,576,31/03/2013,R,CHEAM STATION CARS            
472,CS -Oth Operating Inc & Expend,T/A Vehicle Maintenance etc,Transport-Contract Hire,J01374,Transport Related Expenditure ,Contract Hire and Op Leasing  ,CC64,Mini Cab Hire for Education,650,31/03/2013,R,CAPITAL CARS                  
473,CS -Oth Operating Inc & Expend,T/A Vehicle Maintenance etc,Transport-Contract Hire,J01374,Transport Related Expenditure ,Contract Hire and Op Leasing  ,CC64,Mini Cab Hire for Education,651,31/03/2013,R,NVCAR HIRE LTD                
474,CS -Oth Operating Inc & Expend,T/A Vehicle Maintenance etc,Transport-Contract Hire,J01374,Transport Related Expenditure ,Contract Hire and Op Leasing  ,CC64,Mini Cab Hire for Education,660,31/03/2013,R,SHERWOOD TRANSPORT GROUP      
475,CS -Oth Operating Inc & Expend,T/A Vehicle Maintenance etc,Transport-Contract Hire,J01374,Transport Related Expenditure ,Contract Hire and Op Leasing  ,CC64,Mini Cab Hire for Education,672,31/03/2013,R,BARCLAYS ASSET & SALES FINANCE
476,CS -Oth Operating Inc & Expend,T/A Vehicle Maintenance etc,Transport-Contract Hire,J01374,Transport Related Expenditure ,Contract Hire and Op Leasing  ,CC64,Mini Cab Hire for Education,680,28/03/2013,R,SILVERBURN FINANCE (UK) LTD   
477,CS -Oth Operating Inc & Expend,T/A Vehicle Maintenance etc,Transport-Contract Hire,J01374,Transport Related Expenditure ,Contract Hire and Op Leasing  ,CC64,Mini Cab Hire for Education,684,28/03/2013,R,SILVERBURN FINANCE (UK) LTD   
478,CS -Oth Operating Inc & Expend,T/A Vehicle Maintenance etc,Transport-Contract Hire,J01374,Transport Related Expenditure ,Contract Hire and Op Leasing  ,CC64,Mini Cab Hire for Education,697.5,30/03/2013,R,AERIAL CAR SERVICES LTD       
479,CS -Oth Operating Inc & Expend,T/A Vehicle Maintenance etc,Transport-Contract Hire,J01374,Transport Related Expenditure ,Contract Hire and Op Leasing  ,CC64,Mini Cab Hire for Education,703.17,28/03/2013,R,GALPINS SERVICE               
480,CS -Oth Operating Inc & Expend,T/A Vehicle Maintenance etc,Transport-Contract Hire,J01374,Transport Related Expenditure ,Contract Hire and Op Leasing  ,CC64,Mini Cab Hire for Education,720,28/03/2013,R,SILVERBURN FINANCE (UK) LTD   
481,CS -Oth Operating Inc & Expend,T/A Vehicle Maintenance etc,Transport-Contract Hire,J01374,Transport Related Expenditure ,Contract Hire and Op Leasing  ,CC64,Mini Cab Hire for Education,725,31/03/2013,R,SHERWOOD TRANSPORT GROUP      
482,CS -Oth Operating Inc & Expend,T/A Vehicle Maintenance etc,Transport-Contract Hire,J01374,Transport Related Expenditure ,Contract Hire and Op Leasing  ,CC64,Mini Cab Hire for Education,740,31/10/2012,R,GALPINS SERVICE               
483,CS -Oth Operating Inc & Expend,T/A Vehicle Maintenance etc,Transport-Contract Hire,J01374,Transport Related Expenditure ,Contract Hire and Op Leasing  ,CC64,Mini Cab Hire for Education,744,31/03/2013,R,NVCAR HIRE LTD                
484,CS -Oth Operating Inc & Expend,T/A Vehicle Maintenance etc,Transport-Contract Hire,J01374,Transport Related Expenditure ,Contract Hire and Op Leasing  ,CC64,Mini Cab Hire for Education,760,28/03/2013,R,GALPINS SERVICE               
485,CS -Oth Operating Inc & Expend,T/A Vehicle Maintenance etc,Transport-Contract Hire,J01374,Transport Related Expenditure ,Contract Hire and Op Leasing  ,CC64,Mini Cab Hire for Education,777.6,28/03/2013,R,KINGSTON ACCESSIBILITY TRAN LT
486,CS -Oth Operating Inc & Expend,T/A Vehicle Maintenance etc,Transport-Contract Hire,J01374,Transport Related Expenditure ,Contract Hire and Op Leasing  ,CC64,Mini Cab Hire for Education,800,28/03/2013,R,GALPINS SERVICE               
487,CS -Oth Operating Inc & Expend,T/A Vehicle Maintenance etc,Transport-Contract Hire,J01374,Transport Related Expenditure ,Contract Hire and Op Leasing  ,CC64,Mini Cab Hire for Education,800,28/03/2013,R,GALPINS SERVICE               
488,CS -Oth Operating Inc & Expend,T/A Vehicle Maintenance etc,Transport-Contract Hire,J01374,Transport Related Expenditure ,Contract Hire and Op Leasing  ,CC64,Mini Cab Hire for Education,807.5,28/03/2013,R,GALPINS SERVICE               
489,CS -Oth Operating Inc & Expend,T/A Vehicle Maintenance etc,Transport-Contract Hire,J01374,Transport Related Expenditure ,Contract Hire and Op Leasing  ,CC64,Mini Cab Hire for Education,818,28/03/2013,R,SILVERBURN FINANCE (UK) LTD   
490,CS -Oth Operating Inc & Expend,T/A Vehicle Maintenance etc,Transport-Contract Hire,J01374,Transport Related Expenditure ,Contract Hire and Op Leasing  ,CC64,Mini Cab Hire for Education,840,31/03/2013,R,BARCLAYS ASSET & SALES FINANCE
491,CS -Oth Operating Inc & Expend,T/A Vehicle Maintenance etc,Transport-Contract Hire,J01374,Transport Related Expenditure ,Contract Hire and Op Leasing  ,CC64,Mini Cab Hire for Education,844.33,28/03/2013,R,GALPINS SERVICE               
492,CS -Oth Operating Inc & Expend,T/A Vehicle Maintenance etc,Transport-Contract Hire,J01374,Transport Related Expenditure ,Contract Hire and Op Leasing  ,CC64,Mini Cab Hire for Education,855,31/03/2013,R,CAPITAL CARS                  
493,CS -Oth Operating Inc & Expend,T/A Vehicle Maintenance etc,Transport-Contract Hire,J01374,Transport Related Expenditure ,Contract Hire and Op Leasing  ,CC64,Mini Cab Hire for Education,855,31/03/2013,R,CAPITAL CARS                  
494,CS -Oth Operating Inc & Expend,T/A Vehicle Maintenance etc,Transport-Contract Hire,J01374,Transport Related Expenditure ,Contract Hire and Op Leasing  ,CC64,Mini Cab Hire for Education,880,30/03/2013,R,AERIAL CAR SERVICES LTD       
495,CS -Oth Operating Inc & Expend,T/A Vehicle Maintenance etc,Transport-Contract Hire,J01374,Transport Related Expenditure ,Contract Hire and Op Leasing  ,CC64,Mini Cab Hire for Education,900,28/03/2013,R,KINGSTON ACCESSIBILITY TRAN LT
496,CS -Oth Operating Inc & Expend,T/A Vehicle Maintenance etc,Transport-Contract Hire,J01374,Transport Related Expenditure ,Contract Hire and Op Leasing  ,CC64,Mini Cab Hire for Education,900,31/03/2013,R,KENDALL CARS                  
497,CS -Oth Operating Inc & Expend,T/A Vehicle Maintenance etc,Transport-Contract Hire,J01374,Transport Related Expenditure ,Contract Hire and Op Leasing  ,CC64,Mini Cab Hire for Education,925,31/03/2013,R,CAPITAL CARS                  
498,CS -Oth Operating Inc & Expend,T/A Vehicle Maintenance etc,Transport-Contract Hire,J01374,Transport Related Expenditure ,Contract Hire and Op Leasing  ,CC64,Mini Cab Hire for Education,960,28/03/2013,R,SILVERBURN FINANCE (UK) LTD   
499,CS -Oth Operating Inc & Expend,T/A Vehicle Maintenance etc,Transport-Contract Hire,J01374,Transport Related Expenditure ,Contract Hire and Op Leasing  ,CC64,Mini Cab Hire for Education,995.74,28/03/2013,R,KINGSTON ACCESSIBILITY TRAN LT
500,CS -Oth Operating Inc & Expend,T/A Vehicle Maintenance etc,Transport-Contract Hire,J01374,Transport Related Expenditure ,Contract Hire and Op Leasing  ,CC64,Mini Cab Hire for Education,998,28/03/2013,R,KINGSTON ACCESSIBILITY TRAN LT
501,CS -Oth Operating Inc & Expend,T/A Vehicle Maintenance etc,Transport-Contract Hire,J01374,Transport Related Expenditure ,Contract Hire and Op Leasing  ,CC64,Mini Cab Hire for Education,"1,000.00",28/03/2013,R,KINGSTON ACCESSIBILITY TRAN LT
502,CS -Oth Operating Inc & Expend,T/A Vehicle Maintenance etc,Transport-Contract Hire,J01374,Transport Related Expenditure ,Contract Hire and Op Leasing  ,CC64,Mini Cab Hire for Education,"1,000.00",31/03/2013,R,CAPITAL CARS                  
503,CS -Oth Operating Inc & Expend,T/A Vehicle Maintenance etc,Transport-Contract Hire,J01374,Transport Related Expenditure ,Contract Hire and Op Leasing  ,CC64,Mini Cab Hire for Education,"1,062.00",28/03/2013,R,KINGSTON ACCESSIBILITY TRAN LT
504,CS -Oth Operating Inc & Expend,T/A Vehicle Maintenance etc,Transport-Contract Hire,J01374,Transport Related Expenditure ,Contract Hire and Op Leasing  ,CC64,Mini Cab Hire for Education,"1,078.00",31/03/2013,R,SHERWOOD TRANSPORT GROUP      
505,CS -Oth Operating Inc & Expend,T/A Vehicle Maintenance etc,Transport-Contract Hire,J01374,Transport Related Expenditure ,Contract Hire and Op Leasing  ,CC64,Mini Cab Hire for Education,"1,120.00",28/03/2013,R,SILVERBURN FINANCE (UK) LTD   
506,CS -Oth Operating Inc & Expend,T/A Vehicle Maintenance etc,Transport-Contract Hire,J01374,Transport Related Expenditure ,Contract Hire and Op Leasing  ,CC64,Mini Cab Hire for Education,"1,133.34",28/03/2013,R,GALPINS SERVICE               
507,CS -Oth Operating Inc & Expend,T/A Vehicle Maintenance etc,Transport-Contract Hire,J01374,Transport Related Expenditure ,Contract Hire and Op Leasing  ,CC64,Mini Cab Hire for Education,"1,170.00",31/03/2013,R,CHEAM STATION CARS            
508,CS -Oth Operating Inc & Expend,T/A Vehicle Maintenance etc,Transport-Contract Hire,J01374,Transport Related Expenditure ,Contract Hire and Op Leasing  ,CC64,Mini Cab Hire for Education,"1,190.00",31/03/2013,R,CAPITAL CARS                  
509,CS -Oth Operating Inc & Expend,T/A Vehicle Maintenance etc,Transport-Contract Hire,J01374,Transport Related Expenditure ,Contract Hire and Op Leasing  ,CC64,Mini Cab Hire for Education,"1,190.00",31/03/2013,R,SHERWOOD TRANSPORT GROUP      
510,CS -Oth Operating Inc & Expend,T/A Vehicle Maintenance etc,Transport-Contract Hire,J01374,Transport Related Expenditure ,Contract Hire and Op Leasing  ,CC64,Mini Cab Hire for Education,"1,190.00",31/03/2013,R,SHERWOOD TRANSPORT GROUP      
511,CS -Oth Operating Inc & Expend,T/A Vehicle Maintenance etc,Transport-Contract Hire,J01374,Transport Related Expenditure ,Contract Hire and Op Leasing  ,CC64,Mini Cab Hire for Education,"1,200.00",28/03/2013,R,SILVERBURN FINANCE (UK) LTD   
512,CS -Oth Operating Inc & Expend,T/A Vehicle Maintenance etc,Transport-Contract Hire,J01374,Transport Related Expenditure ,Contract Hire and Op Leasing  ,CC64,Mini Cab Hire for Education,"1,200.00",31/03/2013,R,SHERWOOD TRANSPORT GROUP      
513,CS -Oth Operating Inc & Expend,T/A Vehicle Maintenance etc,Transport-Contract Hire,J01374,Transport Related Expenditure ,Contract Hire and Op Leasing  ,CC64,Mini Cab Hire for Education,"1,240.00",31/03/2013,R,A STAR TRANSPORT LIMITED      
514,CS -Oth Operating Inc & Expend,T/A Vehicle Maintenance etc,Transport-Contract Hire,J01374,Transport Related Expenditure ,Contract Hire and Op Leasing  ,CC64,Mini Cab Hire for Education,"1,254.00",31/03/2013,R,CAPITAL CARS                  
515,CS -Oth Operating Inc & Expend,T/A Vehicle Maintenance etc,Transport-Contract Hire,J01374,Transport Related Expenditure ,Contract Hire and Op Leasing  ,CC64,Mini Cab Hire for Education,"1,280.00",28/03/2013,R,KINGSTON ACCESSIBILITY TRAN LT
516,CS -Oth Operating Inc & Expend,T/A Vehicle Maintenance etc,Transport-Contract Hire,J01374,Transport Related Expenditure ,Contract Hire and Op Leasing  ,CC64,Mini Cab Hire for Education,"1,292.00",29/03/2013,R,BRUNSWICK CARS LTD            
517,CS -Oth Operating Inc & Expend,T/A Vehicle Maintenance etc,Transport-Contract Hire,J01374,Transport Related Expenditure ,Contract Hire and Op Leasing  ,CC64,Mini Cab Hire for Education,"1,295.00",31/03/2013,R,KENDALL CARS                  
518,CS -Oth Operating Inc & Expend,T/A Vehicle Maintenance etc,Transport-Contract Hire,J01374,Transport Related Expenditure ,Contract Hire and Op Leasing  ,CC64,Mini Cab Hire for Education,"1,298.00",31/03/2013,R,SHERWOOD TRANSPORT GROUP      
519,CS -Oth Operating Inc & Expend,T/A Vehicle Maintenance etc,Transport-Contract Hire,J01374,Transport Related Expenditure ,Contract Hire and Op Leasing  ,CC64,Mini Cab Hire for Education,"1,316.00",31/03/2013,R,CAPITAL CARS                  
520,CS -Oth Operating Inc & Expend,T/A Vehicle Maintenance etc,Transport-Contract Hire,J01374,Transport Related Expenditure ,Contract Hire and Op Leasing  ,CC64,Mini Cab Hire for Education,"1,320.00",28/03/2013,R,SILVERBURN FINANCE (UK) LTD   
521,CS -Oth Operating Inc & Expend,T/A Vehicle Maintenance etc,Transport-Contract Hire,J01374,Transport Related Expenditure ,Contract Hire and Op Leasing  ,CC64,Mini Cab Hire for Education,"1,330.00",31/03/2013,R,BARCLAYS ASSET & SALES FINANCE
522,CS -Oth Operating Inc & Expend,T/A Vehicle Maintenance etc,Transport-Contract Hire,J01374,Transport Related Expenditure ,Contract Hire and Op Leasing  ,CC64,Mini Cab Hire for Education,"1,364.00",31/03/2013,R,NVCAR HIRE LTD                
523,CS -Oth Operating Inc & Expend,T/A Vehicle Maintenance etc,Transport-Contract Hire,J01374,Transport Related Expenditure ,Contract Hire and Op Leasing  ,CC64,Mini Cab Hire for Education,"1,400.00",31/03/2013,R,SHERWOOD TRANSPORT GROUP      
524,CS -Oth Operating Inc & Expend,T/A Vehicle Maintenance etc,Transport-Contract Hire,J01374,Transport Related Expenditure ,Contract Hire and Op Leasing  ,CC64,Mini Cab Hire for Education,"1,400.00",31/03/2013,R,CAPITAL CARS                  
525,CS -Oth Operating Inc & Expend,T/A Vehicle Maintenance etc,Transport-Contract Hire,J01374,Transport Related Expenditure ,Contract Hire and Op Leasing  ,CC64,Mini Cab Hire for Education,"1,404.00",31/03/2013,R,NVCAR HIRE LTD                
526,CS -Oth Operating Inc & Expend,T/A Vehicle Maintenance etc,Transport-Contract Hire,J01374,Transport Related Expenditure ,Contract Hire and Op Leasing  ,CC64,Mini Cab Hire for Education,"1,416.00",31/03/2013,R,NVCAR HIRE LTD                
527,CS -Oth Operating Inc & Expend,T/A Vehicle Maintenance etc,Transport-Contract Hire,J01374,Transport Related Expenditure ,Contract Hire and Op Leasing  ,CC64,Mini Cab Hire for Education,"1,430.00",28/03/2013,R,SILVERBURN FINANCE (UK) LTD   
528,CS -Oth Operating Inc & Expend,T/A Vehicle Maintenance etc,Transport-Contract Hire,J01374,Transport Related Expenditure ,Contract Hire and Op Leasing  ,CC64,Mini Cab Hire for Education,"1,440.00",28/03/2013,R,SILVERBURN FINANCE (UK) LTD   
529,CS -Oth Operating Inc & Expend,T/A Vehicle Maintenance etc,Transport-Contract Hire,J01374,Transport Related Expenditure ,Contract Hire and Op Leasing  ,CC64,Mini Cab Hire for Education,"1,456.00",31/03/2013,R,NVCAR HIRE LTD                
530,CS -Oth Operating Inc & Expend,T/A Vehicle Maintenance etc,Transport-Contract Hire,J01374,Transport Related Expenditure ,Contract Hire and Op Leasing  ,CC64,Mini Cab Hire for Education,"1,480.00",28/03/2013,R,SILVERBURN FINANCE (UK) LTD   
531,CS -Oth Operating Inc & Expend,T/A Vehicle Maintenance etc,Transport-Contract Hire,J01374,Transport Related Expenditure ,Contract Hire and Op Leasing  ,CC64,Mini Cab Hire for Education,"1,480.00",31/03/2013,R,BARCLAYS ASSET & SALES FINANCE
532,CS -Oth Operating Inc & Expend,T/A Vehicle Maintenance etc,Transport-Contract Hire,J01374,Transport Related Expenditure ,Contract Hire and Op Leasing  ,CC64,Mini Cab Hire for Education,"1,480.00",31/03/2013,R,CAPITAL CARS                  
533,CS -Oth Operating Inc & Expend,T/A Vehicle Maintenance etc,Transport-Contract Hire,J01374,Transport Related Expenditure ,Contract Hire and Op Leasing  ,CC64,Mini Cab Hire for Education,"1,485.00",31/03/2013,R,SHERWOOD TRANSPORT GROUP      
534,CS -Oth Operating Inc & Expend,T/A Vehicle Maintenance etc,Transport-Contract Hire,J01374,Transport Related Expenditure ,Contract Hire and Op Leasing  ,CC64,Mini Cab Hire for Education,"1,496.00",31/03/2013,R,BARCLAYS ASSET & SALES FINANCE
535,CS -Oth Operating Inc & Expend,T/A Vehicle Maintenance etc,Transport-Contract Hire,J01374,Transport Related Expenditure ,Contract Hire and Op Leasing  ,CC64,Mini Cab Hire for Education,"1,520.00",31/03/2013,R,BARCLAYS ASSET & SALES FINANCE
536,CS -Oth Operating Inc & Expend,T/A Vehicle Maintenance etc,Transport-Contract Hire,J01374,Transport Related Expenditure ,Contract Hire and Op Leasing  ,CC64,Mini Cab Hire for Education,"1,583.60",28/03/2013,R,KINGSTON ACCESSIBILITY TRAN LT
537,CS -Oth Operating Inc & Expend,T/A Vehicle Maintenance etc,Transport-Contract Hire,J01374,Transport Related Expenditure ,Contract Hire and Op Leasing  ,CC64,Mini Cab Hire for Education,"1,599.20",28/03/2013,R,KINGSTON ACCESSIBILITY TRAN LT
538,CS -Oth Operating Inc & Expend,T/A Vehicle Maintenance etc,Transport-Contract Hire,J01374,Transport Related Expenditure ,Contract Hire and Op Leasing  ,CC64,Mini Cab Hire for Education,"1,638.00",31/03/2013,R,NVCAR HIRE LTD                
539,CS -Oth Operating Inc & Expend,T/A Vehicle Maintenance etc,Transport-Contract Hire,J01374,Transport Related Expenditure ,Contract Hire and Op Leasing  ,CC64,Mini Cab Hire for Education,"1,680.00",31/03/2013,R,NVCAR HIRE LTD                
540,CS -Oth Operating Inc & Expend,T/A Vehicle Maintenance etc,Transport-Contract Hire,J01374,Transport Related Expenditure ,Contract Hire and Op Leasing  ,CC64,Mini Cab Hire for Education,"1,680.00",31/03/2013,R,CAPITAL CARS                  
541,CS -Oth Operating Inc & Expend,T/A Vehicle Maintenance etc,Transport-Contract Hire,J01374,Transport Related Expenditure ,Contract Hire and Op Leasing  ,CC64,Mini Cab Hire for Education,"1,680.00",28/03/2013,R,SILVERBURN FINANCE (UK) LTD   
542,CS -Oth Operating Inc & Expend,T/A Vehicle Maintenance etc,Transport-Contract Hire,J01374,Transport Related Expenditure ,Contract Hire and Op Leasing  ,CC64,Mini Cab Hire for Education,"1,749.60",28/03/2013,R,KINGSTON ACCESSIBILITY TRAN LT
543,CS -Oth Operating Inc & Expend,T/A Vehicle Maintenance etc,Transport-Contract Hire,J01374,Transport Related Expenditure ,Contract Hire and Op Leasing  ,CC64,Mini Cab Hire for Education,"1,790.80",31/03/2013,R,SHERWOOD TRANSPORT GROUP      
544,CS -Oth Operating Inc & Expend,T/A Vehicle Maintenance etc,Transport-Contract Hire,J01374,Transport Related Expenditure ,Contract Hire and Op Leasing  ,CC64,Mini Cab Hire for Education,"1,824.00",31/03/2013,R,BARCLAYS ASSET & SALES FINANCE
545,CS -Oth Operating Inc & Expend,T/A Vehicle Maintenance etc,Transport-Contract Hire,J01374,Transport Related Expenditure ,Contract Hire and Op Leasing  ,CC64,Mini Cab Hire for Education,"1,880.00",31/03/2013,R,CAPITAL CARS                  
546,CS -Oth Operating Inc & Expend,T/A Vehicle Maintenance etc,Transport-Contract Hire,J01374,Transport Related Expenditure ,Contract Hire and Op Leasing  ,CC64,Mini Cab Hire for Education,"1,920.00",28/03/2013,R,SILVERBURN FINANCE (UK) LTD   
547,CS -Oth Operating Inc & Expend,T/A Vehicle Maintenance etc,Transport-Contract Hire,J01374,Transport Related Expenditure ,Contract Hire and Op Leasing  ,CC64,Mini Cab Hire for Education,"1,920.00",28/03/2013,R,KINGSTON ACCESSIBILITY TRAN LT
548,CS -Oth Operating Inc & Expend,T/A Vehicle Maintenance etc,Transport-Contract Hire,J01374,Transport Related Expenditure ,Contract Hire and Op Leasing  ,CC64,Mini Cab Hire for Education,"1,920.00",31/03/2013,R,BARCLAYS ASSET & SALES FINANCE
549,CS -Oth Operating Inc & Expend,T/A Vehicle Maintenance etc,Transport-Contract Hire,J01374,Transport Related Expenditure ,Contract Hire and Op Leasing  ,CC64,Mini Cab Hire for Education,"1,920.00",28/03/2013,R,SILVERBURN FINANCE (UK) LTD   
550,CS -Oth Operating Inc & Expend,T/A Vehicle Maintenance etc,Transport-Contract Hire,J01374,Transport Related Expenditure ,Contract Hire and Op Leasing  ,CC64,Mini Cab Hire for Education,"1,920.00",28/03/2013,R,SILVERBURN FINANCE (UK) LTD   
551,CS -Oth Operating Inc & Expend,T/A Vehicle Maintenance etc,Transport-Contract Hire,J01374,Transport Related Expenditure ,Contract Hire and Op Leasing  ,CC64,Mini Cab Hire for Education,"1,947.00",31/03/2013,R,SHERWOOD TRANSPORT GROUP      
552,CS -Oth Operating Inc & Expend,T/A Vehicle Maintenance etc,Transport-Contract Hire,J01374,Transport Related Expenditure ,Contract Hire and Op Leasing  ,CC64,Mini Cab Hire for Education,"1,958.00",28/03/2013,R,KINGSTON ACCESSIBILITY TRAN LT
553,CS -Oth Operating Inc & Expend,T/A Vehicle Maintenance etc,Transport-Contract Hire,J01374,Transport Related Expenditure ,Contract Hire and Op Leasing  ,CC64,Mini Cab Hire for Education,"1,960.00",28/03/2013,R,KINGSTON ACCESSIBILITY TRAN LT
554,CS -Oth Operating Inc & Expend,T/A Vehicle Maintenance etc,Transport-Contract Hire,J01374,Transport Related Expenditure ,Contract Hire and Op Leasing  ,CC64,Mini Cab Hire for Education,"2,100.00",31/03/2013,R,SHERWOOD TRANSPORT GROUP      
555,CS -Oth Operating Inc & Expend,T/A Vehicle Maintenance etc,Transport-Contract Hire,J01374,Transport Related Expenditure ,Contract Hire and Op Leasing  ,CC64,Mini Cab Hire for Education,"2,120.00",31/03/2013,R,CAPITAL CARS                  
556,CS -Oth Operating Inc & Expend,T/A Vehicle Maintenance etc,Transport-Contract Hire,J01374,Transport Related Expenditure ,Contract Hire and Op Leasing  ,CC64,Mini Cab Hire for Education,"2,158.00",28/03/2013,R,KINGSTON ACCESSIBILITY TRAN LT
557,CS -Oth Operating Inc & Expend,T/A Vehicle Maintenance etc,Transport-Contract Hire,J01374,Transport Related Expenditure ,Contract Hire and Op Leasing  ,CC64,Mini Cab Hire for Education,"2,204.00",31/03/2013,R,CAPITAL CARS                  
558,CS -Oth Operating Inc & Expend,T/A Vehicle Maintenance etc,Transport-Contract Hire,J01374,Transport Related Expenditure ,Contract Hire and Op Leasing  ,CC64,Mini Cab Hire for Education,"2,380.00",31/03/2013,R,CAPITAL CARS                  
559,CS -Oth Operating Inc & Expend,T/A Vehicle Maintenance etc,Transport-Contract Hire,J01374,Transport Related Expenditure ,Contract Hire and Op Leasing  ,CC64,Mini Cab Hire for Education,"2,380.00",31/03/2013,R,SHERWOOD TRANSPORT GROUP      
560,CS -Oth Operating Inc & Expend,T/A Vehicle Maintenance etc,Transport-Contract Hire,J01374,Transport Related Expenditure ,Contract Hire and Op Leasing  ,CC64,Mini Cab Hire for Education,"2,398.00",28/03/2013,R,KINGSTON ACCESSIBILITY TRAN LT
561,CS -Oth Operating Inc & Expend,T/A Vehicle Maintenance etc,Transport-Contract Hire,J01374,Transport Related Expenditure ,Contract Hire and Op Leasing  ,CC64,Mini Cab Hire for Education,"2,458.00",28/03/2013,R,KINGSTON ACCESSIBILITY TRAN LT
562,CS -Oth Operating Inc & Expend,T/A Vehicle Maintenance etc,Transport-Contract Hire,J01374,Transport Related Expenditure ,Contract Hire and Op Leasing  ,CC64,Mini Cab Hire for Education,"2,480.00",28/03/2013,R,KINGSTON ACCESSIBILITY TRAN LT
563,CS -Oth Operating Inc & Expend,T/A Vehicle Maintenance etc,Transport-Contract Hire,J01374,Transport Related Expenditure ,Contract Hire and Op Leasing  ,CC64,Mini Cab Hire for Education,"2,592.00",31/03/2013,R,CAPITAL CARS                  
564,CS -Oth Operating Inc & Expend,T/A Vehicle Maintenance etc,Transport-Contract Hire,J01374,Transport Related Expenditure ,Contract Hire and Op Leasing  ,CC64,Mini Cab Hire for Education,"2,600.00",31/03/2013,R,BARCLAYS ASSET & SALES FINANCE
565,CS -Oth Operating Inc & Expend,T/A Vehicle Maintenance etc,Transport-Contract Hire,J01374,Transport Related Expenditure ,Contract Hire and Op Leasing  ,CC64,Mini Cab Hire for Education,"2,669.60",28/03/2013,R,KINGSTON ACCESSIBILITY TRAN LT
566,CS -Oth Operating Inc & Expend,T/A Vehicle Maintenance etc,Transport-Contract Hire,J01374,Transport Related Expenditure ,Contract Hire and Op Leasing  ,CC64,Mini Cab Hire for Education,"2,672.00",31/03/2013,R,NVCAR HIRE LTD                
567,CS -Oth Operating Inc & Expend,T/A Vehicle Maintenance etc,Transport-Contract Hire,J01374,Transport Related Expenditure ,Contract Hire and Op Leasing  ,CC64,Mini Cab Hire for Education,"2,760.00",31/03/2013,R,NVCAR HIRE LTD                
568,CS -Oth Operating Inc & Expend,T/A Vehicle Maintenance etc,Transport-Contract Hire,J01374,Transport Related Expenditure ,Contract Hire and Op Leasing  ,CC64,Mini Cab Hire for Education,"2,770.00",28/03/2013,R,KINGSTON ACCESSIBILITY TRAN LT
569,CS -Oth Operating Inc & Expend,T/A Vehicle Maintenance etc,Transport-Contract Hire,J01374,Transport Related Expenditure ,Contract Hire and Op Leasing  ,CC64,Mini Cab Hire for Education,"2,800.00",31/03/2013,R,BARCLAYS ASSET & SALES FINANCE
570,CS -Oth Operating Inc & Expend,T/A Vehicle Maintenance etc,Transport-Contract Hire,J01374,Transport Related Expenditure ,Contract Hire and Op Leasing  ,CC64,Mini Cab Hire for Education,"2,800.00",28/02/2013,R,WALLINGTON CARS & COURIERS LTD
571,CS -Oth Operating Inc & Expend,T/A Vehicle Maintenance etc,Transport-Contract Hire,J01374,Transport Related Expenditure ,Contract Hire and Op Leasing  ,CC64,Mini Cab Hire for Education,"2,800.00",28/03/2013,R,KINGSTON ACCESSIBILITY TRAN LT
572,CS -Oth Operating Inc & Expend,T/A Vehicle Maintenance etc,Transport-Contract Hire,J01374,Transport Related Expenditure ,Contract Hire and Op Leasing  ,CC64,Mini Cab Hire for Education,"2,800.00",28/03/2013,R,KINGSTON ACCESSIBILITY TRAN LT
573,CS -Oth Operating Inc & Expend,T/A Vehicle Maintenance etc,Transport-Contract Hire,J01374,Transport Related Expenditure ,Contract Hire and Op Leasing  ,CC64,Mini Cab Hire for Education,"2,900.00",31/03/2013,R,SHERWOOD TRANSPORT GROUP      
574,CS -Oth Operating Inc & Expend,T/A Vehicle Maintenance etc,Transport-Contract Hire,J01374,Transport Related Expenditure ,Contract Hire and Op Leasing  ,CC64,Mini Cab Hire for Education,"2,900.00",29/03/2013,R,BRUNSWICK CARS LTD            
575,CS -Oth Operating Inc & Expend,T/A Vehicle Maintenance etc,Transport-Contract Hire,J01374,Transport Related Expenditure ,Contract Hire and Op Leasing  ,CC64,Mini Cab Hire for Education,"3,058.00",28/03/2013,R,KINGSTON ACCESSIBILITY TRAN LT
576,CS -Oth Operating Inc & Expend,T/A Vehicle Maintenance etc,Transport-Contract Hire,J01374,Transport Related Expenditure ,Contract Hire and Op Leasing  ,CC64,Mini Cab Hire for Education,"3,100.50",31/03/2013,R,SHERWOOD TRANSPORT GROUP      
577,CS -Oth Operating Inc & Expend,T/A Vehicle Maintenance etc,Transport-Contract Hire,J01374,Transport Related Expenditure ,Contract Hire and Op Leasing  ,CC64,Mini Cab Hire for Education,"3,148.80",28/03/2013,R,SILVERBURN FINANCE (UK) LTD   
578,CS -Oth Operating Inc & Expend,T/A Vehicle Maintenance etc,Transport-Contract Hire,J01374,Transport Related Expenditure ,Contract Hire and Op Leasing  ,CC64,Mini Cab Hire for Education,"3,230.00",31/03/2013,R,BARCLAYS ASSET & SALES FINANCE
579,CS -Oth Operating Inc & Expend,T/A Vehicle Maintenance etc,Transport-Contract Hire,J01374,Transport Related Expenditure ,Contract Hire and Op Leasing  ,CC64,Mini Cab Hire for Education,"3,400.00",28/03/2013,R,SILVERBURN FINANCE (UK) LTD   
580,CS -Oth Operating Inc & Expend,T/A Vehicle Maintenance etc,Transport-Contract Hire,J01374,Transport Related Expenditure ,Contract Hire and Op Leasing  ,CC64,Mini Cab Hire for Education,"3,792.00",31/03/2013,R,BARCLAYS ASSET & SALES FINANCE
581,CS -Oth Operating Inc & Expend,T/A Vehicle Maintenance etc,Transport-Contract Hire,J01374,Transport Related Expenditure ,Contract Hire and Op Leasing  ,CC64,Mini Cab Hire for Education,"3,920.00",31/03/2013,R,BARCLAYS ASSET & SALES FINANCE
582,CS -Oth Operating Inc & Expend,T/A Vehicle Maintenance etc,Transport-Contract Hire,J01374,Transport Related Expenditure ,Contract Hire and Op Leasing  ,CC64,Mini Cab Hire for Education,"4,085.00",31/03/2013,R,BARCLAYS ASSET & SALES FINANCE
583,CS -Oth Operating Inc & Expend,T/A Vehicle Maintenance etc,Transport-Contract Hire,J01374,Transport Related Expenditure ,Contract Hire and Op Leasing  ,CC66,Mini Cab Hire -Soc Serv -Child,510,31/03/2013,R,CAPITAL CARS                  
584,CS -Oth Operating Inc & Expend,T/A Vehicle Maintenance etc,Transport-Contract Hire,J01374,Transport Related Expenditure ,Contract Hire and Op Leasing  ,CC66,Mini Cab Hire -Soc Serv -Child,616,31/03/2013,R,BARCLAYS ASSET & SALES FINANCE
585,CS -Oth Operating Inc & Expend,T/A Vehicle Maintenance etc,Transport-Contract Hire,J01374,Transport Related Expenditure ,Contract Hire and Op Leasing  ,CC66,Mini Cab Hire -Soc Serv -Child,680,31/03/2013,R,BARCLAYS ASSET & SALES FINANCE
586,CS -Oth Operating Inc & Expend,T/A Vehicle Maintenance etc,Transport-Contract Hire,J01374,Transport Related Expenditure ,Contract Hire and Op Leasing  ,CC66,Mini Cab Hire -Soc Serv -Child,684,31/03/2013,R,BARCLAYS ASSET & SALES FINANCE
587,CS -Oth Operating Inc & Expend,T/A Vehicle Maintenance etc,Transport-Contract Hire,J01374,Transport Related Expenditure ,Contract Hire and Op Leasing  ,CC66,Mini Cab Hire -Soc Serv -Child,"1,960.00",28/03/2013,R,KINGSTON ACCESSIBILITY TRAN LT
588,CS -Oth Operating Inc & Expend,T/A Vehicle Maintenance etc,Transport-Contract Hire,J01374,Transport Related Expenditure ,Contract Hire and Op Leasing  ,CC66,Mini Cab Hire -Soc Serv -Child,"2,459.59",28/03/2013,R,KINGSTON ACCESSIBILITY TRAN LT
589,CS -Oth Operating Inc & Expend,T/A Vehicle Maintenance etc,Transport-Contract Hire,J01374,Transport Related Expenditure ,Contract Hire and Op Leasing  ,CC66,Mini Cab Hire -Soc Serv -Child,"2,472.00",28/03/2013,R,KINGSTON ACCESSIBILITY TRAN LT
590,CS -Oth Operating Inc & Expend,T/A Vehicle Maintenance etc,Transport-Contract Hire,J01374,Transport Related Expenditure ,Contract Hire and Op Leasing  ,CC67,Mini Cab Hire -Soc Serv -Adult,576,31/03/2013,R,BARCLAYS ASSET & SALES FINANCE
591,CS -Oth Operating Inc & Expend,T/A Vehicle Maintenance etc,Transport-Contract Hire,J01374,Transport Related Expenditure ,Contract Hire and Op Leasing  ,CC67,Mini Cab Hire -Soc Serv -Adult,595.76,28/03/2013,R,KINGSTON ACCESSIBILITY TRAN LT
592,CS -Oth Operating Inc & Expend,T/A Vehicle Maintenance etc,Transport-Contract Hire,J01374,Transport Related Expenditure ,Contract Hire and Op Leasing  ,CC67,Mini Cab Hire -Soc Serv -Adult,608,31/03/2013,R,NVCAR HIRE LTD                
593,CS -Oth Operating Inc & Expend,T/A Vehicle Maintenance etc,Transport-Contract Hire,J01374,Transport Related Expenditure ,Contract Hire and Op Leasing  ,CC67,Mini Cab Hire -Soc Serv -Adult,680,31/03/2013,R,NVCAR HIRE LTD                
594,CS -Oth Operating Inc & Expend,T/A Vehicle Maintenance etc,Transport-Contract Hire,J01374,Transport Related Expenditure ,Contract Hire and Op Leasing  ,CC67,Mini Cab Hire -Soc Serv -Adult,728,31/03/2013,R,BARCLAYS ASSET & SALES FINANCE
595,CS -Oth Operating Inc & Expend,T/A Vehicle Maintenance etc,Transport-Contract Hire,J01374,Transport Related Expenditure ,Contract Hire and Op Leasing  ,CC67,Mini Cab Hire -Soc Serv -Adult,784,31/03/2013,R,CAPITAL CARS                  
596,CS -Oth Operating Inc & Expend,T/A Vehicle Maintenance etc,Transport-Contract Hire,J01374,Transport Related Expenditure ,Contract Hire and Op Leasing  ,CC67,Mini Cab Hire -Soc Serv -Adult,800,30/03/2013,R,AERIAL CAR SERVICES LTD       
597,CS -Oth Operating Inc & Expend,T/A Vehicle Maintenance etc,Transport-Contract Hire,J01374,Transport Related Expenditure ,Contract Hire and Op Leasing  ,CC67,Mini Cab Hire -Soc Serv -Adult,876,31/03/2013,R,BARCLAYS ASSET & SALES FINANCE
598,CS -Oth Operating Inc & Expend,T/A Vehicle Maintenance etc,Transport-Contract Hire,J01374,Transport Related Expenditure ,Contract Hire and Op Leasing  ,CC67,Mini Cab Hire -Soc Serv -Adult,888,30/03/2013,R,AERIAL CAR SERVICES LTD       
599,CS -Oth Operating Inc & Expend,T/A Vehicle Maintenance etc,Transport-Contract Hire,J01374,Transport Related Expenditure ,Contract Hire and Op Leasing  ,CC67,Mini Cab Hire -Soc Serv -Adult,928,31/03/2013,R,A STAR TRANSPORT LIMITED      
600,CS -Oth Operating Inc & Expend,T/A Vehicle Maintenance etc,Transport-Contract Hire,J01374,Transport Related Expenditure ,Contract Hire and Op Leasing  ,CC67,Mini Cab Hire -Soc Serv -Adult,960,31/03/2013,R,BARCLAYS ASSET & SALES FINANCE
601,CS -Oth Operating Inc & Expend,T/A Vehicle Maintenance etc,Transport-Contract Hire,J01374,Transport Related Expenditure ,Contract Hire and Op Leasing  ,CC67,Mini Cab Hire -Soc Serv -Adult,"1,128.00",31/03/2013,R,CAPITAL CARS                  
602,CS -Oth Operating Inc & Expend,T/A Vehicle Maintenance etc,Transport-Contract Hire,J01374,Transport Related Expenditure ,Contract Hire and Op Leasing  ,CC67,Mini Cab Hire -Soc Serv -Adult,"1,212.00",31/03/2013,R,NVCAR HIRE LTD                
603,CS -Oth Operating Inc & Expend,T/A Vehicle Maintenance etc,Transport-Contract Hire,J01374,Transport Related Expenditure ,Contract Hire and Op Leasing  ,CC67,Mini Cab Hire -Soc Serv -Adult,"1,378.56",28/03/2013,R,KINGSTON ACCESSIBILITY TRAN LT
604,CS -Oth Operating Inc & Expend,T/A Vehicle Maintenance etc,Transport-Contract Hire,J01374,Transport Related Expenditure ,Contract Hire and Op Leasing  ,CC67,Mini Cab Hire -Soc Serv -Adult,"1,544.00",31/03/2013,R,CAPITAL CARS                  
605,CS -Oth Operating Inc & Expend,T/A Vehicle Maintenance etc,Transport-Contract Hire,J01374,Transport Related Expenditure ,Contract Hire and Op Leasing  ,CC67,Mini Cab Hire -Soc Serv -Adult,"1,581.60",28/03/2013,R,KINGSTON ACCESSIBILITY TRAN LT
606,CS -Oth Operating Inc & Expend,T/A Vehicle Maintenance etc,Transport-Contract Hire,J01374,Transport Related Expenditure ,Contract Hire and Op Leasing  ,CC67,Mini Cab Hire -Soc Serv -Adult,"1,795.60",28/03/2013,R,KINGSTON ACCESSIBILITY TRAN LT
607,CS -Oth Operating Inc & Expend,T/A Vehicle Maintenance etc,Transport-Contract Hire,J01374,Transport Related Expenditure ,Contract Hire and Op Leasing  ,CC68,Vehicle Hire Special Projects,567,31/03/2013,R,BARCLAYS ASSET & SALES FINANCE
608,CS -Oth Operating Inc & Expend,T/A Vehicle Maintenance etc,Transport-Contract Hire,J01374,Transport Related Expenditure ,Contract Hire and Op Leasing  ,CC68,Vehicle Hire Special Projects,570,28/03/2013,R,GALPINS SERVICE               
609,CS -Oth Operating Inc & Expend,T/A Vehicle Maintenance etc,Transport-Contract Hire,J01374,Transport Related Expenditure ,Contract Hire and Op Leasing  ,CC68,Vehicle Hire Special Projects,608,28/03/2013,R,GALPINS SERVICE               
610,CS -Oth Operating Inc & Expend,T/A Vehicle Maintenance etc,Transport-Contract Hire,J01374,Transport Related Expenditure ,Contract Hire and Op Leasing  ,CC68,Vehicle Hire Special Projects,627,28/03/2013,R,GALPINS SERVICE               
611,CS -Oth Operating Inc & Expend,T/A Vehicle Maintenance etc,Transport-Contract Hire,J01374,Transport Related Expenditure ,Contract Hire and Op Leasing  ,CC68,Vehicle Hire Special Projects,"1,269.00",31/03/2013,R,BARCLAYS ASSET & SALES FINANCE
612,CS -Oth Operating Inc & Expend,T/A Vehicle Maintenance etc,Transport-Contract Hire,J01374,Transport Related Expenditure ,Contract Hire and Op Leasing  ,CC68,Vehicle Hire Special Projects,"1,360.00",28/03/2013,R,SILVERBURN FINANCE (UK) LTD   
613,CS -Oth Operating Inc & Expend,T/A Vehicle Maintenance etc,Transport-Contract Hire,J01374,Transport Related Expenditure ,Contract Hire and Op Leasing  ,CC68,Vehicle Hire Special Projects,"1,436.48",28/03/2013,R,KINGSTON ACCESSIBILITY TRAN LT
614,CS -Oth Operating Inc & Expend,T/A Vehicle Maintenance etc,Transport-Contract Hire,J01374,Transport Related Expenditure ,Contract Hire and Op Leasing  ,CC68,Vehicle Hire Special Projects,"1,481.00",28/03/2013,R,SILVERBURN FINANCE (UK) LTD   
615,CS -Oth Operating Inc & Expend,T/A Vehicle Maintenance etc,Transport-Contract Hire,J01374,Transport Related Expenditure ,Contract Hire and Op Leasing  ,CC68,Vehicle Hire Special Projects,"2,015.36",28/03/2013,R,KINGSTON ACCESSIBILITY TRAN LT
616,CS -Oth Operating Inc & Expend,T/A Vehicle Maintenance etc,Transport-Contract Hire,J01374,Transport Related Expenditure ,Contract Hire and Op Leasing  ,CC68,Vehicle Hire Special Projects,"2,280.00",31/03/2013,R,SHERWOOD TRANSPORT GROUP      
617,CS -Oth Operating Inc & Expend,T/A Vehicle Maintenance etc,Transport-Contract Hire,J01374,Transport Related Expenditure ,Contract Hire and Op Leasing  ,CC68,Vehicle Hire Special Projects,"2,291.00",31/03/2013,R,BARCLAYS ASSET & SALES FINANCE
618,CS -Oth Operating Inc & Expend,T/A Vehicle Maintenance etc,Transport-Contract Hire,J01374,Transport Related Expenditure ,Contract Hire and Op Leasing  ,CC68,Vehicle Hire Special Projects,"2,760.00",28/03/2013,R,KINGSTON ACCESSIBILITY TRAN LT
619,CS -Oth Operating Inc & Expend,T/A Vehicle Maintenance etc,Transport-Workshop,J01376,Premises Related Expenditure  ,Energy Costs                  ,BB03,Gas (incl. Butane),884.15,11/04/2013,R,KENT COUNTY COUNCIL           
620,CS -Oth Operating Inc & Expend,T/A Vehicle Maintenance etc,Transport-Workshop,J01376,Transport Related Expenditure ,Direct Transport Costs        ,CA02,Tyres,"1,650.00",21/03/2013,R,MORDEN TYRE SERVICES LTD      
621,CS -Oth Operating Inc & Expend,T/A Vehicle Maintenance etc,Transport-Workshop,J01376,Transport Related Expenditure ,Direct Transport Costs        ,CA04,R & M of Veh - General,"1,628.96",02/04/2013,R,FREIGHT TRANSPORT ASSOCIATION 
622,CS -Oth Operating Inc & Expend,T/A Vehicle Maintenance etc,Transport-Workshop,J01376,Transport Related Expenditure ,Direct Transport Costs        ,CA55,Specialist Maint. (Off Site),"4,560.00",28/03/2013,R,EUROMOTIVE (KENT) LIMITED     
623,CS -Oth Operating Inc & Expend,T/A Vehicle Maintenance etc,Transport-Workshop,J01376,Transport Related Expenditure ,Direct Transport Costs        ,CA55,Specialist Maint. (Off Site),"7,086.52",15/03/2013,R,REDACTED
624,CS -Oth Operating Inc & Expend,T/A Vehicle Maintenance etc,Transport-Workshop,J01376,Transport Related Expenditure ,Direct Transport Costs        ,CA56,Specialist Maint. (On Site),562.5,18/03/2013,R,R.J.H.WELDING                 
625,CS -Oth Operating Inc & Expend,T/A Vehicle Maintenance etc,Transport-Workshop,J01376,Transport Related Expenditure ,Direct Transport Costs        ,CA56,Specialist Maint. (On Site),595.6,18/03/2013,R,R.J.H.WELDING                 
626,CS -Oth Operating Inc & Expend,T/A Vehicle Maintenance etc,Transport-Workshop,J01376,Transport Related Expenditure ,Direct Transport Costs        ,CA56,Specialist Maint. (On Site),656.25,18/02/2013,R,R.J.H.WELDING                 
627,CS -Oth Operating Inc & Expend,T/A Vehicle Maintenance etc,Transport-Workshop,J01376,Transport Related Expenditure ,Direct Transport Costs        ,CA56,Specialist Maint. (On Site),739.36,18/03/2013,R,R.J.H.WELDING                 
628,CS -Oth Operating Inc & Expend,T/A Vehicle Maintenance etc,Transport-Workshop,J01376,Transport Related Expenditure ,Direct Transport Costs        ,CA56,Specialist Maint. (On Site),"1,239.65",12/03/2013,R,JOHNSTON SWEEPERS LIMITED     
629,CS -Oth Operating Inc & Expend,T/A Vehicle Maintenance etc,Transport-Workshop,J01376,Transport Related Expenditure ,Direct Transport Costs        ,CA56,Specialist Maint. (On Site),"3,000.02",19/03/2013,R,ALLAN FULLER LTD              
630,CS -Oth Operating Inc & Expend,T/A Vehicle Maintenance etc,Transport-Workshop,J01376,Transport Related Expenditure ,Direct Transport Costs        ,CA72,Vehicle Parts,715,13/03/2013,R,TENNANTS                      
631,CS -Oth Operating Inc & Expend,T/A Vehicle Maintenance etc,Transport-Workshop,J01376,Transport Related Expenditure ,Direct Transport Costs        ,CA72,Vehicle Parts,898.46,14/03/2013,R,REDACTED
632,CS -Oth Operating Inc & Expend,T/A Vehicle Maintenance etc,Transport-Workshop,J01376,Transport Related Expenditure ,Direct Transport Costs        ,CA72,Vehicle Parts,"1,914.81",01/03/2013,R,REDACTED
633,CS -Oth Operating Inc & Expend,T/A Vehicle Maintenance etc,Transport-Workshop,J01376,Transport Related Expenditure ,Direct Transport Costs        ,CA72,Vehicle Parts,"1,914.81",01/03/2013,R,REDACTED
634,CS -Oth Operating Inc & Expend,T/A Vehicle Maintenance etc,Transport-Workshop,J01376,Transport Related Expenditure ,Direct Transport Costs        ,CA72,Vehicle Parts,"1,914.81",01/03/2013,R,REDACTED
635,CS -Oth Operating Inc & Expend,T/A Vehicle Maintenance etc,Transport-Workshop,J01376,Transport Related Expenditure ,Direct Transport Costs        ,CA72,Vehicle Parts,"1,914.81",01/03/2013,R,REDACTED
636,CS -Oth Operating Inc & Expend,T/A Vehicle Maintenance etc,Transport-Workshop,J01376,Transport Related Expenditure ,Direct Transport Costs        ,CA72,Vehicle Parts,"1,914.81",01/03/2013,R,REDACTED
637,CS -Oth Operating Inc & Expend,T/A Vehicle Maintenance etc,Transport-Workshop,J01376,Transport Related Expenditure ,Direct Transport Costs        ,CA72,Vehicle Parts,"1,914.81",01/03/2013,R,REDACTED
638,CS -Oth Operating Inc & Expend,T/A Vehicle Maintenance etc,Transport-Workshop,J01376,Transport Related Expenditure ,Direct Transport Costs        ,CA72,Vehicle Parts,"1,914.81",01/03/2013,R,REDACTED
639,CS -Oth Operating Inc & Expend,T/A Vehicle Maintenance etc,Transport-Workshop,J01376,Transport Related Expenditure ,Contract Hire and Op Leasing  ,CC60,Vehicle Hire for LB Sutton,703,31/03/2013,R,CAPITAL CARS                  
640,CS -Oth Operating Inc & Expend,T/A Vehicle Maintenance etc,Transport-Workshop,J01376,Transport Related Expenditure ,Contract Hire and Op Leasing  ,CC60,Vehicle Hire for LB Sutton,927,31/03/2013,R,BARCLAYS ASSET & SALES FINANCE
641,CS -Oth Operating Inc & Expend,T/A Vehicle Maintenance etc,Transport-Workshop,J01376,Transport Related Expenditure ,Contract Hire and Op Leasing  ,CC60,Vehicle Hire for LB Sutton,960,31/03/2013,R,BARCLAYS ASSET & SALES FINANCE
642,CS -Oth Operating Inc & Expend,T/A Vehicle Maintenance etc,Transport-Workshop,J01376,Transport Related Expenditure ,Contract Hire and Op Leasing  ,CC60,Vehicle Hire for LB Sutton,"1,201.00",15/03/2013,R,CALVERTON FACTORS LTD         
643,CS -Oth Operating Inc & Expend,T/A Vehicle Maintenance etc,Transport-Workshop,J01376,Transport Related Expenditure ,Contract Hire and Op Leasing  ,CC60,Vehicle Hire for LB Sutton,"1,720.00",31/03/2013,R,BARCLAYS ASSET & SALES FINANCE
644,CS -Oth Operating Inc & Expend,T/A Vehicle Maintenance etc,Transport-Workshop,J01376,Transport Related Expenditure ,Contract Hire and Op Leasing  ,CC60,Vehicle Hire for LB Sutton,"2,060.00",29/03/2013,R,BRUNSWICK CARS LTD            
645,CS -Oth Operating Inc & Expend,T/A Vehicle Maintenance etc,Transport-Workshop,J01376,Transport Related Expenditure ,Contract Hire and Op Leasing  ,CC60,Vehicle Hire for LB Sutton,"2,380.00",29/03/2013,R,BRUNSWICK CARS LTD            
646,CS -Oth Operating Inc & Expend,T/A Vehicle Maintenance etc,Transport-Workshop,J01376,Transport Related Expenditure ,Contract Hire and Op Leasing  ,CC60,Vehicle Hire for LB Sutton,"2,800.00",29/03/2013,R,BRUNSWICK CARS LTD            
647,CS -Oth Operating Inc & Expend,T/A Vehicle Maintenance etc,Transport-Workshop,J01376,Transport Related Expenditure ,Contract Hire and Op Leasing  ,CC60,Vehicle Hire for LB Sutton,"3,002.00",31/03/2013,R,BARCLAYS ASSET & SALES FINANCE
648,CS -Oth Operating Inc & Expend,T/A Vehicle Maintenance etc,Transport-Workshop,J01376,Supplies & Services           ,Equip Furniture/Materials     ,DA01,Equipment - R & M,574.64,01/04/2013,R,SUNLIGHT SERVICE GROUP LTD    
649,CS -Oth Operating Inc & Expend,T/A Vehicle Maintenance etc,Transport-Workshop,J01376,Supplies & Services           ,Clothing Unfrms Laundry       ,DC02,Clothing & Uniforms,537.04,27/02/2013,R,SAFETY MANAGEMENT             
650,CS -Oth Operating Inc & Expend,Extraordinary Items & PY Adj.,Housing Shops,J01533,Premises Related Expenditure  ,RepairsAlterations&MtceOfBldgs,BA01,DDM - General Building,"1,167.85",02/04/2013,R,SALTASH ENTERPRISES LTD       
651,CS -Oth Operating Inc & Expend,Extraordinary Items & PY Adj.,Pollards Hill Comm Cntre,J08074,Premises Related Expenditure  ,RepairsAlterations&MtceOfBldgs,BA01,DDM - General Building,734.4,02/04/2013,R,SALTASH ENTERPRISES LTD       
652,Childrens & Education Services,Statutory & Regulatory Duties,Senior Mngt & Support Services,K01005,Supplies & Services           ,Services                      ,DF11,Counsel's fees,520,19/03/2013,R,REDACTED
653,Childrens & Education Services,Statutory & Regulatory Duties,Senior Mngt & Support Services,K01005,Supplies & Services           ,Services                      ,DF11,Counsel's fees,"1,040.00",02/04/2013,R,REDACTED
654,Childrens & Education Services,Statutory & Regulatory Duties,Senior Mngt & Support Services,K01005,Supplies & Services           ,Services                      ,DF11,Counsel's fees,"1,347.50",03/04/2013,R,REDACTED
655,Childrens & Education Services,Statutory & Regulatory Duties,Senior Mngt & Support Services,K01005,Supplies & Services           ,Services                      ,DF11,Counsel's fees,"3,080.00",02/04/2013,R,REDACTED
656,Childrens & Education Services,Statutory & Regulatory Duties,Central Administration,K01008,Supplies & Services           ,Grants and Subscriptions      ,DJ04,Subscriptions,"1,567.50",11/03/2013,R,ADCS                          
657,Childrens & Education Services,Statutory & Regulatory Duties,Schools IT Support,K02008,Employees                     ,Indirect Employee Expenses    ,AB57,External Training Costs,795,23/04/2013,R,CAPITA BUSINESS SERVICES LTD  
658,Childrens & Education Services,Statutory & Regulatory Duties,Schools IT Support,K02008,Supplies & Services           ,Equip Furniture/Materials     ,DA58,Education Materials,"1,263.52",28/03/2013,R,STORMFRONT RETAIL LTD         
659,Childrens & Education Services,Statutory & Regulatory Duties,Schools IT Support,K02008,Supplies & Services           ,Comms and Computing           ,DG02,Software Licences,"2,738.19",07/03/2013,R,CAPITA BUSINESS SERVICES LTD  
660,Childrens & Education Services,Statutory & Regulatory Duties,Schools IT Support,K02008,Supplies & Services           ,Comms and Computing           ,DG02,Software Licences,"9,075.00",07/03/2013,R,CAPITA BUSINESS SERVICES LTD  
661,Childrens & Education Services,Statutory & Regulatory Duties,Schools IT Support,K02008,Supplies & Services           ,Comms and Computing           ,DG02,Software Licences,"12,000.00",07/03/2013,R,CAPITA BUSINESS SERVICES LTD  
662,Childrens & Education Services,Statutory & Regulatory Duties,Schools IT Support,K02008,Supplies & Services           ,Comms and Computing           ,DG02,Software Licences,"25,663.82",07/03/2013,R,CAPITA BUSINESS SERVICES LTD  
663,Childrens & Education Services,Statutory & Regulatory Duties,Schools IT Support,K02008,Supplies & Services           ,Comms and Computing           ,DG02,Software Licences,"59,510.49",07/03/2013,R,CAPITA BUSINESS SERVICES LTD  
664,Childrens & Education Services,Statutory & Regulatory Duties,Schools IT Support,K02008,Supplies & Services           ,Comms and Computing           ,DG50,Other IT Expenditure,675,09/04/2013,R,ATOMWIDE LTD                  
665,Childrens & Education Services,Statutory & Regulatory Duties,Schools IT Support,K02008,Supplies & Services           ,Comms and Computing           ,DG50,Other IT Expenditure,800,09/04/2013,R,ATOMWIDE LTD                  
666,Childrens & Education Services,Statutory & Regulatory Duties,Schools IT Support,K02008,Supplies & Services           ,Comms and Computing           ,DG50,Other IT Expenditure,"1,094.00",27/03/2013,R,ATOMWIDE LTD                  
667,Childrens & Education Services,Statutory & Regulatory Duties,Schools IT Support,K02008,Supplies & Services           ,Comms and Computing           ,DG50,Other IT Expenditure,"2,100.00",09/04/2013,R,ATOMWIDE LTD                  
668,Childrens & Education Services,Statutory & Regulatory Duties,Schools IT Support,K02008,Supplies & Services           ,Comms and Computing           ,DG50,Other IT Expenditure,"2,553.00",16/04/2013,R,ATOMWIDE LTD                  
669,Childrens & Education Services,Statutory & Regulatory Duties,Research and Statistics,K03016,Supplies & Services           ,Comms and Computing           ,DG07,Computer Software,"2,945.25",05/04/2013,R,NCER CIC                      
670,Childrens & Education Services,Asset Management,PFI Unitary Charges,K03023,Third Party Payments          ,Private Contractors           ,EH02,Miscellaneous Hired Services,508.51,28/02/2013,R,NEWSCHOOLS (MERTON) LIMITED   
671,Childrens & Education Services,Statutory & Regulatory Duties,Head of Special Educatn Needs,K04017,Employees                     ,Direct Employee Expenses      ,AA17,Agency Staff & Casual Paymts,"8,925.00",27/03/2013,R,REDACTED
672,Childrens & Education Services,Education Psychology Service,Education Psychology.,K04018,Employees                     ,Indirect Employee Expenses    ,AB02,Recruitment Adverts,740,09/04/2013,R,PENNA COMMUNICATIONS (NO 2 A/C
673,Childrens & Education Services,Support for SEN Pupils,Statementing-Transport,K04023,Transport Related Expenditure ,Public Transport              ,CD50,Home Sch/Coll Trans(Trav Exps),729,25/03/2013,R,ST MARY'S WRESTWOOD CHILDRENS 
674,Childrens & Education Services,Support for SEN Pupils,Statementing-Transport,K04023,Transport Related Expenditure ,Public Transport              ,CD50,Home Sch/Coll Trans(Trav Exps),960,27/03/2013,R,REDACTED
675,Childrens & Education Services,Behavioural Support,Statement Support Team,K04034,Employees                     ,Direct Employee Expenses      ,AA17,Agency Staff & Casual Paymts,"3,000.00",30/03/2013,R,REDACTED
676,Childrens & Education Services,Behavioural Support,Statement Support Team,K04034,Employees                     ,Indirect Employee Expenses    ,AB02,Recruitment Adverts,"2,260.00",23/04/2013,R,PENNA COMMUNICATIONS (NO 2 A/C
677,Childrens & Education Services,Oth U5s Provn Not Prim or Spec,GSSG Workforce Development,K05111,Employees                     ,Indirect Employee Expenses    ,AB56,Internal Training Costs,500,11/03/2013,R,REDACTED
678,Childrens & Education Services,Oth U5s Provn Not Prim or Spec,GSSG Workforce Development,K05111,Employees                     ,Indirect Employee Expenses    ,AB56,Internal Training Costs,800,22/03/2013,R,ACTUAL FIRST AID LTD          
679,Childrens & Education Services,GENERATED ACCOUNT,Children's centres,K05137,Supplies & Services           ,Comms and Computing           ,DG02,Software Licences,"2,440.26",08/04/2013,R,CAPITA BUSINESS SERVICES LTD  
680,Childrens & Education Services,GENERATED ACCOUNT,Children's centres,K05137,Supplies & Services           ,Comms and Computing           ,DG02,Software Licences,"9,509.13",05/03/2013,R,CAPITA BUSINESS SERVICES LTD  
681,Childrens & Education Services,GENERATED ACCOUNT,Lavender Children's Centre,K05410,Premises Related Expenditure  ,Energy Costs                  ,BB03,Gas (incl. Butane),541.15,21/03/2013,R,KENT COUNTY COUNCIL           
682,Childrens & Education Services,GENERATED ACCOUNT,Lavender Children's Centre,K05410,Premises Related Expenditure  ,Energy Costs                  ,BB03,Gas (incl. Butane),600.89,21/03/2013,R,KENT COUNTY COUNCIL           
683,Childrens & Education Services,GENERATED ACCOUNT,Lavender Children's Centre,K05410,Premises Related Expenditure  ,Cleaning and Domestic Supplies,BH03,Cleaning Services,952.5,25/03/2013,R,PHS GROUP PLC                 
684,Childrens & Education Services,GENERATED ACCOUNT,Mitcham MAT (Premises),K05412,Premises Related Expenditure  ,RepairsAlterations&MtceOfBldgs,BA01,DDM - General Building,"2,036.50",17/04/2013,R,MPM ENGINEERING SERVICES      
685,Childrens & Education Services,GENERATED ACCOUNT,Mitcham MAT (Premises),K05412,Premises Related Expenditure  ,Cleaning and Domestic Supplies,BH03,Cleaning Services,937.23,05/04/2013,R,RE MCS CLEANING SERVICES LTD  
686,Childrens & Education Services,Nursery schools,E.Years-Intergenerational Cntr,K05416,Premises Related Expenditure  ,Energy Costs                  ,BB02,Electricity,"-1,082.72",09/04/2013,R,KENT COUNTY COUNCIL           
687,Childrens & Education Services,Nursery schools,E.Years-Intergenerational Cntr,K05416,Premises Related Expenditure  ,Energy Costs                  ,BB02,Electricity,"-1,067.84",08/04/2013,R,KENT COUNTY COUNCIL           
688,Childrens & Education Services,Nursery schools,E.Years-Intergenerational Cntr,K05416,Premises Related Expenditure  ,Energy Costs                  ,BB02,Electricity,"-1,056.60",08/04/2013,R,KENT COUNTY COUNCIL           
689,Childrens & Education Services,Nursery schools,E.Years-Intergenerational Cntr,K05416,Premises Related Expenditure  ,Energy Costs                  ,BB02,Electricity,"-1,043.13",08/04/2013,R,KENT COUNTY COUNCIL           
690,Childrens & Education Services,Nursery schools,E.Years-Intergenerational Cntr,K05416,Premises Related Expenditure  ,Energy Costs                  ,BB02,Electricity,"-1,013.65",08/04/2013,R,KENT COUNTY COUNCIL           
691,Childrens & Education Services,Nursery schools,E.Years-Intergenerational Cntr,K05416,Premises Related Expenditure  ,Energy Costs                  ,BB02,Electricity,-982.57,08/04/2013,R,KENT COUNTY COUNCIL           
692,Childrens & Education Services,Nursery schools,E.Years-Intergenerational Cntr,K05416,Premises Related Expenditure  ,Energy Costs                  ,BB02,Electricity,-976.33,09/04/2013,R,KENT COUNTY COUNCIL           
693,Childrens & Education Services,Nursery schools,E.Years-Intergenerational Cntr,K05416,Premises Related Expenditure  ,Energy Costs                  ,BB02,Electricity,-897.01,08/04/2013,R,KENT COUNTY COUNCIL           
694,Childrens & Education Services,Nursery schools,E.Years-Intergenerational Cntr,K05416,Premises Related Expenditure  ,Energy Costs                  ,BB02,Electricity,-861.53,08/04/2013,R,KENT COUNTY COUNCIL           
695,Childrens & Education Services,Nursery schools,E.Years-Intergenerational Cntr,K05416,Premises Related Expenditure  ,Energy Costs                  ,BB02,Electricity,-859.77,08/04/2013,R,KENT COUNTY COUNCIL           
696,Childrens & Education Services,Nursery schools,E.Years-Intergenerational Cntr,K05416,Premises Related Expenditure  ,Energy Costs                  ,BB02,Electricity,-836.65,08/04/2013,R,KENT COUNTY COUNCIL           
697,Childrens & Education Services,Nursery schools,E.Years-Intergenerational Cntr,K05416,Premises Related Expenditure  ,Energy Costs                  ,BB02,Electricity,-780.69,08/04/2013,R,KENT COUNTY COUNCIL           
698,Childrens & Education Services,Nursery schools,E.Years-Intergenerational Cntr,K05416,Premises Related Expenditure  ,Energy Costs                  ,BB02,Electricity,882.03,09/04/2013,R,KENT COUNTY COUNCIL           
699,Childrens & Education Services,Nursery schools,E.Years-Intergenerational Cntr,K05416,Premises Related Expenditure  ,Energy Costs                  ,BB02,Electricity,937.98,09/04/2013,R,KENT COUNTY COUNCIL           
700,Childrens & Education Services,Nursery schools,E.Years-Intergenerational Cntr,K05416,Premises Related Expenditure  ,Energy Costs                  ,BB02,Electricity,961.1,09/04/2013,R,KENT COUNTY COUNCIL           
701,Childrens & Education Services,Nursery schools,E.Years-Intergenerational Cntr,K05416,Premises Related Expenditure  ,Energy Costs                  ,BB02,Electricity,998.34,09/04/2013,R,KENT COUNTY COUNCIL           
702,Childrens & Education Services,Vocational - Adult Education,AE-Familiy Learning,K06041,Supplies & Services           ,Services                      ,DF30,Activities Programme,542,03/03/2013,R,ST MARKS FAMILY CENTRE        
703,Childrens & Education Services,Vocational - Adult Education,AE-Familiy Learning,K06041,Supplies & Services           ,Services                      ,DF30,Activities Programme,866,03/03/2013,R,ST MARKS FAMILY CENTRE        
704,Childrens & Education Services,Vocational - Adult Education,AE-Familiy Learning,K06041,Supplies & Services           ,Services                      ,DF30,Activities Programme,969,03/03/2013,R,ST MARKS FAMILY CENTRE        
705,Childrens & Education Services,Vocational - Adult Education,AE-Familiy Learning,K06041,Supplies & Services           ,Services                      ,DF30,Activities Programme,"1,415.00",18/03/2013,R,ST MARKS FAMILY CENTRE        
706,Childrens & Education Services,Vocational - Adult Education,AE-additional learner SF,K06046,Supplies & Services           ,Services                      ,DF07,Bought in Teaching Services,"1,150.50",22/04/2013,R,REDACTED
707,Childrens & Education Services,Vocational - Adult Education,MAE-Bldgs Repairs & Maintenanc,K06048,Premises Related Expenditure  ,RepairsAlterations&MtceOfBldgs,BA06,Repairs & Maintenance General,560,04/04/2013,R,SSD LIMITED                   
708,Childrens & Education Services,Vocational - Adult Education,MAE-Bldgs Repairs & Maintenanc,K06048,Premises Related Expenditure  ,Fixtures and Fittings         ,BF01,Fixtures and Fittings,688.75,22/04/2013,R,PJ HARVEY & CO LTD            
709,Childrens & Education Services,Vocational - Adult Education,AE-Adult Education Main,K06049,Premises Related Expenditure  ,Energy Costs                  ,BB03,Gas (incl. Butane),"2,251.37",28/03/2013,R,KENT COUNTY COUNCIL           
710,Childrens & Education Services,Vocational - Adult Education,AE-Adult Education Main,K06049,Premises Related Expenditure  ,Energy Costs                  ,BB03,Gas (incl. Butane),"2,262.68",28/03/2013,R,KENT COUNTY COUNCIL           
711,Childrens & Education Services,Vocational - Adult Education,AE-Adult Education Main,K06049,Supplies & Services           ,Equip Furniture/Materials     ,DA01,Equipment - R & M,746.45,01/04/2013,R,ADT FIRE AND SECURITY PLC     
712,Childrens & Education Services,Vocational - Adult Education,AE-Adult Education Main,K06049,Supplies & Services           ,Services                      ,DF02,Misc Advertising/Publicity,"1,770.00",10/04/2013,R,EMP MEDIA LTD                 
713,Childrens & Education Services,Vocational - Adult Education,AE-Adult Education Main,K06049,Supplies & Services           ,Services                      ,DF02,Misc Advertising/Publicity,"4,120.00",05/04/2013,R,STUDIO ELEVEN LTD             
714,Childrens & Education Services,Vocational - Adult Education,AE-Adult Education Main,K06049,Supplies & Services           ,Services                      ,DF02,Misc Advertising/Publicity,"14,287.00",05/04/2013,R,STUDIO ELEVEN LTD             
715,Childrens & Education Services,Vocational - Adult Education,AE-Adult Education Main,K06049,Supplies & Services           ,Grants and Subscriptions      ,DJ04,Subscriptions,"1,000.00",14/04/2013,R,TCMD LTD                      
716,Childrens & Education Services,Vocational - Adult Education,MAE- CATERING SERVICES 2011>,K06052,Supplies & Services           ,Catering                      ,DB01,Contract Catering,520,17/04/2013,R,INVESTEC ASSET FINANCE PLC    
717,Childrens & Education Services,Youth Centres (Residential),Youth Service,K06053,Supplies & Services           ,Expenses                      ,DH50,Special Projects,"1,718.00",27/03/2013,R,ROVERTOW                      
718,Childrens & Education Services,Youth Centres (Residential),Youth Service,K06053,Supplies & Services           ,Expenses                      ,DH50,Special Projects,"26,601.00",22/03/2013,R,KENT COUNTY COUNCIL           
719,Childrens & Education Services,Youth Centres (Residential),Youth Office Premises Cost,K06073,Premises Related Expenditure  ,RepairsAlterations&MtceOfBldgs,BA05,DDM - Electrical,511.08,01/04/2013,R,ADT FIRE AND SECURITY PLC     
720,Childrens & Education Services,Youth Centres (Residential),Youth Office Premises Cost,K06073,Premises Related Expenditure  ,RepairsAlterations&MtceOfBldgs,BA06,Repairs & Maintenance General,"1,306.00",28/03/2013,R,MOY CONSTRUCTION CO LTD       
721,Childrens & Education Services,Vocational - Adult Education,AE-Family Literacy,K06082,Supplies & Services           ,Services                      ,DF30,Activities Programme,681,02/03/2013,R,ST MARKS FAMILY CENTRE        
722,Childrens & Education Services,Vocational - Adult Education,AE-Family Literacy,K06082,Supplies & Services           ,Services                      ,DF30,Activities Programme,726.84,02/03/2013,R,ST MARKS FAMILY CENTRE        
723,Childrens & Education Services,Vocational - Adult Education,AE-Family Literacy,K06082,Supplies & Services           ,Services                      ,DF30,Activities Programme,726.84,02/03/2013,R,ST MARKS FAMILY CENTRE        
724,Childrens & Education Services,Youth Centres (Residential),PAYP Moving Forward in Life,K06092,Premises Related Expenditure  ,Rents                         ,BC01,Miscellaneous Rents,750,13/03/2013,R,GOLDPLAZA (MITCHAM) LIMITED   
725,Childrens & Education Services,Youth Centres (Residential),PAYP Moving Forward in Life,K06092,Premises Related Expenditure  ,Rents                         ,BC01,Miscellaneous Rents,750,13/03/2013,R,GOLDPLAZA (MITCHAM) LIMITED   
726,Childrens & Education Services,Youth Centres (Residential),PAYP Moving Forward in Life,K06092,Premises Related Expenditure  ,Rents                         ,BC01,Miscellaneous Rents,"6,750.00",13/03/2013,R,GOLDPLAZA (MITCHAM) LIMITED   
727,Childrens & Education Services,Youth Centres (Residential),PAYP Moving Forward in Life,K06092,Supplies & Services           ,Expenses                      ,DH12,Young Peoples Expenses,"1,104.92",28/03/2013,R,CVP.COM                       
728,Childrens & Education Services,Youth Centres (Residential),Youth Opps Fund (GF C G),K06093,Supplies & Services           ,Grants and Subscriptions      ,DJ01,Grants,680,04/04/2013,R,TEENAGE HEALTH MATTERS        
729,Childrens & Education Services,Youth Centres (Residential),Youth Opps Fund (GF C G),K06093,Supplies & Services           ,Grants and Subscriptions      ,DJ01,Grants,807,02/04/2013,R,LEARN THROUGH SPORT           
730,Childrens & Education Services,Youth Centres (Residential),Youth Opps Fund (GF C G),K06093,Supplies & Services           ,Grants and Subscriptions      ,DJ01,Grants,942.4,27/03/2013,R,NORTH EAST MITCHAM COMM ASSOC 
731,Childrens & Education Services,Youth Centres (Residential),Youth Opps Fund (GF C G),K06093,Supplies & Services           ,Grants and Subscriptions      ,DJ01,Grants,952,26/03/2013,R,JIMMY ASHER FOUNDATION        
732,Childrens & Education Services,Youth Centres (Residential),Youth Opps Fund (GF C G),K06093,Supplies & Services           ,Grants and Subscriptions      ,DJ01,Grants,"1,400.00",27/03/2013,R,COMMUNITIES FIRST             
733,Childrens & Education Services,Youth Centres (Residential),Youth Opps Fund (GF C G),K06093,Supplies & Services           ,Grants and Subscriptions      ,DJ01,Grants,"1,920.00",24/03/2013,R,BMETVFM                       
734,Childrens & Education Services,Youth Centres (Residential),Youth Opps Fund (GF C G),K06093,Supplies & Services           ,Grants and Subscriptions      ,DJ01,Grants,"2,080.00",22/03/2013,R,RCCG THORP                    
735,Childrens & Education Services,Youth Centres (Residential),Youth Opps Fund (GF C G),K06093,Supplies & Services           ,Grants and Subscriptions      ,DJ01,Grants,"2,400.00",04/04/2013,R,SOUTH LONDON TAMIL WELFARE GRP
736,Childrens & Education Services,Pupil Support,CONX - BOROUGH MANAGER,K06100,Employees                     ,Indirect Employee Expenses    ,AB57,External Training Costs,"2,000.00",03/04/2013,R,LONDON YOUTH                  
737,Childrens & Education Services,Pupil Support,CONX - TRAIN PAs TO NVQ,K06112,Employees                     ,Indirect Employee Expenses    ,AB57,External Training Costs,"8,350.00",03/04/2013,R,LONDON YOUTH                  
738,Childrens & Education Services,Pupil Support,CONX - VOL. GROUP & OTHERS,K06113,Supplies & Services           ,Grants and Subscriptions      ,DJ01,Grants,"8,000.00",03/04/2013,R,LONDON YOUTH                  
739,Childrens & Education Services,Pupil Support,CONX - VOL. GROUP & OTHERS,K06113,Supplies & Services           ,Grants and Subscriptions      ,DJ01,Grants,"10,000.00",03/04/2013,R,LONDON YOUTH                  
740,Childrens & Education Services,Pupil Support,Children & Yth Participation,K06115,Third Party Payments          ,Private Contractors           ,EH01,Miscellaneous Contrct Services,"1,800.00",10/04/2013,R,YOUNG ADVISORS                
741,Childrens & Education Services,Asset Management,S106 Bid,K08077,Premises Related Expenditure  ,RepairsAlterations&MtceOfBldgs,BA05,DDM - Electrical,"1,969.15",28/03/2013,R,BP INSTALLATIONS LIMITED      
742,Childrens & Education Services,Asset Management,S106 Bid,K08077,Premises Related Expenditure  ,RepairsAlterations&MtceOfBldgs,BA29,Build Maint Mgt Fees,"41,275.00",18/04/2013,R,REDACTED
743,Childrens & Education Services,Asset Management,S106 Bid,K08077,Premises Related Expenditure  ,RepairsAlterations&MtceOfBldgs,BA79,Security of Premises,"9,816.70",02/04/2013,R,SIGHT & SOUND                 
744,Childrens & Education Services,Asset Management,S106 Bid,K08077,Premises Related Expenditure  ,Energy Costs                  ,BB02,Electricity,"1,390.34",08/04/2013,R,SOUTHERN ELECTRIC             
745,Childrens & Education Services,Asset Management,Centre Commissioned Servs,K08078,Supplies & Services           ,Grants and Subscriptions      ,DJ01,Grants,682,14/04/2013,R,YOUTH EMPOWERMENT CRIME SCHEME
746,Childrens & Education Services,Asset Management,Centre Commissioned Servs,K08078,Supplies & Services           ,Grants and Subscriptions      ,DJ01,Grants,"1,120.00",31/03/2013,R,NORTH EAST MITCHAM COMM ASSOC 
747,Childrens & Education Services,Asset Management,Centre Commissioned Servs,K08078,Supplies & Services           ,Grants and Subscriptions      ,DJ01,Grants,"1,312.00",28/03/2013,R,SOUTH LONDON REFUGEE ASSOC.   
748,Childrens & Education Services,Asset Management,Centre Commissioned Servs,K08078,Supplies & Services           ,Grants and Subscriptions      ,DJ01,Grants,"6,400.00",24/04/2013,R,UPTOWN UK                     
749,Childrens & Education Services,Asset Management,Centre Commissioned Servs,K08078,Supplies & Services           ,Grants and Subscriptions      ,DJ01,Grants,"7,800.00",04/02/2013,R,BROADWAY HOMELESS & SUPPORT   
750,Childrens & Education Services,Asset Management,Centre Commissioned Servs,K08078,Supplies & Services           ,Grants and Subscriptions      ,DJ01,Grants,"10,000.00",17/04/2013,R,YOUTH EMPOWERMENT CRIME SCHEME
751,Childrens & Education Services,Facilitating School Improvemnt,SSQ,K09077,Supplies & Services           ,Equip Furniture/Materials     ,DA58,Education Materials,"4,256.00",28/03/2013,R,STORMFRONT RETAIL LTD         
752,Childrens & Education Services,Statutory & Regulatory Duties,Governor Support,K09081,Supplies & Services           ,Equip Furniture/Materials     ,DA58,Education Materials,"1,190.00",27/03/2013,R,GLASSTAP                      
753,Childrens & Education Services,Asset Management,Stouthall,K09082,Premises Related Expenditure  ,Energy Costs                  ,BB03,Gas (incl. Butane),"2,880.00",24/03/2013,R,FLOGAS CO UK                  
754,Childrens & Education Services,Asset Management,Stouthall,K09082,Premises Related Expenditure  ,Rates                         ,BD02,NNDR Other LAs,"1,517.42",15/03/2013,R,CITY AND COUNTY OF SWANSEA    
755,Childrens & Education Services,Asset Management,Stouthall,K09082,Premises Related Expenditure  ,Water Services                ,BE02,Use of Water (Unmetered),519.12,01/04/2013,R,DWR CYMRU CYF WELSH WATER     
756,Childrens & Education Services,Statutory & Regulatory Duties,Profess Develop Cntre,K09084,Premises Related Expenditure  ,Cleaning and Domestic Supplies,BH09,Communal/Commercial Waste,831.7,01/04/2013,R,LONDON BOROUGH OF MERTON      
757,Childrens & Education Services,Admissions & Planning Sch Prov,Schools Admin & Pupil Benefits,K90001,Supplies & Services           ,Comms and Computing           ,DG02,Software Licences,"16,915.00",01/04/2013,R,LONDON GRID FOR LEARNING TRUST
758,Childrens & Education Services,Sch Meals & Milk-Not Delegated,Free School Meals,K90002,Premises Related Expenditure  ,RepairsAlterations&MtceOfBldgs,BA01,DDM - General Building,675.03,04/04/2013,R,FIRST IN SERVICE              
759,Childrens & Education Services,Sch Meals & Milk-Not Delegated,Free School Meals,K90002,Premises Related Expenditure  ,RepairsAlterations&MtceOfBldgs,BA01,DDM - General Building,738.65,10/04/2013,R,FIRST IN SERVICE              
760,Childrens & Education Services,Sch Meals & Milk-Not Delegated,Free School Meals,K90002,Supplies & Services           ,Services                      ,DF11,Counsel's fees,"1,575.00",21/08/2012,R,REDACTED
761,Childrens & Education Services,Sch Meals & Milk-Not Delegated,Free School Meals,K90002,Supplies & Services           ,Grants and Subscriptions      ,DJ80,Free School Meals,"7,317.50",25/10/2012,R,PARENTPAY LTD                 
762,Childrens & Education Services,Facilitating School Improvemnt,Virtual Schools - Home Tutors,K90015,Employees                     ,Direct Employee Expenses      ,AA17,Agency Staff & Casual Paymts,912.5,29/03/2013,R,REDACTED
763,Childrens & Education Services,Pupil Referral Units,Smart Centre (Pupil Refer Unit,K90019,Employees                     ,Direct Employee Expenses      ,AA17,Agency Staff & Casual Paymts,530,20/03/2013,R,REDACTED
764,Childrens & Education Services,Pupil Referral Units,Smart Centre (Pupil Refer Unit,K90019,Employees                     ,Direct Employee Expenses      ,AA74,Public Duties (AP),980,03/04/2013,R,EDUCATION PLUS                
765,Childrens & Education Services,Pupil Referral Units,Smart Centre (Pupil Refer Unit,K90019,Employees                     ,Direct Employee Expenses      ,AA74,Public Duties (AP),"1,225.00",26/03/2013,R,EDUCATION PLUS                
766,Childrens & Education Services,Pupil Referral Units,Smart Centre (Pupil Refer Unit,K90019,Supplies & Services           ,Services                      ,DF07,Bought in Teaching Services,500,27/03/2013,R,REDACTED
767,Childrens & Education Services,Support for SEN Pupils,Non-Delegated Statements,K90024,Employees                     ,Direct Employee Expenses      ,AA17,Agency Staff & Casual Paymts,"1,133.64",31/03/2013,R,REDACTED
768,Childrens & Education Services,Support for SEN Pupils,Non-Delegated Statements,K90024,Supplies & Services           ,Equip Furniture/Materials     ,DA09,Equip-Purchases,577.59,10/04/2013,R,DM ORTHOTICS LIMITED          
769,Childrens & Education Services,Support for SEN Pupils,Non-Delegated Statements,K90024,Supplies & Services           ,Services                      ,DF09,Miscellaneous Fees,"1,214.00",25/03/2013,R,MARY HARE GRAMMAR SCHOOL      
770,Childrens & Education Services,Support for SEN Pupils,Non-Delegated Statements,K90024,Supplies & Services           ,Services                      ,DF09,Miscellaneous Fees,"2,392.00",26/03/2013,R,THAMES CHRISTIAN COLLEGE LTD  
771,Childrens & Education Services,Support for SEN Pupils,Non-Delegated Statements,K90024,Supplies & Services           ,Services                      ,DF09,Miscellaneous Fees,"5,000.00",02/04/2013,R,ST DOMINIC'S SCHOOL           
772,Childrens & Education Services,Support for SEN Pupils,Non-Delegated Statements,K90024,Third Party Payments          ,Other Local Authorities       ,EB55,Placements,"1,421.40",17/01/2013,R,WILLOW PRE SCHOOL             
773,Childrens & Education Services,Support for SEN Pupils,Non-Delegated Statements,K90024,Third Party Payments          ,Other Local Authorities       ,EB55,Placements,"1,452.30",16/01/2013,R,WILLOW PRE SCHOOL             
774,Childrens & Education Services,Support for SEN Pupils,Non-Delegated Statements,K90024,Third Party Payments          ,Other Local Authorities       ,EB55,Placements,"2,070.30",10/04/2013,R,BOW LANE PRE-SCHOOL           
775,Childrens & Education Services,Support for SEN Pupils,Non-Delegated Statements,K90024,Third Party Payments          ,Other Local Authorities       ,EB55,Placements,"2,446.17",10/04/2013,R,BOW LANE PRE-SCHOOL           
776,Childrens & Education Services,Support for SEN Pupils,Non-Delegated Statements,K90024,Third Party Payments          ,Other Establishments          ,EG01,Alternative SEN Provision,590,16/04/2013,R,HA TUTORS LTD                 
777,Childrens & Education Services,Support for SEN Pupils,Non-Delegated Statements,K90024,Third Party Payments          ,Other Establishments          ,EG01,Alternative SEN Provision,590,08/04/2013,R,HA TUTORS LTD                 
778,Childrens & Education Services,Support for SEN Pupils,Non-Delegated Statements,K90024,Third Party Payments          ,Other Establishments          ,EG01,Alternative SEN Provision,590,02/04/2013,R,HA TUTORS LTD                 
779,Childrens & Education Services,Support for SEN Pupils,Non-Delegated Statements,K90024,Third Party Payments          ,Other Establishments          ,EG01,Alternative SEN Provision,594,25/03/2013,R,HA TUTORS LTD                 
780,Childrens & Education Services,Support for SEN Pupils,Non-Delegated Statements,K90024,Third Party Payments          ,Other Establishments          ,EG01,Alternative SEN Provision,627,28/03/2013,R,HA TUTORS LTD                 
781,Childrens & Education Services,Support for SEN Pupils,Non-Delegated Statements,K90024,Third Party Payments          ,Other Establishments          ,EG01,Alternative SEN Provision,"1,200.00",31/03/2013,R,SMART TEACHERS                
782,Childrens & Education Services,Support for SEN Pupils,Non-Delegated Statements,K90024,Third Party Payments          ,Other Establishments          ,EG01,Alternative SEN Provision,"1,385.00",27/03/2013,R,SMART TEACHERS                
783,Childrens & Education Services,Support for SEN Pupils,Non-Delegated Statements,K90024,Third Party Payments          ,Other Establishments          ,EG01,Alternative SEN Provision,"1,585.70",25/03/2013,R,REDACTED
784,Childrens & Education Services,Support for SEN Pupils,Non-Delegated Statements,K90024,Third Party Payments          ,Other Establishments          ,EG50,Ind Day Schs Payments,"-19,695.00",28/03/2013,R,THE LINK SECONDARY SCHOOL     
785,Childrens & Education Services,Support for SEN Pupils,Non-Delegated Statements,K90024,Third Party Payments          ,Other Establishments          ,EG50,Ind Day Schs Payments,"-8,289.00",28/03/2013,R,THE LINK SECONDARY SCHOOL     
786,Childrens & Education Services,Support for SEN Pupils,Non-Delegated Statements,K90024,Third Party Payments          ,Other Establishments          ,EG50,Ind Day Schs Payments,"-7,955.00",28/03/2013,R,THE LINK SECONDARY SCHOOL     
787,Childrens & Education Services,Support for SEN Pupils,Non-Delegated Statements,K90024,Third Party Payments          ,Other Establishments          ,EG50,Ind Day Schs Payments,"3,626.81",07/04/2013,R,BLOSSOM LOWER SCHOOL LTD      
788,Childrens & Education Services,Support for SEN Pupils,Non-Delegated Statements,K90024,Third Party Payments          ,Other Establishments          ,EG50,Ind Day Schs Payments,"3,738.00",26/03/2013,R,THAMES CHRISTIAN COLLEGE LTD  
789,Childrens & Education Services,Support for SEN Pupils,Non-Delegated Statements,K90024,Third Party Payments          ,Other Establishments          ,EG50,Ind Day Schs Payments,"8,103.67",07/04/2013,R,BLOSSOM LOWER SCHOOL LTD      
790,Childrens & Education Services,Support for SEN Pupils,Non-Delegated Statements,K90024,Third Party Payments          ,Other Establishments          ,EG50,Ind Day Schs Payments,"9,437.00",07/04/2013,R,BLOSSOM LOWER SCHOOL LTD      
791,Childrens & Education Services,Support for SEN Pupils,Non-Delegated Statements,K90024,Third Party Payments          ,Other Establishments          ,EG50,Ind Day Schs Payments,"9,763.00",07/04/2013,R,BLOSSOM LOWER SCHOOL LTD      
792,Childrens & Education Services,Support for SEN Pupils,Non-Delegated Statements,K90024,Third Party Payments          ,Other Establishments          ,EG50,Ind Day Schs Payments,"10,267.00",07/04/2013,R,BLOSSOM HOUSE SCHOOL          
793,Childrens & Education Services,Support for SEN Pupils,Non-Delegated Statements,K90024,Third Party Payments          ,Other Establishments          ,EG50,Ind Day Schs Payments,"10,267.00",07/04/2013,R,BLOSSOM HOUSE SCHOOL          
794,Childrens & Education Services,Support for SEN Pupils,Non-Delegated Statements,K90024,Third Party Payments          ,Other Establishments          ,EG50,Ind Day Schs Payments,"10,267.00",07/04/2013,R,BLOSSOM LOWER SCHOOL LTD      
795,Childrens & Education Services,Support for SEN Pupils,Non-Delegated Statements,K90024,Third Party Payments          ,Other Establishments          ,EG50,Ind Day Schs Payments,"10,267.00",07/04/2013,R,BLOSSOM HOUSE SCHOOL          
796,Childrens & Education Services,Support for SEN Pupils,Non-Delegated Statements,K90024,Third Party Payments          ,Other Establishments          ,EG50,Ind Day Schs Payments,"10,267.00",07/04/2013,R,BLOSSOM HOUSE SCHOOL          
797,Childrens & Education Services,Support for SEN Pupils,Non-Delegated Statements,K90024,Third Party Payments          ,Other Establishments          ,EG50,Ind Day Schs Payments,"10,267.00",07/04/2013,R,BLOSSOM HOUSE SCHOOL          
798,Childrens & Education Services,Support for SEN Pupils,Non-Delegated Statements,K90024,Third Party Payments          ,Other Establishments          ,EG50,Ind Day Schs Payments,"10,483.00",07/04/2013,R,BLOSSOM HOUSE SCHOOL          
799,Childrens & Education Services,Support for SEN Pupils,Non-Delegated Statements,K90024,Third Party Payments          ,Other Establishments          ,EG50,Ind Day Schs Payments,"10,483.00",07/04/2013,R,BLOSSOM HOUSE SCHOOL          
800,Childrens & Education Services,Support for SEN Pupils,Non-Delegated Statements,K90024,Third Party Payments          ,Other Establishments          ,EG50,Ind Day Schs Payments,"10,483.00",07/04/2013,R,BLOSSOM HOUSE SCHOOL          
801,Childrens & Education Services,Support for SEN Pupils,Non-Delegated Statements,K90024,Third Party Payments          ,Other Establishments          ,EG50,Ind Day Schs Payments,"10,483.00",07/04/2013,R,BLOSSOM HOUSE SCHOOL          
802,Childrens & Education Services,Support for SEN Pupils,Non-Delegated Statements,K90024,Third Party Payments          ,Other Establishments          ,EG50,Ind Day Schs Payments,"32,504.00",28/03/2013,R,PAPILLON HOUSE SCHOOL         
803,Childrens & Education Services,Behavioural Support,Language & Learning Service,K90025,Supplies & Services           ,Equip Furniture/Materials     ,DA58,Education Materials,"1,532.80",26/03/2013,R,STORMFRONT RETAIL LTD         
804,Childrens & Education Services,Behavioural Support,Sensory Team,K90026,Employees                     ,Direct Employee Expenses      ,AA17,Agency Staff & Casual Paymts,"2,200.00",09/01/2013,R,REDACTED
805,Childrens & Education Services,Admissions & Planning Sch Prov,Retained Schools Budgets,K90030,Supplies & Services           ,Prntng Stnry Gen Off Exp      ,DE22,Marketing,"2,450.00",31/03/2013,R,GREBOT DONNELLY  ASSOCIAT. LTD
806,Childrens & Education Services,Admissions & Planning Sch Prov,Retained Schools Budgets,K90030,Supplies & Services           ,Grants and Subscriptions      ,DJ04,Subscriptions,"6,562.54",02/04/2013,R,CEFM LTD                      
807,Childrens & Education Services,Admissions & Planning Sch Prov,Retained Schools Budgets,K90030,Supplies & Services           ,Grants and Subscriptions      ,DJ04,Subscriptions,"6,878.11",01/04/2013,R,EDUCATIONAL RECORDING AGENCY  
808,Childrens & Education Services,Admissions & Planning Sch Prov,Retained Schools Budgets,K90030,Supplies & Services           ,Grants and Subscriptions      ,DJ04,Subscriptions,"6,970.96",02/04/2013,R,CEFM LTD                      
809,Childrens & Education Services,Del. Ind Secondary Sch Budgets,Schools Delegated Budget,K90032,Supplies & Services           ,Services                      ,DF03,Consultants,"1,200.00",29/03/2013,R,END USER LTD                  
810,Childrens & Education Services,Del. Ind Secondary Sch Budgets,Schools Delegated Budget,K90032,Supplies & Services           ,Services                      ,DF03,Consultants,"3,000.00",29/03/2013,R,END USER LTD                  
811,Childrens & Education Services,Asset Management,Schools Procurement,K90034,Supplies & Services           ,Services                      ,DF03,Consultants,"4,000.00",28/03/2013,R,CREATIVE SHAREPOINT           
812,Childrens & Education Services,Facilitating School Improvemnt,SSQ CORE OFFER (DSG),K90040,Supplies & Services           ,Services                      ,DF03,Consultants,"1,155.00",31/03/2013,R,REDACTED
813,Childrens & Education Services,Nursery schools,EARLY YEARS NURSERY GRANTS,K90042,Supplies & Services           ,Grants and Subscriptions      ,DJ01,Grants,-648,11/04/2013,R,HOLY CROSS PLAYGROUP          
814,Childrens & Education Services,Nursery schools,EARLY YEARS NURSERY GRANTS,K90042,Supplies & Services           ,Grants and Subscriptions      ,DJ01,Grants,648,11/04/2013,R,HOLY CROSS PLAYGROUP          
815,Childrens & Education Services,Nursery schools,EARLY YEARS NURSERY GRANTS,K90042,Supplies & Services           ,Grants and Subscriptions      ,DJ01,Grants,972,11/04/2013,R,SACRED HEART FUN CLUB         
816,Childrens & Education Services,Nursery schools,EARLY YEARS NURSERY GRANTS,K90042,Supplies & Services           ,Grants and Subscriptions      ,DJ01,Grants,972,11/04/2013,R,BUMBLE BEES'S DAY NURSERY-COCC
817,Childrens & Education Services,Nursery schools,EARLY YEARS NURSERY GRANTS,K90042,Supplies & Services           ,Grants and Subscriptions      ,DJ01,Grants,972,08/04/2013,R,REDACTED
818,Childrens & Education Services,Nursery schools,EARLY YEARS NURSERY GRANTS,K90042,Supplies & Services           ,Grants and Subscriptions      ,DJ01,Grants,972,19/04/2013,R,REDACTED
819,Childrens & Education Services,Nursery schools,EARLY YEARS NURSERY GRANTS,K90042,Supplies & Services           ,Grants and Subscriptions      ,DJ01,Grants,972,25/04/2013,R,COLLIERS WOOD VILLAGE DAY NUR.
820,Childrens & Education Services,Nursery schools,EARLY YEARS NURSERY GRANTS,K90042,Supplies & Services           ,Grants and Subscriptions      ,DJ01,Grants,972,11/04/2013,R,MMI PRE SCHOOL                
821,Childrens & Education Services,Nursery schools,EARLY YEARS NURSERY GRANTS,K90042,Supplies & Services           ,Grants and Subscriptions      ,DJ01,Grants,"1,080.00",11/04/2013,R,WILLOWS PRE-SCHOOL            
822,Childrens & Education Services,Nursery schools,EARLY YEARS NURSERY GRANTS,K90042,Supplies & Services           ,Grants and Subscriptions      ,DJ01,Grants,"1,944.00",11/04/2013,R,CHERUBS @ ST THOMAS           
823,Childrens & Education Services,Nursery schools,EARLY YEARS NURSERY GRANTS,K90042,Supplies & Services           ,Grants and Subscriptions      ,DJ01,Grants,"1,944.00",25/04/2013,R,REDACTED
824,Childrens & Education Services,Nursery schools,EARLY YEARS NURSERY GRANTS,K90042,Supplies & Services           ,Grants and Subscriptions      ,DJ01,Grants,"1,944.00",11/04/2013,R,COLLIERS WOOD VILLAGE DAY NUR.
825,Childrens & Education Services,Nursery schools,EARLY YEARS NURSERY GRANTS,K90042,Supplies & Services           ,Grants and Subscriptions      ,DJ01,Grants,"1,944.00",11/04/2013,R,FIRST LITTLE STEPS            
826,Childrens & Education Services,Nursery schools,EARLY YEARS NURSERY GRANTS,K90042,Supplies & Services           ,Grants and Subscriptions      ,DJ01,Grants,"2,916.00",18/04/2013,R,COLLIERS WOOD VILLAGE DAY NUR.
827,Childrens & Education Services,Nursery schools,EARLY YEARS NURSERY GRANTS,K90042,Supplies & Services           ,Grants and Subscriptions      ,DJ01,Grants,"2,916.00",11/04/2013,R,LITTLE CATERPILLARS           
828,Childrens & Education Services,Nursery schools,EARLY YEARS NURSERY GRANTS,K90042,Supplies & Services           ,Grants and Subscriptions      ,DJ01,Grants,"2,916.00",11/04/2013,R,LA PETITE FLEUR PRE-SCHOOL    
829,Childrens & Education Services,Nursery schools,EARLY YEARS NURSERY GRANTS,K90042,Supplies & Services           ,Grants and Subscriptions      ,DJ01,Grants,"4,860.00",11/04/2013,R,MINI TREASURES DAY NURSERY    
830,Childrens & Education Services,Nursery schools,EARLY YEARS NURSERY GRANTS,K90042,Supplies & Services           ,Grants and Subscriptions      ,DJ01,Grants,"4,860.00",11/04/2013,R,THE GRANGE DAY NURSERY        
831,Childrens & Education Services,Nursery schools,EARLY YEARS NURSERY GRANTS,K90042,Supplies & Services           ,Grants and Subscriptions      ,DJ01,Grants,"5,832.00",11/04/2013,R,BOW LANE PRE-SCHOOL           
832,Childrens & Education Services,Nursery schools,EARLY YEARS NURSERY GRANTS,K90042,Supplies & Services           ,Grants and Subscriptions      ,DJ01,Grants,"6,804.00",11/04/2013,R,HASLEMERE HOUSE DAY NURSERY   
833,Childrens & Education Services,Nursery schools,EARLY YEARS NURSERY GRANTS,K90042,Supplies & Services           ,Grants and Subscriptions      ,DJ01,Grants,"7,776.00",11/04/2013,R,REDACTED
834,Childrens & Education Services,Nursery schools,EARLY YEARS NURSERY GRANTS,K90042,Supplies & Services           ,Grants and Subscriptions      ,DJ01,Grants,"7,776.00",11/04/2013,R,KINGSWOOD DAYCARE NURSERY     
835,Childrens & Education Services,Nursery schools,EARLY YEARS NURSERY GRANTS,K90042,Supplies & Services           ,Grants and Subscriptions      ,DJ01,Grants,"9,720.00",18/04/2013,R,JOLLYTIME PLAYGROUP           
836,Childrens & Education Services,Nursery schools,EARLY YEARS NURSERY GRANTS,K90042,Supplies & Services           ,Grants and Subscriptions      ,DJ01,Grants,"11,664.00",12/04/2013,R,CHERUBS @ NEWMINSTER          
837,Childrens & Education Services,Nursery schools,EARLY YEARS NURSERY GRANTS,K90042,Supplies & Services           ,Grants and Subscriptions      ,DJ01,Grants,"11,664.00",23/04/2013,R,HASLEMERE PRIMARY SCHOOL      
838,Childrens & Education Services,Nursery schools,EARLY YEARS NURSERY GRANTS,K90042,Supplies & Services           ,Grants and Subscriptions      ,DJ01,Grants,"17,496.00",23/04/2013,R,ST MARKS PRIMARY SCHOOL       
839,Childrens & Education Services,Nursery schools,EARLY YEARS NURSERY GRANTS,K90042,Supplies & Services           ,Grants and Subscriptions      ,DJ01,Grants,"19,440.00",23/04/2013,R,ARK AT SHERWOOD LTD           
840,Childrens & Education Services,Nursery schools,EARLY YEARS NURSERY GRANTS,K90042,Supplies & Services           ,Grants and Subscriptions      ,DJ01,Grants,"19,440.00",23/04/2013,R,HAPPY FACES@CRANMER           
841,Childrens & Education Services,Nursery schools,EARLY YEARS NURSERY GRANTS,K90042,Supplies & Services           ,Grants and Subscriptions      ,DJ57,Nursery Grant Payment-4yr olds,"2,200.97",04/04/2013,R,BUTTERFLIES CHILDCARE LIMITED 
842,Childrens & Education Services,Nursery schools,EARLY YEARS NURSERY GRANTS,K90042,Supplies & Services           ,Grants and Subscriptions      ,DJ57,Nursery Grant Payment-4yr olds,"2,217.60",04/04/2013,R,NUTURE DAY NURSERIES          
843,Childrens & Education Services,Nursery schools,EARLY YEARS NURSERY GRANTS,K90042,Supplies & Services           ,Grants and Subscriptions      ,DJ57,Nursery Grant Payment-4yr olds,"2,217.60",04/04/2013,R,LOVE LANE DAY NURSERY         
844,Childrens & Education Services,Nursery schools,EARLY YEARS NURSERY GRANTS,K90042,Supplies & Services           ,Grants and Subscriptions      ,DJ57,Nursery Grant Payment-4yr olds,"2,399.00",05/04/2013,R,HOLY CROSS PLAYGROUP          
845,Childrens & Education Services,Nursery schools,EARLY YEARS NURSERY GRANTS,K90042,Supplies & Services           ,Grants and Subscriptions      ,DJ57,Nursery Grant Payment-4yr olds,"2,772.00",18/04/2013,R,COLLIERS WOOD VILLAGE DAY NUR.
846,Childrens & Education Services,Nursery schools,EARLY YEARS NURSERY GRANTS,K90042,Supplies & Services           ,Grants and Subscriptions      ,DJ57,Nursery Grant Payment-4yr olds,"2,772.00",04/04/2013,R,MINI TREASURES DAY NURSERY    
847,Childrens & Education Services,Nursery schools,EARLY YEARS NURSERY GRANTS,K90042,Supplies & Services           ,Grants and Subscriptions      ,DJ57,Nursery Grant Payment-4yr olds,"3,287.59",04/04/2013,R,CHERUBS @ ST THOMAS           
848,Childrens & Education Services,Nursery schools,EARLY YEARS NURSERY GRANTS,K90042,Supplies & Services           ,Grants and Subscriptions      ,DJ57,Nursery Grant Payment-4yr olds,"3,819.82",04/04/2013,R,BLOSSOM HOUSE SCHOOL          
849,Childrens & Education Services,Nursery schools,EARLY YEARS NURSERY GRANTS,K90042,Supplies & Services           ,Grants and Subscriptions      ,DJ57,Nursery Grant Payment-4yr olds,"3,880.80",05/04/2013,R,LITTLE CATERPILLARS           
850,Childrens & Education Services,Nursery schools,EARLY YEARS NURSERY GRANTS,K90042,Supplies & Services           ,Grants and Subscriptions      ,DJ57,Nursery Grant Payment-4yr olds,"3,991.68",04/04/2013,R,LITTLE HANDS MONTESSORI       
851,Childrens & Education Services,Nursery schools,EARLY YEARS NURSERY GRANTS,K90042,Supplies & Services           ,Grants and Subscriptions      ,DJ57,Nursery Grant Payment-4yr olds,"3,991.68",04/04/2013,R,REDACTED
852,Childrens & Education Services,Nursery schools,EARLY YEARS NURSERY GRANTS,K90042,Supplies & Services           ,Grants and Subscriptions      ,DJ57,Nursery Grant Payment-4yr olds,"4,806.65",05/04/2013,R,SACRED HEART FUN CLUB         
853,Childrens & Education Services,Nursery schools,EARLY YEARS NURSERY GRANTS,K90042,Supplies & Services           ,Grants and Subscriptions      ,DJ57,Nursery Grant Payment-4yr olds,"4,806.65",04/04/2013,R,DEE'S DAYS NURSERY            
854,Childrens & Education Services,Nursery schools,EARLY YEARS NURSERY GRANTS,K90042,Supplies & Services           ,Grants and Subscriptions      ,DJ57,Nursery Grant Payment-4yr olds,"4,900.00",11/04/2013,R,COMPTON NURSERY               
855,Childrens & Education Services,Nursery schools,EARLY YEARS NURSERY GRANTS,K90042,Supplies & Services           ,Grants and Subscriptions      ,DJ57,Nursery Grant Payment-4yr olds,"4,989.60",05/04/2013,R,ST OLAVES NURSERY             
856,Childrens & Education Services,Nursery schools,EARLY YEARS NURSERY GRANTS,K90042,Supplies & Services           ,Grants and Subscriptions      ,DJ57,Nursery Grant Payment-4yr olds,"5,472.00",04/04/2013,R,CHERUBS CHILDCARE LTD         
857,Childrens & Education Services,Nursery schools,EARLY YEARS NURSERY GRANTS,K90042,Supplies & Services           ,Grants and Subscriptions      ,DJ57,Nursery Grant Payment-4yr olds,"5,544.00",04/04/2013,R,NURSERY ON THE GREEN          
858,Childrens & Education Services,Nursery schools,EARLY YEARS NURSERY GRANTS,K90042,Supplies & Services           ,Grants and Subscriptions      ,DJ57,Nursery Grant Payment-4yr olds,"5,544.00",04/04/2013,R,KINGSWOOD DAYCARE NURSERY     
859,Childrens & Education Services,Nursery schools,EARLY YEARS NURSERY GRANTS,K90042,Supplies & Services           ,Grants and Subscriptions      ,DJ57,Nursery Grant Payment-4yr olds,"5,787.60",05/04/2013,R,WILLINGTON SCH.FOUNDATION LTD 
860,Childrens & Education Services,Nursery schools,EARLY YEARS NURSERY GRANTS,K90042,Supplies & Services           ,Grants and Subscriptions      ,DJ57,Nursery Grant Payment-4yr olds,"5,821.20",04/04/2013,R,LITTLE LEARNERS               
861,Childrens & Education Services,Nursery schools,EARLY YEARS NURSERY GRANTS,K90042,Supplies & Services           ,Grants and Subscriptions      ,DJ57,Nursery Grant Payment-4yr olds,"5,832.00",05/04/2013,R,CHERUBS @ NEWMINSTER          
862,Childrens & Education Services,Nursery schools,EARLY YEARS NURSERY GRANTS,K90042,Supplies & Services           ,Grants and Subscriptions      ,DJ57,Nursery Grant Payment-4yr olds,"5,948.71",05/04/2013,R,DICKY BIRDS PRE-SCH NURSERIES 
863,Childrens & Education Services,Nursery schools,EARLY YEARS NURSERY GRANTS,K90042,Supplies & Services           ,Grants and Subscriptions      ,DJ57,Nursery Grant Payment-4yr olds,"6,098.40",04/04/2013,R,LITTLE GATES                  
864,Childrens & Education Services,Nursery schools,EARLY YEARS NURSERY GRANTS,K90042,Supplies & Services           ,Grants and Subscriptions      ,DJ57,Nursery Grant Payment-4yr olds,"6,469.85",04/04/2013,R,MONTIS DAY NURSERY            
865,Childrens & Education Services,Nursery schools,EARLY YEARS NURSERY GRANTS,K90042,Supplies & Services           ,Grants and Subscriptions      ,DJ57,Nursery Grant Payment-4yr olds,"6,652.80",04/04/2013,R,FIRST LITTLE STEPS            
866,Childrens & Education Services,Nursery schools,EARLY YEARS NURSERY GRANTS,K90042,Supplies & Services           ,Grants and Subscriptions      ,DJ57,Nursery Grant Payment-4yr olds,"6,763.68",05/04/2013,R,WILLOWS PRE-SCHOOL            
867,Childrens & Education Services,Nursery schools,EARLY YEARS NURSERY GRANTS,K90042,Supplies & Services           ,Grants and Subscriptions      ,DJ57,Nursery Grant Payment-4yr olds,"6,913.37",05/04/2013,R,REDACTED
868,Childrens & Education Services,Nursery schools,EARLY YEARS NURSERY GRANTS,K90042,Supplies & Services           ,Grants and Subscriptions      ,DJ57,Nursery Grant Payment-4yr olds,"6,998.40",04/04/2013,R,JOLLYTIME PLAYGROUP           
869,Childrens & Education Services,Nursery schools,EARLY YEARS NURSERY GRANTS,K90042,Supplies & Services           ,Grants and Subscriptions      ,DJ57,Nursery Grant Payment-4yr olds,"7,096.32",04/04/2013,R,COLLIERS WOOD VILLAGE DAY NUR.
870,Childrens & Education Services,Nursery schools,EARLY YEARS NURSERY GRANTS,K90042,Supplies & Services           ,Grants and Subscriptions      ,DJ57,Nursery Grant Payment-4yr olds,"7,096.32",09/04/2013,R,WILLOWS PRE-SCHOOL            
871,Childrens & Education Services,Nursery schools,EARLY YEARS NURSERY GRANTS,K90042,Supplies & Services           ,Grants and Subscriptions      ,DJ57,Nursery Grant Payment-4yr olds,"7,112.95",05/04/2013,R,RAYNES PARK DAY NURSERY       
872,Childrens & Education Services,Nursery schools,EARLY YEARS NURSERY GRANTS,K90042,Supplies & Services           ,Grants and Subscriptions      ,DJ57,Nursery Grant Payment-4yr olds,"7,207.20",04/04/2013,R,DONHEAD SCHOOL                
873,Childrens & Education Services,Nursery schools,EARLY YEARS NURSERY GRANTS,K90042,Supplies & Services           ,Grants and Subscriptions      ,DJ57,Nursery Grant Payment-4yr olds,"7,207.20",05/04/2013,R,PLAYDAYS DAY NURSERY          
874,Childrens & Education Services,Nursery schools,EARLY YEARS NURSERY GRANTS,K90042,Supplies & Services           ,Grants and Subscriptions      ,DJ57,Nursery Grant Payment-4yr olds,"7,207.20",05/04/2013,R,ARK AT SHERWOOD LTD           
875,Childrens & Education Services,Nursery schools,EARLY YEARS NURSERY GRANTS,K90042,Supplies & Services           ,Grants and Subscriptions      ,DJ57,Nursery Grant Payment-4yr olds,"7,207.20",04/04/2013,R,IVY GARDENS CHILDREN' S CENTRE
876,Childrens & Education Services,Nursery schools,EARLY YEARS NURSERY GRANTS,K90042,Supplies & Services           ,Grants and Subscriptions      ,DJ57,Nursery Grant Payment-4yr olds,"7,667.35",04/04/2013,R,DEE'S DAY NURSERY             
877,Childrens & Education Services,Nursery schools,EARLY YEARS NURSERY GRANTS,K90042,Supplies & Services           ,Grants and Subscriptions      ,DJ57,Nursery Grant Payment-4yr olds,"7,667.35",04/04/2013,R,COOPERATIVE CHILDCARE         
878,Childrens & Education Services,Nursery schools,EARLY YEARS NURSERY GRANTS,K90042,Supplies & Services           ,Grants and Subscriptions      ,DJ57,Nursery Grant Payment-4yr olds,"7,761.60",04/04/2013,R,BUMBLE BEES'S DAY NURSERY-COCC
879,Childrens & Education Services,Nursery schools,EARLY YEARS NURSERY GRANTS,K90042,Supplies & Services           ,Grants and Subscriptions      ,DJ57,Nursery Grant Payment-4yr olds,"8,038.80",04/04/2013,R,CAROUSEL LTD                  
880,Childrens & Education Services,Nursery schools,EARLY YEARS NURSERY GRANTS,K90042,Supplies & Services           ,Grants and Subscriptions      ,DJ57,Nursery Grant Payment-4yr olds,"8,680.00",05/04/2013,R,MARIA MONTESSORI CHILD'S HOUSE
881,Childrens & Education Services,Nursery schools,EARLY YEARS NURSERY GRANTS,K90042,Supplies & Services           ,Grants and Subscriptions      ,DJ57,Nursery Grant Payment-4yr olds,"9,304.68",05/04/2013,R,THE STUDY(WIMBLEDON)LTD       
882,Childrens & Education Services,Nursery schools,EARLY YEARS NURSERY GRANTS,K90042,Supplies & Services           ,Grants and Subscriptions      ,DJ57,Nursery Grant Payment-4yr olds,"9,424.80",04/04/2013,R,LA PETITE FLEUR PRE-SCHOOL    
883,Childrens & Education Services,Nursery schools,EARLY YEARS NURSERY GRANTS,K90042,Supplies & Services           ,Grants and Subscriptions      ,DJ57,Nursery Grant Payment-4yr olds,"9,979.20",04/04/2013,R,JIGSAW DAY NURSERY            
884,Childrens & Education Services,Nursery schools,EARLY YEARS NURSERY GRANTS,K90042,Supplies & Services           ,Grants and Subscriptions      ,DJ57,Nursery Grant Payment-4yr olds,"10,256.40",09/04/2013,R,CROWN KINDERGARTEN            
885,Childrens & Education Services,Nursery schools,EARLY YEARS NURSERY GRANTS,K90042,Supplies & Services           ,Grants and Subscriptions      ,DJ57,Nursery Grant Payment-4yr olds,"10,382.53",09/04/2013,R,ST MARK'S MONTESSORI          
886,Childrens & Education Services,Nursery schools,EARLY YEARS NURSERY GRANTS,K90042,Supplies & Services           ,Grants and Subscriptions      ,DJ57,Nursery Grant Payment-4yr olds,"10,533.60",09/04/2013,R,HASLEMERE HOUSE DAY NURSERY   
887,Childrens & Education Services,Nursery schools,EARLY YEARS NURSERY GRANTS,K90042,Supplies & Services           ,Grants and Subscriptions      ,DJ57,Nursery Grant Payment-4yr olds,"11,016.00",09/04/2013,R,OAKTREE PRE-SCHOOL NURSERY    
888,Childrens & Education Services,Nursery schools,EARLY YEARS NURSERY GRANTS,K90042,Supplies & Services           ,Grants and Subscriptions      ,DJ57,Nursery Grant Payment-4yr olds,"11,143.44",09/04/2013,R,EVELINE DAY & NURSERY SCHS LTD
889,Childrens & Education Services,Nursery schools,EARLY YEARS NURSERY GRANTS,K90042,Supplies & Services           ,Grants and Subscriptions      ,DJ57,Nursery Grant Payment-4yr olds,"11,437.27",09/04/2013,R,BRIGHT CHOICE DAY NURSERY     
890,Childrens & Education Services,Nursery schools,EARLY YEARS NURSERY GRANTS,K90042,Supplies & Services           ,Grants and Subscriptions      ,DJ57,Nursery Grant Payment-4yr olds,"11,753.28",09/04/2013,R,DICKY BIRDS PRE SCHOOL NURSERY
891,Childrens & Education Services,Nursery schools,EARLY YEARS NURSERY GRANTS,K90042,Supplies & Services           ,Grants and Subscriptions      ,DJ57,Nursery Grant Payment-4yr olds,"12,466.15",09/04/2013,R,THE GARDEN ROOM               
892,Childrens & Education Services,Nursery schools,EARLY YEARS NURSERY GRANTS,K90042,Supplies & Services           ,Grants and Subscriptions      ,DJ57,Nursery Grant Payment-4yr olds,"12,529.44",09/04/2013,R,BOW LANE PRE-SCHOOL           
893,Childrens & Education Services,Nursery schools,EARLY YEARS NURSERY GRANTS,K90042,Supplies & Services           ,Grants and Subscriptions      ,DJ57,Nursery Grant Payment-4yr olds,"13,211.35",09/04/2013,R,CAROUSEL DAY NURSERY          
894,Childrens & Education Services,Nursery schools,EARLY YEARS NURSERY GRANTS,K90042,Supplies & Services           ,Grants and Subscriptions      ,DJ57,Nursery Grant Payment-4yr olds,"13,305.60",09/04/2013,R,MMI PRE SCHOOL                
895,Childrens & Education Services,Nursery schools,EARLY YEARS NURSERY GRANTS,K90042,Supplies & Services           ,Grants and Subscriptions      ,DJ57,Nursery Grant Payment-4yr olds,"13,667.05",09/04/2013,R,PLAYDAYS DAY NURSERY          
896,Childrens & Education Services,Nursery schools,EARLY YEARS NURSERY GRANTS,K90042,Supplies & Services           ,Grants and Subscriptions      ,DJ57,Nursery Grant Payment-4yr olds,"14,066.98",09/04/2013,R,MARIA MONTESSORI CHILDREN'S   
897,Childrens & Education Services,Nursery schools,EARLY YEARS NURSERY GRANTS,K90042,Supplies & Services           ,Grants and Subscriptions      ,DJ57,Nursery Grant Payment-4yr olds,"14,597.35",09/04/2013,R,EVELINE DAY NURSERY SCHOOLS   
898,Childrens & Education Services,Nursery schools,EARLY YEARS NURSERY GRANTS,K90042,Supplies & Services           ,Grants and Subscriptions      ,DJ57,Nursery Grant Payment-4yr olds,"15,412.32",09/04/2013,R,TEDDIES NURSERIES LTD         
899,Childrens & Education Services,Nursery schools,EARLY YEARS NURSERY GRANTS,K90042,Supplies & Services           ,Grants and Subscriptions      ,DJ57,Nursery Grant Payment-4yr olds,"15,428.95",09/04/2013,R,THE GRANGE DAY NURSERY        
900,Childrens & Education Services,Nursery schools,EARLY YEARS NURSERY GRANTS,K90042,Supplies & Services           ,Grants and Subscriptions      ,DJ57,Nursery Grant Payment-4yr olds,"16,315.99",09/04/2013,R,THE GARDENS CHILDCARE LTD     
901,Childrens & Education Services,Nursery schools,EARLY YEARS NURSERY GRANTS,K90042,Supplies & Services           ,Grants and Subscriptions      ,DJ57,Nursery Grant Payment-4yr olds,"17,186.40",09/04/2013,R,DICKY BIRDS DAY NURSERIES     
902,Childrens & Education Services,Nursery schools,EARLY YEARS NURSERY GRANTS,K90042,Supplies & Services           ,Grants and Subscriptions      ,DJ57,Nursery Grant Payment-4yr olds,"20,069.28",16/04/2013,R,WILLOW PRE SCHOOL             
903,Childrens & Education Services,Nursery schools,EARLY YEARS NURSERY GRANTS,K90042,Supplies & Services           ,Grants and Subscriptions      ,DJ57,Nursery Grant Payment-4yr olds,"21,067.20",16/04/2013,R,WIMBLEDON DAY NURSERY         
904,Childrens & Education Services,Nursery schools,EARLY YEARS NURSERY GRANTS,K90042,Supplies & Services           ,Grants and Subscriptions      ,DJ57,Nursery Grant Payment-4yr olds,"27,276.48",16/04/2013,R,BUILDING BLOCKS NURSERY       
905,Childrens & Education Services,Nursery schools,EARLY YEARS NURSERY GRANTS,K90042,Supplies & Services           ,Grants and Subscriptions      ,DJ57,Nursery Grant Payment-4yr olds,"29,775.00",16/04/2013,R,URSULINE PREPARATORY SCHOOL   
906,Childrens & Education Services,Nursery schools,EARLY YEARS NURSERY GRANTS,K90042,Supplies & Services           ,Grants and Subscriptions      ,DJ57,Nursery Grant Payment-4yr olds,"33,763.97",16/04/2013,R,DATE VALLEY SCHOOL            
907,Childrens & Education Services,Nursery schools,EARLY YEARS NURSERY GRANTS,K90042,Supplies & Services           ,Grants and Subscriptions      ,DJ57,Nursery Grant Payment-4yr olds,"34,557.60",16/04/2013,R,CASTLE KINDERGARTEN           
908,Childrens & Education Services,Oth U5s Provn Not Prim or Spec,DAVID NICHOLAS CRECHE,K90045,Supplies & Services           ,Equip Furniture/Materials     ,DA70,Milk and Meals,575.25,22/03/2013,R,ISS COLLECTIONS LTD           
909,Childrens & Education Services,Nursery schools,EARLY YEARS FUNDING,K90046,Premises Related Expenditure  ,RepairsAlterations&MtceOfBldgs,BA79,Security of Premises,"2,384.00",10/04/2013,R,ACE CONSULT UK LTD            
910,Childrens & Education Services,Support for SEN Pupils,ART SEN Residential (DSG),K90050,Third Party Payments          ,Other Establishments          ,EG51,Ind Resid Schs Payments,"2,627.00",20/03/2013,R,ST JOSEPHS SCHOOL             
911,Childrens & Education Services,Support for SEN Pupils,ART SEN Residential (DSG),K90050,Third Party Payments          ,Other Establishments          ,EG51,Ind Resid Schs Payments,"13,487.08",02/04/2013,R,MOOR HOUSE SCHOOL             
